date,department/service,beneficiary,amount,summary of purpose,category,transaction number,SAP vendor number
01.06.2020,ADULT SOCIAL CARE,FOX-A-GON,300.00,BRANDON TRUST,BUILDING R&M,5902418732,1000072323
01.06.2020,ASSET MANAGEMENT,FRANKHAM CONSULTANCY GROUP LTD,"1,400.00",MAJOR REPAIRS,OTHER R&M,5902418997,1000043952
01.06.2020,CUSTOMER EXPERIENCE HGF,GOVNET COMMUNICATIONS,"1,066.50",HOUSING OPTIONS,TRAINING,5902418974,1000050132
01.06.2020,ENVIRONMENT DIRECTORATE,AIR MONITORS LTD,580.00,ENVIRONMENTAL PROTECTION,EQUIPMENT PURCHASE & REPAIR,5902418897,1000054414
01.06.2020,ENVIRONMENT DIRECTORATE,PROJECT CENTRE LTD,"2,891.80",FLOOD RISK MANAGEMENT,HIGHWAYS TERM CONTRACT,5902419203,1000072621
01.06.2020,FINANCE & GOVERNANCE,LGA,"48,029.96",CORPORATE MANAGEMENT,SUBSCRIPTIONS,6101936910,DIRECT DEBIT PAYMENT
01.06.2020,HOUSING,ALBRIGHTON COMMUNITY CENTRE / EAST DULWICH T&RA,"15,000.00",C19 COMMUNITY HUB,GRANTS,6101936911,CHAPS PAYMENT
01.06.2020,HOUSING GENERAL FUND,C & C BUILDERS LTD,"8,440.00",CAPITAL PS (HOUSING GF),CAPITAL GRANTS,5902418884,1000079100
01.06.2020,LEISURE DIRECTORATE,CONWAY AECOM LTD,"7,248.80",SDM BUDGET,PROFESSIONAL FEES,5902419022,1000071205
02.06.2020,ADULT SOCIAL CARE,THAMES HOMECARE SERVICE LTD,536.02,DISCHARGE TO ACCESS,HOMECARE - C&V,2103106647,1000079295
02.06.2020,ADULT SOCIAL CARE,THAMES HOMECARE SERVICE LTD,399.74,DISCHARGE TO ACCESS,HOMECARE - SPOT,2103106665,1000079295
02.06.2020,ADULT SOCIAL CARE,CARE DIRECT UK LTD,347.51,LD LTS 18-64,SUPPORTED LIVING,2103106699,1000066322
02.06.2020,ADULT SOCIAL CARE,THAMES HOMECARE SERVICE LTD,322.52,MH LTS 18-64,HOMECARE - SPOT,2103106637,1000079295
02.06.2020,ADULT SOCIAL CARE,THAMES HOMECARE SERVICE LTD,472.42,MH LTS 65+,HOMECARE - SPOT,2103106617,1000079295
02.06.2020,ADULT SOCIAL CARE,THAMES HOMECARE SERVICE LTD,254.38,PHY LTS 18-64,HOMECARE - SPOT,2103106649,1000079295
02.06.2020,ADULT SOCIAL CARE,THAMES HOMECARE SERVICE LTD,290.72,PHY LTS 18-64,HOMECARE - SPOT,2103106684,1000079295
02.06.2020,ADULT SOCIAL CARE,THAMES HOMECARE SERVICE LTD,327.06,PHY LTS 18-64,HOMECARE - SPOT,2103106680,1000079295
02.06.2020,ADULT SOCIAL CARE,THAMES HOMECARE SERVICE LTD,349.77,PHY LTS 18-64,HOMECARE - SPOT,2103106603,1000079295
02.06.2020,ADULT SOCIAL CARE,THAMES HOMECARE SERVICE LTD,386.11,PHY LTS 18-64,HOMECARE - SPOT,2103106697,1000079295
02.06.2020,ADULT SOCIAL CARE,THAMES HOMECARE SERVICE LTD,572.36,PHY LTS 18-64,HOMECARE - SPOT,2103106639,1000079295
02.06.2020,ADULT SOCIAL CARE,THAMES HOMECARE SERVICE LTD,572.36,PHY LTS 18-64,HOMECARE - SPOT,2103106657,1000079295
02.06.2020,ADULT SOCIAL CARE,THAMES HOMECARE SERVICE LTD,635.95,PHY LTS 18-64,HOMECARE - SPOT,2103106656,1000079295
02.06.2020,ADULT SOCIAL CARE,THAMES HOMECARE SERVICE LTD,649.58,PHY LTS 18-64,HOMECARE - SPOT,2103106668,1000079295
02.06.2020,ADULT SOCIAL CARE,THAMES HOMECARE SERVICE LTD,726.80,PHY LTS 18-64,HOMECARE - SPOT,2103106674,1000079295
02.06.2020,ADULT SOCIAL CARE,THAMES HOMECARE SERVICE LTD,844.91,PHY LTS 18-64,HOMECARE - SPOT,2103106667,1000079295
02.06.2020,ADULT SOCIAL CARE,THAMES HOMECARE SERVICE LTD,935.76,PHY LTS 18-64,HOMECARE - SPOT,2103106646,1000079295
02.06.2020,ADULT SOCIAL CARE,THAMES HOMECARE SERVICE LTD,763.14,PHY LTS 65+,HOMECARE - C&V,2103106623,1000079295
02.06.2020,ADULT SOCIAL CARE,THAMES HOMECARE SERVICE LTD,"1,335.50",PHY LTS 65+,HOMECARE - C&V,2103106678,1000079295
02.06.2020,ADULT SOCIAL CARE,CARE DIRECT UK LTD,505.88,PHY LTS 65+,HOMECARE - SPOT,2103106700,1000066322
02.06.2020,ADULT SOCIAL CARE,CARE DIRECT UK LTD,559.13,PHY LTS 65+,HOMECARE - SPOT,2103106698,1000066322
02.06.2020,ADULT SOCIAL CARE,PROFAD CARE AGENCY,"3,054.65",PHY LTS 65+,HOMECARE - SPOT,2103106702,1000079032
02.06.2020,ADULT SOCIAL CARE,THAMES HOMECARE SERVICE LTD,254.38,PHY LTS 65+,HOMECARE - SPOT,2103106659,1000079295
02.06.2020,ADULT SOCIAL CARE,THAMES HOMECARE SERVICE LTD,254.38,PHY LTS 65+,HOMECARE - SPOT,2103106682,1000079295
02.06.2020,ADULT SOCIAL CARE,THAMES HOMECARE SERVICE LTD,258.92,PHY LTS 65+,HOMECARE - SPOT,2103106650,1000079295
02.06.2020,ADULT SOCIAL CARE,THAMES HOMECARE SERVICE LTD,268.01,PHY LTS 65+,HOMECARE - SPOT,2103106597,1000079295
02.06.2020,ADULT SOCIAL CARE,THAMES HOMECARE SERVICE LTD,268.01,PHY LTS 65+,HOMECARE - SPOT,2103106642,1000079295
02.06.2020,ADULT SOCIAL CARE,THAMES HOMECARE SERVICE LTD,272.55,PHY LTS 65+,HOMECARE - SPOT,2103106605,1000079295
02.06.2020,ADULT SOCIAL CARE,THAMES HOMECARE SERVICE LTD,286.18,PHY LTS 65+,HOMECARE - SPOT,2103106645,1000079295
02.06.2020,ADULT SOCIAL CARE,THAMES HOMECARE SERVICE LTD,349.77,PHY LTS 65+,HOMECARE - SPOT,2103106609,1000079295
02.06.2020,ADULT SOCIAL CARE,THAMES HOMECARE SERVICE LTD,413.37,PHY LTS 65+,HOMECARE - SPOT,2103106611,1000079295
02.06.2020,ADULT SOCIAL CARE,THAMES HOMECARE SERVICE LTD,413.37,PHY LTS 65+,HOMECARE - SPOT,2103106644,1000079295
02.06.2020,ADULT SOCIAL CARE,THAMES HOMECARE SERVICE LTD,508.76,PHY LTS 65+,HOMECARE - SPOT,2103106664,1000079295
02.06.2020,ADULT SOCIAL CARE,THAMES HOMECARE SERVICE LTD,572.36,PHY LTS 65+,HOMECARE - SPOT,2103106653,1000079295
02.06.2020,ADULT SOCIAL CARE,THAMES HOMECARE SERVICE LTD,572.36,PHY LTS 65+,HOMECARE - SPOT,2103106669,1000079295
02.06.2020,ADULT SOCIAL CARE,THAMES HOMECARE SERVICE LTD,572.36,PHY LTS 65+,HOMECARE - SPOT,2103106683,1000079295
02.06.2020,ADULT SOCIAL CARE,THAMES HOMECARE SERVICE LTD,572.36,PHY LTS 65+,HOMECARE - SPOT,2103106696,1000079295
02.06.2020,ADULT SOCIAL CARE,THAMES HOMECARE SERVICE LTD,576.90,PHY LTS 65+,HOMECARE - SPOT,2103106651,1000079295
02.06.2020,ADULT SOCIAL CARE,THAMES HOMECARE SERVICE LTD,599.61,PHY LTS 65+,HOMECARE - SPOT,2103106652,1000079295
02.06.2020,ADULT SOCIAL CARE,THAMES HOMECARE SERVICE LTD,635.95,PHY LTS 65+,HOMECARE - SPOT,2103106662,1000079295
02.06.2020,ADULT SOCIAL CARE,THAMES HOMECARE SERVICE LTD,640.49,PHY LTS 65+,HOMECARE - SPOT,2103106655,1000079295
02.06.2020,ADULT SOCIAL CARE,THAMES HOMECARE SERVICE LTD,663.21,PHY LTS 65+,HOMECARE - SPOT,2103106666,1000079295
02.06.2020,ADULT SOCIAL CARE,THAMES HOMECARE SERVICE LTD,663.21,PHY LTS 65+,HOMECARE - SPOT,2103106670,1000079295
02.06.2020,ADULT SOCIAL CARE,THAMES HOMECARE SERVICE LTD,699.55,PHY LTS 65+,HOMECARE - SPOT,2103106693,1000079295
02.06.2020,ADULT SOCIAL CARE,THAMES HOMECARE SERVICE LTD,713.17,PHY LTS 65+,HOMECARE - SPOT,2103106619,1000079295
02.06.2020,ADULT SOCIAL CARE,THAMES HOMECARE SERVICE LTD,799.48,PHY LTS 65+,HOMECARE - SPOT,2103106671,1000079295
02.06.2020,ADULT SOCIAL CARE,THAMES HOMECARE SERVICE LTD,849.45,PHY LTS 65+,HOMECARE - SPOT,2103106676,1000079295
02.06.2020,ADULT SOCIAL CARE,THAMES HOMECARE SERVICE LTD,853.99,PHY LTS 65+,HOMECARE - SPOT,2103106643,1000079295
02.06.2020,ADULT SOCIAL CARE,THAMES HOMECARE SERVICE LTD,"1,044.78",PHY LTS 65+,HOMECARE - SPOT,2103106694,1000079295
02.06.2020,ADULT SOCIAL CARE,THAMES HOMECARE SERVICE LTD,"1,480.86",PHY LTS 65+,HOMECARE - SPOT,2103106688,1000079295
02.06.2020,ADULT SOCIAL CARE,THAMES HOMECARE SERVICE LTD,304.35,SEN LTS 65+,HOMECARE - SPOT,2103106663,1000079295
02.06.2020,C&AS,HOLTWOOD CONSTRUCTION LTD,"485,775.00",COVID 19 SOCIAL CARE COSTS,EXTERNAL AGENCIES AND BODIES,6101937215,CHAPS PAYMENT
02.06.2020,CENTRAL FUNCTIONS,BRONZEWOOD CONSTRUCTION LIMITED,"3,600.00",ENVIRONMENTAL ESTATE WORKS,EXTERNAL AGENCIES AND BODIES,5902419276,1000066396
02.06.2020,CHILDREN'S SERVICES,THE COMPLETE WORKS INDEPENDENT SCHOOL,"7,175.00",ALTERNATIVE PROVISION,EXTERNAL AGENCIES AND BODIES,5902419332,1000033256
02.06.2020,CHILDREN'S SERVICES,THE COMPLETE WORKS INDEPENDENT SCHOOL,"7,175.00",ALTERNATIVE PROVISION,EXTERNAL AGENCIES AND BODIES,5902419333,1000033256
02.06.2020,CHILDREN'S SERVICES,THE COMPLETE WORKS INDEPENDENT SCHOOL,"7,175.00",ALTERNATIVE PROVISION,EXTERNAL AGENCIES AND BODIES,5902419335,1000033256
02.06.2020,CHILDREN'S SERVICES,THE COMPLETE WORKS INDEPENDENT SCHOOL,"7,175.00",ALTERNATIVE PROVISION,EXTERNAL AGENCIES AND BODIES,5902419337,1000033256
02.06.2020,CHILDREN'S SERVICES,ISABELLE GRAVENSTEIN T/A REVIVAL,348.00,CENTRAL SUPPORT,OTHER PAYMENTS FOR CLIENTS,5902419340,1000027424
02.06.2020,CHILDREN'S SERVICES,WILLISPALMER,932.00,FAMILY ASSESSMENTS,RESIDENTIAL CARE,2103106706,1000056409
02.06.2020,CHILDREN'S SERVICES,KING EDWARDS SCHOOL WITLEY,"2,662.50",PUPIL PREMIUM CURRENT YEAR,EXTERNAL AGENCIES AND BODIES,5902419249,1000078154
02.06.2020,CHILDREN'S SERVICES,PURPLE PEBBLES(CHILD CARE) SERVICES,"1,882.14",RESOURCE PANEL,OTHER PAYMENTS FOR CLIENTS,2103106707,1000070705
02.06.2020,CHILDREN'S SERVICES,ROYAL HOLLOWAY AND BEDFORD NEW COLLEGE (RHBNC),"9,250.00",SCHOLARSHIP SCHEME,EXTERNAL AGENCIES AND BODIES,5902419258,11321639
02.06.2020,COMMUNITIES,THAMES HOMECARE SERVICE LTD,286.18,NO RECOURSE TO PUBLIC FUNDS,HOMECARE - C&V,2103106601,1000079295
02.06.2020,COMMUNITIES,ROSEMONT CARE LTD,"1,443.76",NO RECOURSE TO PUBLIC FUNDS,HOMECARE - C&V,2103106703,1000084219
02.06.2020,CUSTOMER EXPERIENCE HGF,REST UP,"8,400.00",COVID-19 SUPPORT,EXTERNAL AGENCIES AND BODIES,5902419334,1000084299
02.06.2020,CUSTOMER EXPERIENCE HGF,REST UP,"29,400.00",COVID-19 SUPPORT,EXTERNAL AGENCIES AND BODIES,5902419330,1000084299
02.06.2020,CUSTOMER EXPERIENCE HGF,JAMES MARTIN MUGWANYA T/A JOHN SMITH REMOVALS,500.00,COVID-19 SUPPORT,REMOVAL EXPENSES,5902419065,1000078552
02.06.2020,CUSTOMER EXPERIENCE HGF,MADEIRA FLOWER LTD T/A MARIAS KITCHEN,300.00,HOUSING OPTIONS,REFRESHMENTS FOR MEETINGS,5902419285,1000058840
02.06.2020,CUSTOMER EXPERIENCE HGF,FINEFAIR LTD,"6,635.41",PSL PLACEMENTS,EXTERNAL AGENCIES AND BODIES,5902419336,1000075570
02.06.2020,ENVIRONMENT AND LEISURE,CONWAY AECOM LTD,521.73,CAPITAL PS (LEISURE),CONSTR'N SUB CONTRACT - NON CERTIFICATED,5902419293,1000071205
02.06.2020,ENVIRONMENT AND LEISURE,CONWAY AECOM LTD,"10,473.73",CAPITAL PS (LEISURE),CONSTRUCTION SUB CONTRACT -CERTIFICATED,2103106582,3000001595
02.06.2020,ENVIRONMENT DIRECTORATE,CONWAY AECOM LTD,"1,960.00",FLOOD RISK MANAGEMENT,HIGHWAYS TERM CONTRACT,5902419322,1000071205
02.06.2020,ENVIRONMENT DIRECTORATE,CONWAY AECOM LTD,"4,423.89",FLOOD RISK MANAGEMENT,HIGHWAYS TERM CONTRACT,5902419323,1000071205
02.06.2020,ENVIRONMENT DIRECTORATE,CONWAY AECOM LTD,"6,292.00",FLOOD RISK MANAGEMENT,HIGHWAYS TERM CONTRACT,5902419325,1000071205
02.06.2020,ENVIRONMENT DIRECTORATE,BATES WELLS & BRAITHWAITE LLP,"39,249.20",STREET TRADING A/C,LEGAL FEES & COURT COSTS,5902418649,1000035278
02.06.2020,ENVIRONMENT DIRECTORATE,TYCO INTEGRATED FIRE & SECURITY,889.32,TOWN CENTRE CCTV,OTHER CONTRACTORS,5902419287,1000077948
02.06.2020,FINANCE & GOVERNANCE,CAPITA BUSINESS SERVICES LTD,"39,328.42",CORPORATE BANKING CONTRACT,STREAMLINE RECEIPTS,6101937202,DIRECT DEBIT PAYMENT
02.06.2020,HOUSING,DUCTCLEAN (UK) LTD,"19,673.98",DUCTCLEAN,I-WORLD CONTRACTORS HOLDING ACCOUNT,2103106585,3000001635
02.06.2020,HOUSING,OCO LIMITED,"138,474.17",PAYMENTS CONTROL ACCOUNT - OCO,I-WORLD CONTRACTORS HOLDING ACCOUNT,5902419277,1006066
02.06.2020,HOUSING,SMITH & BYFORD LTD,"113,765.58",SMITH AND BYFORD,I-WORLD CONTRACTORS HOLDING ACCOUNT,5902419278,11212119
02.06.2020,HOUSING GENERAL FUND,FAITHFUL & GOULD,"6,968.00",CAPITAL PS (STRAT SERV),CONSTRUCTION FEES - QUANTITY SURVEYOR,5902419341,1000061390
02.06.2020,HOUSING HRA,PITMAN TOZER ARCHITECTS LTD,"28,045.50",CAPITAL PS (HRA),CONSTRUCTION FEES - ARCHITECT,5902419036,1000081590
02.06.2020,HOUSING HRA,PRB ESTATES LTD,"59,467.10",CAPITAL PS (HRA),CONSTRUCTION MAIN CONTRACT,2103106586,3000001691
02.06.2020,HOUSING HRA,GEOFFREY OSBORNE LIMITED,"136,587.50",CAPITAL PS (HRA),CONSTRUCTION MAIN CONTRACT -CERTIFICATED,2103106709,3000000753
02.06.2020,HOUSING HRA,METCALFE COPEMAN & PETTEFAR LLP,330.00,CAPITAL PS (REGEN),CONSTRUCTION FEES - LEGAL,5902418398,1000050951
02.06.2020,HOUSING HRA,METCALFE COPEMAN & PETTEFAR LLP,"1,135.60",CAPITAL PS (REGEN),CONSTRUCTION FEES - LEGAL,5902418397,1000050951
02.06.2020,LEISURE DIRECTORATE,LEE SNASHFOLD CREMATORIA MANAGEMENT,"3,619.95",CREMATORIUM,PROFESSIONAL FEES,5902419103,1000077845
02.06.2020,LEISURE DIRECTORATE,CITY OF LONDON LIBRARIES & ART GALLERIES,862.50,LOCAL HISTORY LIBRARY,REMOVAL EXPENSES,5902419338,1000060358
02.06.2020,MODERNISATION HGF,CAPITA SECURE INFORMATION,"77,599.76",IT MANAGEMENT,COMMS & COMPUTING CONTRACT CHARGES,5902419250,1000070739
02.06.2020,MODERNISATION HGF,VIRGIN MEDIA,267.07,IT MANAGEMENT,DATA COMMUNICATIONS,5902419247,1000026457
02.06.2020,MODERNISATION HGF,VIRGIN MEDIA,"1,040.00",IT MANAGEMENT,DATA COMMUNICATIONS,5902419245,1000026457
02.06.2020,MODERNISATION HGF,VIRGIN MEDIA,"3,156.71",IT MANAGEMENT,DATA COMMUNICATIONS,5902419254,1000026457
02.06.2020,MODERNISATION HGF,VIRGIN MEDIA,"4,815.00",IT MANAGEMENT,DATA COMMUNICATIONS,5902419244,1000026457
02.06.2020,MODERNISATION HGF,VIRGIN MEDIA,"26,329.44",IT MANAGEMENT,DATA COMMUNICATIONS,5902419243,1000026457
02.06.2020,NEW BUILD,SHARPE PRITCHARD LLP,"4,900.00",HOMEBUILDING CAPACITY FUND,OTHER PUBLIC AGENCY GRANTS & CONTRIBUTIONS,5902419241,1790085
02.06.2020,NEW BUILD,SHARPE PRITCHARD LLP,"8,373.00",HOMEBUILDING CAPACITY FUND,OTHER PUBLIC AGENCY GRANTS & CONTRIBUTIONS,5902419242,1790085
02.06.2020,PLANNING AND TRANSPORT,SOUTHWARK NEWSPAPER LTD,504.00,DEVELOPMENT CONTROL ADMINISTRATION,MARKETING & PUBLICITY SERVICES,5902419280,1556957
02.06.2020,PLANNING AND TRANSPORT,PLANNING JUNGLE LTD,300.00,DEVELOPMENT CONTROL ADMINISTRATION,SUBSCRIPTIONS,5902419282,1000071938
02.06.2020,RESIDENT SERVICES,NPOWER,683.18,SUPPORTED HOSTELS,ELECTRICITY,5902419294,1000032342
02.06.2020,RESIDENT SERVICES HGF,BRITISH GAS TRADING LTD,-489.04,ILDERTON ROAD PERM,GAS,5902414937,1000055977
02.06.2020,RESIDENT SERVICES HGF,BRITISH GAS TRADING LTD,-431.83,ILDERTON ROAD PERM,GAS,5902414935,1000055977
02.06.2020,RESIDENT SERVICES HGF,BRITISH GAS TRADING LTD,377.27,ILDERTON ROAD PERM,GAS,5902414941,1000055977
02.06.2020,RESIDENT SERVICES HGF,THAMES WATER UTILITIES LTD,340.73,ILDERTON ROAD PERM,WATER,5902419275,11003005
02.06.2020,SBS SUPPORT,SANDERSONS BUILDING SERVICES LTD,"47,588.91",SBS - HOLDING ACCOUNT,OTHER CONTRACTORS,2103106708,3000002065
02.06.2020,SBS SUPPORT,ARMINA LTD,"44,269.48",SBS - HOLDING ACCOUNT,OTHER CONTRACTORS,2103106583,3000002121
03.06.2020,ADULT SOCIAL CARE,MEDEQUIP ASSISTIVE TECHNOLOGY LTD,"8,048.11",ICES CONTRACT,EQUIPMENT PURCHASE & REPAIR,5902419402,1000062775
03.06.2020,ADULT SOCIAL CARE,MEDEQUIP ASSISTIVE TECHNOLOGY LTD,"179,655.89",ICES CONTRACT,EQUIPMENT PURCHASE & REPAIR,5902419401,1000062775
03.06.2020,ADULT SOCIAL CARE,INTERSERVE HEALTHCARE,351.15,SPECIALIST CARE,SECTION 17 PAYMENTS TO AGENCIES/CARERS,2103107659,1000049612
03.06.2020,ASSET MANAGEMENT,STANNAH LIFT SERVICES LTD,"2,545.00",ADAPTATIONS,BUILDING R&M,5902419552,1063595
03.06.2020,ASSET MANAGEMENT,SHARPE PRITCHARD LLP,391.00,REPAIRS OPERATIONS,PAYMENTS FOR LEGAL SERVICES,5902419467,1790085
03.06.2020,ASSET MANAGEMENT HGF,LONDON TOOLS LIMITED,285.00,HANDY PERSONS,MATERIALS,5902419370,1000003017
03.06.2020,ASSET MANAGEMENT HGF,LONDON TOOLS LIMITED,285.00,HANDY PERSONS,MATERIALS,5902419442,1000003017
03.06.2020,CHIEF EXECUTIVE,PLAYLE & PARTNERS,693.00,CAPITAL PS (REGEN),CONSTRUCTION FEES,5902419376,1000043982
03.06.2020,CHILDREN'S SERVICES,REDACTED PERSONAL DATA,465.52,ADOPTION PLACEMENTS & INTER AGENCY,PAYMENTS TO CARERS,REDACTED,REDACTED
03.06.2020,CHILDREN'S SERVICES,REDACTED PERSONAL DATA,304.64,ADOPTION PLACEMENTS & INTER AGENCY,PAYMENTS TO CARERS,REDACTED,REDACTED
03.06.2020,CHILDREN'S SERVICES,REDACTED PERSONAL DATA,559.06,ADOPTION PLACEMENTS & INTER AGENCY,PAYMENTS TO CARERS,REDACTED,REDACTED
03.06.2020,CHILDREN'S SERVICES,REDACTED PERSONAL DATA,695.04,ADOPTION PLACEMENTS & INTER AGENCY,PAYMENTS TO CARERS,REDACTED,REDACTED
03.06.2020,CHILDREN'S SERVICES,REDACTED PERSONAL DATA,375.54,ADOPTION PLACEMENTS & INTER AGENCY,PAYMENTS TO CARERS,REDACTED,REDACTED
03.06.2020,CHILDREN'S SERVICES,REDACTED PERSONAL DATA,375.54,ADOPTION PLACEMENTS & INTER AGENCY,PAYMENTS TO CARERS,REDACTED,REDACTED
03.06.2020,CHILDREN'S SERVICES,REDACTED PERSONAL DATA,500.00,ADOPTION PLACEMENTS & INTER AGENCY,PAYMENTS TO CARERS,REDACTED,REDACTED
03.06.2020,CHILDREN'S SERVICES,REDACTED PERSONAL DATA,404.46,ADOPTION PLACEMENTS & INTER AGENCY,PAYMENTS TO CARERS,REDACTED,REDACTED
03.06.2020,CHILDREN'S SERVICES,REDACTED PERSONAL DATA,400.84,ADOPTION PLACEMENTS & INTER AGENCY,PAYMENTS TO CARERS,REDACTED,REDACTED
03.06.2020,CHILDREN'S SERVICES,REDACTED PERSONAL DATA,635.34,ADOPTION PLACEMENTS & INTER AGENCY,PAYMENTS TO CARERS,REDACTED,REDACTED
03.06.2020,CHILDREN'S SERVICES,REDACTED PERSONAL DATA,375.54,ADOPTION PLACEMENTS & INTER AGENCY,PAYMENTS TO CARERS,REDACTED,REDACTED
03.06.2020,CHILDREN'S SERVICES,REDACTED PERSONAL DATA,653.06,ADOPTION PLACEMENTS & INTER AGENCY,PAYMENTS TO CARERS,REDACTED,REDACTED
03.06.2020,CHILDREN'S SERVICES,REDACTED PERSONAL DATA,465.54,ADOPTION PLACEMENTS & INTER AGENCY,PAYMENTS TO CARERS,REDACTED,REDACTED
03.06.2020,CHILDREN'S SERVICES,REDACTED PERSONAL DATA,465.54,ADOPTION PLACEMENTS & INTER AGENCY,PAYMENTS TO CARERS,REDACTED,REDACTED
03.06.2020,CHILDREN'S SERVICES,REDACTED PERSONAL DATA,400.84,ADOPTION PLACEMENTS & INTER AGENCY,PAYMENTS TO CARERS,REDACTED,REDACTED
03.06.2020,CHILDREN'S SERVICES,REDACTED PERSONAL DATA,255.22,ADOPTION PLACEMENTS & INTER AGENCY,PAYMENTS TO CARERS,REDACTED,REDACTED
03.06.2020,CHILDREN'S SERVICES,REDACTED PERSONAL DATA,359.43,ADOPTION PLACEMENTS & INTER AGENCY,PAYMENTS TO CARERS,REDACTED,REDACTED
03.06.2020,CHILDREN'S SERVICES,REDACTED PERSONAL DATA,375.54,ADOPTION PLACEMENTS & INTER AGENCY,PAYMENTS TO CARERS,REDACTED,REDACTED
03.06.2020,CHILDREN'S SERVICES,REDACTED PERSONAL DATA,451.80,ADOPTION PLACEMENTS & INTER AGENCY,PAYMENTS TO CARERS,REDACTED,REDACTED
03.06.2020,CHILDREN'S SERVICES,REDACTED PERSONAL DATA,359.44,ADOPTION PLACEMENTS & INTER AGENCY,PAYMENTS TO CARERS,REDACTED,REDACTED
03.06.2020,CHILDREN'S SERVICES,REDACTED PERSONAL DATA,319.36,ADOPTION PLACEMENTS & INTER AGENCY,PAYMENTS TO CARERS,REDACTED,REDACTED
03.06.2020,CHILDREN'S SERVICES,REDACTED PERSONAL DATA,465.48,ADOPTION PLACEMENTS & INTER AGENCY,PAYMENTS TO CARERS,REDACTED,REDACTED
03.06.2020,CHILDREN'S SERVICES,REDACTED PERSONAL DATA,386.00,ADOPTION PLACEMENTS & INTER AGENCY,PAYMENTS TO CARERS,REDACTED,REDACTED
03.06.2020,CHILDREN'S SERVICES,REDACTED PERSONAL DATA,465.54,ADOPTION PLACEMENTS & INTER AGENCY,PAYMENTS TO CARERS,REDACTED,REDACTED
03.06.2020,CHILDREN'S SERVICES,REDACTED PERSONAL DATA,465.54,ADOPTION PLACEMENTS & INTER AGENCY,PAYMENTS TO CARERS,REDACTED,REDACTED
03.06.2020,CHILDREN'S SERVICES,REDACTED PERSONAL DATA,255.22,ADOPTION PLACEMENTS & INTER AGENCY,PAYMENTS TO CARERS,REDACTED,REDACTED
03.06.2020,CHILDREN'S SERVICES,REDACTED PERSONAL DATA,269.22,ADOPTION PLACEMENTS & INTER AGENCY,PAYMENTS TO CARERS,REDACTED,REDACTED
03.06.2020,CHILDREN'S SERVICES,REDACTED PERSONAL DATA,705.24,ADOPTION PLACEMENTS & INTER AGENCY,PAYMENTS TO CARERS,REDACTED,REDACTED
03.06.2020,CHILDREN'S SERVICES,REDACTED PERSONAL DATA,777.36,ADOPTION PLACEMENTS & INTER AGENCY,PAYMENTS TO CARERS,REDACTED,REDACTED
03.06.2020,CHILDREN'S SERVICES,REDACTED PERSONAL DATA,512.02,ADOPTION PLACEMENTS & INTER AGENCY,PAYMENTS TO CARERS,REDACTED,REDACTED
03.06.2020,CHILDREN'S SERVICES,REDACTED PERSONAL DATA,717.14,ADOPTION PLACEMENTS & INTER AGENCY,PAYMENTS TO CARERS,REDACTED,REDACTED
03.06.2020,CHILDREN'S SERVICES,REDACTED PERSONAL DATA,251.12,ADOPTION PLACEMENTS & INTER AGENCY,PAYMENTS TO CARERS,REDACTED,REDACTED
03.06.2020,CHILDREN'S SERVICES,REDACTED PERSONAL DATA,375.54,ADOPTION PLACEMENTS & INTER AGENCY,PAYMENTS TO CARERS,REDACTED,REDACTED
03.06.2020,CHILDREN'S SERVICES,REDACTED PERSONAL DATA,375.54,ADOPTION PLACEMENTS & INTER AGENCY,PAYMENTS TO CARERS,REDACTED,REDACTED
03.06.2020,CHILDREN'S SERVICES,REDACTED PERSONAL DATA,457.14,ADOPTION PLACEMENTS & INTER AGENCY,PAYMENTS TO CARERS,REDACTED,REDACTED
03.06.2020,CHILDREN'S SERVICES,REDACTED PERSONAL DATA,502.00,ADOPTION PLACEMENTS & INTER AGENCY,PAYMENTS TO CARERS,REDACTED,REDACTED
03.06.2020,CHILDREN'S SERVICES,REDACTED PERSONAL DATA,375.54,ADOPTION PLACEMENTS & INTER AGENCY,PAYMENTS TO CARERS,REDACTED,REDACTED
03.06.2020,CHILDREN'S SERVICES,REDACTED PERSONAL DATA,640.90,ADOPTION PLACEMENTS & INTER AGENCY,PAYMENTS TO CARERS,REDACTED,REDACTED
03.06.2020,CHILDREN'S SERVICES,REDACTED PERSONAL DATA,382.30,ADOPTION PLACEMENTS & INTER AGENCY,PAYMENTS TO CARERS,REDACTED,REDACTED
03.06.2020,CHILDREN'S SERVICES,REDACTED PERSONAL DATA,382.30,ADOPTION PLACEMENTS & INTER AGENCY,PAYMENTS TO CARERS,REDACTED,REDACTED
03.06.2020,CHILDREN'S SERVICES,REDACTED PERSONAL DATA,375.54,ADOPTION PLACEMENTS & INTER AGENCY,PAYMENTS TO CARERS,REDACTED,REDACTED
03.06.2020,CHILDREN'S SERVICES,REDACTED PERSONAL DATA,623.94,ADOPTION PLACEMENTS & INTER AGENCY,PAYMENTS TO CARERS,REDACTED,REDACTED
03.06.2020,CHILDREN'S SERVICES,REDACTED PERSONAL DATA,278.54,ADOPTION PLACEMENTS & INTER AGENCY,PAYMENTS TO CARERS,REDACTED,REDACTED
03.06.2020,CHILDREN'S SERVICES,REDACTED PERSONAL DATA,485.22,ADOPTION PLACEMENTS & INTER AGENCY,PAYMENTS TO CARERS,REDACTED,REDACTED
03.06.2020,CHILDREN'S SERVICES,REDACTED PERSONAL DATA,368.52,ADOPTION PLACEMENTS & INTER AGENCY,PAYMENTS TO CARERS,REDACTED,REDACTED
03.06.2020,CHILDREN'S SERVICES,REDACTED PERSONAL DATA,252.90,ADOPTION PLACEMENTS & INTER AGENCY,PAYMENTS TO CARERS,REDACTED,REDACTED
03.06.2020,CHILDREN'S SERVICES,REDACTED PERSONAL DATA,253.56,ADOPTION PLACEMENTS & INTER AGENCY,PAYMENTS TO CARERS,REDACTED,REDACTED
03.06.2020,CHILDREN'S SERVICES,REDACTED PERSONAL DATA,382.30,ADOPTION PLACEMENTS & INTER AGENCY,PAYMENTS TO CARERS,REDACTED,REDACTED
03.06.2020,CHILDREN'S SERVICES,REDACTED PERSONAL DATA,382.30,ADOPTION PLACEMENTS & INTER AGENCY,PAYMENTS TO CARERS,REDACTED,REDACTED
03.06.2020,CHILDREN'S SERVICES,REDACTED PERSONAL DATA,351.42,ADOPTION PLACEMENTS & INTER AGENCY,PAYMENTS TO CARERS,REDACTED,REDACTED
03.06.2020,CHILDREN'S SERVICES,REDACTED PERSONAL DATA,484.92,ADOPTION PLACEMENTS & INTER AGENCY,PAYMENTS TO CARERS,REDACTED,REDACTED
03.06.2020,CHILDREN'S SERVICES,REDACTED PERSONAL DATA,530.00,ADOPTION PLACEMENTS & INTER AGENCY,PAYMENTS TO CARERS,REDACTED,REDACTED
03.06.2020,CHILDREN'S SERVICES,REDACTED PERSONAL DATA,908.00,ADOPTION PLACEMENTS & INTER AGENCY,PAYMENTS TO CARERS,REDACTED,REDACTED
03.06.2020,CHILDREN'S SERVICES,REDACTED PERSONAL DATA,738.32,ADOPTION PLACEMENTS & INTER AGENCY,PAYMENTS TO CARERS,REDACTED,REDACTED
03.06.2020,CHILDREN'S SERVICES,REDACTED PERSONAL DATA,695.12,ADOPTION PLACEMENTS & INTER AGENCY,PAYMENTS TO CARERS,REDACTED,REDACTED
03.06.2020,CHILDREN'S SERVICES,REDACTED PERSONAL DATA,293.98,ADOPTION PLACEMENTS & INTER AGENCY,PAYMENTS TO CARERS,REDACTED,REDACTED
03.06.2020,CHILDREN'S SERVICES,REDACTED PERSONAL DATA,251.94,ADOPTION PLACEMENTS & INTER AGENCY,PAYMENTS TO CARERS,REDACTED,REDACTED
03.06.2020,CHILDREN'S SERVICES,REDACTED PERSONAL DATA,652.90,ADOPTION PLACEMENTS & INTER AGENCY,PAYMENTS TO CARERS,REDACTED,REDACTED
03.06.2020,CHILDREN'S SERVICES,REDACTED PERSONAL DATA,652.90,ADOPTION PLACEMENTS & INTER AGENCY,PAYMENTS TO CARERS,REDACTED,REDACTED
03.06.2020,CHILDREN'S SERVICES,REDACTED PERSONAL DATA,712.30,ADOPTION PLACEMENTS & INTER AGENCY,PAYMENTS TO CARERS,REDACTED,REDACTED
03.06.2020,CHILDREN'S SERVICES,REDACTED PERSONAL DATA,767.68,ADOPTION PLACEMENTS & INTER AGENCY,PAYMENTS TO CARERS,REDACTED,REDACTED
03.06.2020,CHILDREN'S SERVICES,REDACTED PERSONAL DATA,400.18,ADOPTION PLACEMENTS & INTER AGENCY,PAYMENTS TO CARERS,REDACTED,REDACTED
03.06.2020,CHILDREN'S SERVICES,REDACTED PERSONAL DATA,682.30,ADOPTION PLACEMENTS & INTER AGENCY,PAYMENTS TO CARERS,REDACTED,REDACTED
03.06.2020,CHILDREN'S SERVICES,REDACTED PERSONAL DATA,682.30,ADOPTION PLACEMENTS & INTER AGENCY,PAYMENTS TO CARERS,REDACTED,REDACTED
03.06.2020,CHILDREN'S SERVICES,REDACTED PERSONAL DATA,588.42,ADOPTION PLACEMENTS & INTER AGENCY,PAYMENTS TO CARERS,REDACTED,REDACTED
03.06.2020,CHILDREN'S SERVICES,REDACTED PERSONAL DATA,"1,053.20",ADOPTION PLACEMENTS & INTER AGENCY,PAYMENTS TO CARERS,REDACTED,REDACTED
03.06.2020,CHILDREN'S SERVICES,REDACTED PERSONAL DATA,349.68,ADOPTION PLACEMENTS & INTER AGENCY,PAYMENTS TO CARERS,REDACTED,REDACTED
03.06.2020,CHILDREN'S SERVICES,REDACTED PERSONAL DATA,363.68,ADOPTION PLACEMENTS & INTER AGENCY,PAYMENTS TO CARERS,REDACTED,REDACTED
03.06.2020,CHILDREN'S SERVICES,REDACTED PERSONAL DATA,386.00,ADOPTION PLACEMENTS & INTER AGENCY,PAYMENTS TO CARERS,REDACTED,REDACTED
03.06.2020,CHILDREN'S SERVICES,REDACTED PERSONAL DATA,618.60,ADOPTION PLACEMENTS & INTER AGENCY,PAYMENTS TO CARERS,REDACTED,REDACTED
03.06.2020,CHILDREN'S SERVICES,REDACTED PERSONAL DATA,660.00,ADOPTION PLACEMENTS & INTER AGENCY,PAYMENTS TO CARERS,REDACTED,REDACTED
03.06.2020,CHILDREN'S SERVICES,REDACTED PERSONAL DATA,660.00,ADOPTION PLACEMENTS & INTER AGENCY,PAYMENTS TO CARERS,REDACTED,REDACTED
03.06.2020,CHILDREN'S SERVICES,THE APPROPRIATE ADULT SERVICE LTD,"1,700.00",APPROPRIATE ADULT CO-ORDINATOR,OVERTIME & ADDITIONAL PAYMENTS,5902419255,1000047682
03.06.2020,CHILDREN'S SERVICES,IN PROFESSIONAL DEVELOPMENT LIMITED,"2,950.00",CENTRAL COSTS - SEN,TRAINING,5902419572,1000084473
03.06.2020,CHILDREN'S SERVICES,REDACTED PERSONAL DATA,300.00,DISABILITY & HIV,ADDITIONAL PAYMENTS TO AGENCIES/CARERS,REDACTED,REDACTED
03.06.2020,CHILDREN'S SERVICES,REDACTED PERSONAL DATA,300.00,DISABILITY & HIV,ADDITIONAL PAYMENTS TO AGENCIES/CARERS,REDACTED,REDACTED
03.06.2020,CHILDREN'S SERVICES,REDACTED PERSONAL DATA,300.00,DISABILITY & HIV,ADDITIONAL PAYMENTS TO AGENCIES/CARERS,REDACTED,REDACTED
03.06.2020,CHILDREN'S SERVICES,REDACTED PERSONAL DATA,300.00,DISABILITY & HIV,ADDITIONAL PAYMENTS TO AGENCIES/CARERS,REDACTED,REDACTED
03.06.2020,CHILDREN'S SERVICES,REDACTED PERSONAL DATA,746.00,DISABILITY & HIV,PAYMENTS TO CARERS,REDACTED,REDACTED
03.06.2020,CHILDREN'S SERVICES,REDACTED PERSONAL DATA,842.00,DISABILITY & HIV,PAYMENTS TO CARERS,REDACTED,REDACTED
03.06.2020,CHILDREN'S SERVICES,REDACTED PERSONAL DATA,842.00,DISABILITY & HIV,PAYMENTS TO CARERS,REDACTED,REDACTED
03.06.2020,CHILDREN'S SERVICES,REDACTED PERSONAL DATA,932.00,DISABILITY & HIV,PAYMENTS TO CARERS,REDACTED,REDACTED
03.06.2020,CHILDREN'S SERVICES,REDACTED PERSONAL DATA,842.00,DISABILITY & HIV,PAYMENTS TO CARERS,REDACTED,REDACTED
03.06.2020,CHILDREN'S SERVICES,REDACTED PERSONAL DATA,810.00,DISABILITY & HIV,PAYMENTS TO CARERS,REDACTED,REDACTED
03.06.2020,CHILDREN'S SERVICES,REDACTED PERSONAL DATA,842.00,DISABILITY & HIV,PAYMENTS TO CARERS,REDACTED,REDACTED
03.06.2020,CHILDREN'S SERVICES,REDACTED PERSONAL DATA,842.00,DISABILITY & HIV,PAYMENTS TO CARERS,REDACTED,REDACTED
03.06.2020,CHILDREN'S SERVICES,REDACTED PERSONAL DATA,932.00,DISABILITY & HIV,PAYMENTS TO CARERS,REDACTED,REDACTED
03.06.2020,CHILDREN'S SERVICES,REDACTED PERSONAL DATA,842.00,DISABILITY & HIV,PAYMENTS TO CARERS,REDACTED,REDACTED
03.06.2020,CHILDREN'S SERVICES,REDACTED PERSONAL DATA,842.00,DISABILITY & HIV,PAYMENTS TO CARERS,REDACTED,REDACTED
03.06.2020,CHILDREN'S SERVICES,REDACTED PERSONAL DATA,842.00,DISABILITY & HIV,PAYMENTS TO CARERS,REDACTED,REDACTED
03.06.2020,CHILDREN'S SERVICES,REDACTED PERSONAL DATA,842.00,DISABILITY & HIV,PAYMENTS TO CARERS,REDACTED,REDACTED
03.06.2020,CHILDREN'S SERVICES,REDACTED PERSONAL DATA,"-1,700.00",DISABILITY & HIV,PAYMENTS TO CARERS,REDACTED,REDACTED
03.06.2020,CHILDREN'S SERVICES,REDACTED PERSONAL DATA,-476.57,DISABILITY & HIV,PAYMENTS TO CARERS,REDACTED,REDACTED
03.06.2020,CHILDREN'S SERVICES,REDACTED PERSONAL DATA,874.00,DISABILITY & HIV,PAYMENTS TO CARERS,REDACTED,REDACTED
03.06.2020,CHILDREN'S SERVICES,REDACTED PERSONAL DATA,874.00,DISABILITY & HIV,PAYMENTS TO CARERS,REDACTED,REDACTED
03.06.2020,CHILDREN'S SERVICES,REDACTED PERSONAL DATA,874.00,DISABILITY & HIV,PAYMENTS TO CARERS,REDACTED,REDACTED
03.06.2020,CHILDREN'S SERVICES,REDACTED PERSONAL DATA,"1,700.00",DISABILITY & HIV,PAYMENTS TO CARERS,REDACTED,REDACTED
03.06.2020,CHILDREN'S SERVICES,REDACTED PERSONAL DATA,340.00,DISABILITY & HIV,PAYMENTS TO CARERS,REDACTED,REDACTED
03.06.2020,CHILDREN'S SERVICES,REDACTED PERSONAL DATA,842.00,DISABILITY & HIV,PAYMENTS TO CARERS,REDACTED,REDACTED
03.06.2020,CHILDREN'S SERVICES,REDACTED PERSONAL DATA,842.00,DISABILITY & HIV,PAYMENTS TO CARERS,REDACTED,REDACTED
03.06.2020,CHILDREN'S SERVICES,REDACTED PERSONAL DATA,874.00,DISABILITY & HIV,PAYMENTS TO CARERS,REDACTED,REDACTED
03.06.2020,CHILDREN'S SERVICES,REDACTED PERSONAL DATA,924.20,DISABILITY & HIV,PAYMENTS TO CARERS,REDACTED,REDACTED
03.06.2020,CHILDREN'S SERVICES,REDACTED PERSONAL DATA,712.30,DISABILITY & HIV,PAYMENTS TO CARERS,REDACTED,REDACTED
03.06.2020,CHILDREN'S SERVICES,REDACTED PERSONAL DATA,810.00,DISABILITY & HIV,PAYMENTS TO CARERS,REDACTED,REDACTED
03.06.2020,CHILDREN'S SERVICES,REDACTED PERSONAL DATA,812.00,DISABILITY & HIV,PAYMENTS TO CARERS,REDACTED,REDACTED
03.06.2020,CHILDREN'S SERVICES,REDACTED PERSONAL DATA,746.00,DISABILITY & HIV,PAYMENTS TO CARERS,REDACTED,REDACTED
03.06.2020,CHILDREN'S SERVICES,REDACTED PERSONAL DATA,746.00,DISABILITY & HIV,PAYMENTS TO CARERS,REDACTED,REDACTED
03.06.2020,CHILDREN'S SERVICES,REDACTED PERSONAL DATA,842.00,DISABILITY & HIV,PAYMENTS TO CARERS,REDACTED,REDACTED
03.06.2020,CHILDREN'S SERVICES,REDACTED PERSONAL DATA,842.00,DISABILITY & HIV,PAYMENTS TO CARERS,REDACTED,REDACTED
03.06.2020,CHILDREN'S SERVICES,REDACTED PERSONAL DATA,932.00,DISABILITY & HIV,PAYMENTS TO CARERS,REDACTED,REDACTED
03.06.2020,CHILDREN'S SERVICES,REDACTED PERSONAL DATA,932.00,DISABILITY & HIV,PAYMENTS TO CARERS,REDACTED,REDACTED
03.06.2020,CHILDREN'S SERVICES,REDACTED PERSONAL DATA,360.85,DISABILITY & HIV,PAYMENTS TO CARERS,REDACTED,REDACTED
03.06.2020,CHILDREN'S SERVICES,REDACTED PERSONAL DATA,842.00,DISABILITY & HIV,PAYMENTS TO CARERS,REDACTED,REDACTED
03.06.2020,CHILDREN'S SERVICES,REDACTED PERSONAL DATA,842.00,DISABILITY & HIV,PAYMENTS TO CARERS,REDACTED,REDACTED
03.06.2020,CHILDREN'S SERVICES,REDACTED PERSONAL DATA,932.00,DISABILITY & HIV,PAYMENTS TO CARERS,REDACTED,REDACTED
03.06.2020,CHILDREN'S SERVICES,REDACTED PERSONAL DATA,842.00,DISABILITY & HIV,PAYMENTS TO CARERS,REDACTED,REDACTED
03.06.2020,CHILDREN'S SERVICES,REDACTED PERSONAL DATA,842.00,DISABILITY & HIV,PAYMENTS TO CARERS,REDACTED,REDACTED
03.06.2020,CHILDREN'S SERVICES,REDACTED PERSONAL DATA,842.00,DISABILITY & HIV,PAYMENTS TO CARERS,REDACTED,REDACTED
03.06.2020,CHILDREN'S SERVICES,REDACTED PERSONAL DATA,842.00,DISABILITY & HIV,PAYMENTS TO CARERS,REDACTED,REDACTED
03.06.2020,CHILDREN'S SERVICES,REDACTED PERSONAL DATA,696.00,DISABILITY & HIV,PAYMENTS TO CARERS,REDACTED,REDACTED
03.06.2020,CHILDREN'S SERVICES,REDACTED PERSONAL DATA,932.00,DISABILITY & HIV,PAYMENTS TO CARERS,REDACTED,REDACTED
03.06.2020,CHILDREN'S SERVICES,REDACTED PERSONAL DATA,842.00,DISABILITY & HIV,PAYMENTS TO CARERS,REDACTED,REDACTED
03.06.2020,CHILDREN'S SERVICES,REDACTED PERSONAL DATA,812.00,DISABILITY & HIV,PAYMENTS TO CARERS,REDACTED,REDACTED
03.06.2020,CHILDREN'S SERVICES,REDACTED PERSONAL DATA,-655.29,DISABILITY & HIV,PAYMENTS TO CARERS,REDACTED,REDACTED
03.06.2020,CHILDREN'S SERVICES,REDACTED PERSONAL DATA,932.00,DISABILITY & HIV,PAYMENTS TO CARERS,REDACTED,REDACTED
03.06.2020,CHILDREN'S SERVICES,REDACTED PERSONAL DATA,"1,700.00",DISABILITY & HIV,PAYMENTS TO CARERS,REDACTED,REDACTED
03.06.2020,CHILDREN'S SERVICES,REDACTED PERSONAL DATA,746.00,DISABILITY & HIV,PAYMENTS TO CARERS,REDACTED,REDACTED
03.06.2020,CHILDREN'S SERVICES,REDACTED PERSONAL DATA,746.00,DISABILITY & HIV,PAYMENTS TO CARERS,REDACTED,REDACTED
03.06.2020,CHILDREN'S SERVICES,REDACTED PERSONAL DATA,932.00,DISABILITY & HIV,PAYMENTS TO CARERS,REDACTED,REDACTED
03.06.2020,CHILDREN'S SERVICES,REDACTED PERSONAL DATA,660.00,DISABILITY & HIV,PAYMENTS TO CARERS,REDACTED,REDACTED
03.06.2020,CHILDREN'S SERVICES,REDACTED PERSONAL DATA,842.00,DISABILITY & HIV,PAYMENTS TO CARERS,REDACTED,REDACTED
03.06.2020,CHILDREN'S SERVICES,REDACTED PERSONAL DATA,842.00,DISABILITY & HIV,PAYMENTS TO CARERS,REDACTED,REDACTED
03.06.2020,CHILDREN'S SERVICES,REDACTED PERSONAL DATA,842.00,DISABILITY & HIV,PAYMENTS TO CARERS,REDACTED,REDACTED
03.06.2020,CHILDREN'S SERVICES,REDACTED PERSONAL DATA,842.00,DISABILITY & HIV,PAYMENTS TO CARERS,REDACTED,REDACTED
03.06.2020,CHILDREN'S SERVICES,REDACTED PERSONAL DATA,696.00,DISABILITY & HIV,PAYMENTS TO CARERS,REDACTED,REDACTED
03.06.2020,CHILDREN'S SERVICES,REDACTED PERSONAL DATA,842.00,DISABILITY & HIV,PAYMENTS TO CARERS,REDACTED,REDACTED
03.06.2020,CHILDREN'S SERVICES,REDACTED PERSONAL DATA,842.00,DISABILITY & HIV,PAYMENTS TO CARERS,REDACTED,REDACTED
03.06.2020,CHILDREN'S SERVICES,REDACTED PERSONAL DATA,842.00,DISABILITY & HIV,PAYMENTS TO CARERS,REDACTED,REDACTED
03.06.2020,CHILDREN'S SERVICES,REDACTED PERSONAL DATA,842.00,DISABILITY & HIV,PAYMENTS TO CARERS,REDACTED,REDACTED
03.06.2020,CHILDREN'S SERVICES,REDACTED PERSONAL DATA,872.00,DISABILITY & HIV,PAYMENTS TO CARERS,REDACTED,REDACTED
03.06.2020,CHILDREN'S SERVICES,REDACTED PERSONAL DATA,872.00,DISABILITY & HIV,PAYMENTS TO CARERS,REDACTED,REDACTED
03.06.2020,CHILDREN'S SERVICES,REDACTED PERSONAL DATA,842.00,DISABILITY & HIV,PAYMENTS TO CARERS,REDACTED,REDACTED
03.06.2020,CHILDREN'S SERVICES,REDACTED PERSONAL DATA,746.00,DISABILITY & HIV,PAYMENTS TO CARERS,REDACTED,REDACTED
03.06.2020,CHILDREN'S SERVICES,REDACTED PERSONAL DATA,991.42,DISABILITY & HIV,PAYMENTS TO CARERS,REDACTED,REDACTED
03.06.2020,CHILDREN'S SERVICES,REDACTED PERSONAL DATA,"1,094.60",DISABILITY & HIV,PAYMENTS TO CARERS,REDACTED,REDACTED
03.06.2020,CHILDREN'S SERVICES,REDACTED PERSONAL DATA,696.00,DISABILITY & HIV,PAYMENTS TO CARERS,REDACTED,REDACTED
03.06.2020,CHILDREN'S SERVICES,REDACTED PERSONAL DATA,842.00,DISABILITY & HIV,PAYMENTS TO CARERS,REDACTED,REDACTED
03.06.2020,CHILDREN'S SERVICES,REDACTED PERSONAL DATA,842.00,DISABILITY & HIV,PAYMENTS TO CARERS,REDACTED,REDACTED
03.06.2020,CHILDREN'S SERVICES,REDACTED PERSONAL DATA,721.00,DISABILITY & HIV,PAYMENTS TO CARERS,REDACTED,REDACTED
03.06.2020,CHILDREN'S SERVICES,REDACTED PERSONAL DATA,746.00,DISABILITY & HIV,PAYMENTS TO CARERS,REDACTED,REDACTED
03.06.2020,CHILDREN'S SERVICES,REDACTED PERSONAL DATA,842.00,DISABILITY & HIV,PAYMENTS TO CARERS,REDACTED,REDACTED
03.06.2020,CHILDREN'S SERVICES,REDACTED PERSONAL DATA,842.00,DISABILITY & HIV,PAYMENTS TO CARERS,REDACTED,REDACTED
03.06.2020,CHILDREN'S SERVICES,REDACTED PERSONAL DATA,932.00,DISABILITY & HIV,PAYMENTS TO CARERS,REDACTED,REDACTED
03.06.2020,CHILDREN'S SERVICES,REDACTED PERSONAL DATA,696.00,DISABILITY & HIV,PAYMENTS TO CARERS,REDACTED,REDACTED
03.06.2020,CHILDREN'S SERVICES,REDACTED PERSONAL DATA,874.00,DISABILITY & HIV,PAYMENTS TO CARERS,REDACTED,REDACTED
03.06.2020,CHILDREN'S SERVICES,REDACTED PERSONAL DATA,"1,632.00",DISABILITY & HIV,PAYMENTS TO CARERS,REDACTED,REDACTED
03.06.2020,CHILDREN'S SERVICES,REDACTED PERSONAL DATA,842.00,DISABILITY & HIV,PAYMENTS TO CARERS,REDACTED,REDACTED
03.06.2020,CHILDREN'S SERVICES,REDACTED PERSONAL DATA,842.00,DISABILITY & HIV,PAYMENTS TO CARERS,REDACTED,REDACTED
03.06.2020,CHILDREN'S SERVICES,REDACTED PERSONAL DATA,932.00,DISABILITY & HIV,PAYMENTS TO CARERS,REDACTED,REDACTED
03.06.2020,CHILDREN'S SERVICES,REDACTED PERSONAL DATA,932.00,DISABILITY & HIV,PAYMENTS TO CARERS,REDACTED,REDACTED
03.06.2020,CHILDREN'S SERVICES,REDACTED PERSONAL DATA,"1,042.00",DISABILITY & HIV,PAYMENTS TO CARERS,REDACTED,REDACTED
03.06.2020,CHILDREN'S SERVICES,REDACTED PERSONAL DATA,-421.00,DISABILITY & HIV,PAYMENTS TO CARERS,REDACTED,REDACTED
03.06.2020,CHILDREN'S SERVICES,REDACTED PERSONAL DATA,842.00,DISABILITY & HIV,PAYMENTS TO CARERS,REDACTED,REDACTED
03.06.2020,CHILDREN'S SERVICES,REDACTED PERSONAL DATA,901.42,DISABILITY & HIV,PAYMENTS TO CARERS,REDACTED,REDACTED
03.06.2020,CHILDREN'S SERVICES,REDACTED PERSONAL DATA,696.00,DISABILITY & HIV,PAYMENTS TO CARERS,REDACTED,REDACTED
03.06.2020,CHILDREN'S SERVICES,REDACTED PERSONAL DATA,842.00,DISABILITY & HIV,PAYMENTS TO CARERS,REDACTED,REDACTED
03.06.2020,CHILDREN'S SERVICES,REDACTED PERSONAL DATA,842.00,DISABILITY & HIV,PAYMENTS TO CARERS,REDACTED,REDACTED
03.06.2020,CHILDREN'S SERVICES,REDACTED PERSONAL DATA,842.00,DISABILITY & HIV,PAYMENTS TO CARERS,REDACTED,REDACTED
03.06.2020,CHILDREN'S SERVICES,REDACTED PERSONAL DATA,696.00,DISABILITY & HIV,PAYMENTS TO CARERS,REDACTED,REDACTED
03.06.2020,CHILDREN'S SERVICES,REDACTED PERSONAL DATA,696.00,DISABILITY & HIV,PAYMENTS TO CARERS,REDACTED,REDACTED
03.06.2020,CHILDREN'S SERVICES,REDACTED PERSONAL DATA,842.00,DISABILITY & HIV,PAYMENTS TO CARERS,REDACTED,REDACTED
03.06.2020,CHILDREN'S SERVICES,REDACTED PERSONAL DATA,842.00,DISABILITY & HIV,PAYMENTS TO CARERS,REDACTED,REDACTED
03.06.2020,CHILDREN'S SERVICES,REDACTED PERSONAL DATA,842.00,DISABILITY & HIV,PAYMENTS TO CARERS,REDACTED,REDACTED
03.06.2020,CHILDREN'S SERVICES,REDACTED PERSONAL DATA,842.00,DISABILITY & HIV,PAYMENTS TO CARERS,REDACTED,REDACTED
03.06.2020,CHILDREN'S SERVICES,REDACTED PERSONAL DATA,842.00,DISABILITY & HIV,PAYMENTS TO CARERS,REDACTED,REDACTED
03.06.2020,CHILDREN'S SERVICES,REDACTED PERSONAL DATA,932.00,DISABILITY & HIV,PAYMENTS TO CARERS,REDACTED,REDACTED
03.06.2020,CHILDREN'S SERVICES,REDACTED PERSONAL DATA,932.00,DISABILITY & HIV,PAYMENTS TO CARERS,REDACTED,REDACTED
03.06.2020,CHILDREN'S SERVICES,REDACTED PERSONAL DATA,932.00,DISABILITY & HIV,PAYMENTS TO CARERS,REDACTED,REDACTED
03.06.2020,CHILDREN'S SERVICES,REDACTED PERSONAL DATA,696.00,DISABILITY & HIV,PAYMENTS TO CARERS,REDACTED,REDACTED
03.06.2020,CHILDREN'S SERVICES,REDACTED PERSONAL DATA,696.00,DISABILITY & HIV,PAYMENTS TO CARERS,REDACTED,REDACTED
03.06.2020,CHILDREN'S SERVICES,REDACTED PERSONAL DATA,696.00,DISABILITY & HIV,PAYMENTS TO CARERS,REDACTED,REDACTED
03.06.2020,CHILDREN'S SERVICES,REDACTED PERSONAL DATA,812.00,DISABILITY & HIV,PAYMENTS TO CARERS,REDACTED,REDACTED
03.06.2020,CHILDREN'S SERVICES,REDACTED PERSONAL DATA,812.00,DISABILITY & HIV,PAYMENTS TO CARERS,REDACTED,REDACTED
03.06.2020,CHILDREN'S SERVICES,REDACTED PERSONAL DATA,-370.00,DISABILITY & HIV,PAYMENTS TO CARERS,REDACTED,REDACTED
03.06.2020,CHILDREN'S SERVICES,REDACTED PERSONAL DATA,842.00,DISABILITY & HIV,PAYMENTS TO CARERS,REDACTED,REDACTED
03.06.2020,CHILDREN'S SERVICES,REDACTED PERSONAL DATA,932.00,DISABILITY & HIV,PAYMENTS TO CARERS,REDACTED,REDACTED
03.06.2020,CHILDREN'S SERVICES,REDACTED PERSONAL DATA,387.21,DISABILITY & HIV,PAYMENTS TO CARERS,REDACTED,REDACTED
03.06.2020,CHILDREN'S SERVICES,REDACTED PERSONAL DATA,842.00,DISABILITY & HIV,PAYMENTS TO CARERS,REDACTED,REDACTED
03.06.2020,CHILDREN'S SERVICES,REDACTED PERSONAL DATA,666.00,DISABILITY & HIV,PAYMENTS TO CARERS,REDACTED,REDACTED
03.06.2020,CHILDREN'S SERVICES,REDACTED PERSONAL DATA,716.00,DISABILITY & HIV,PAYMENTS TO CARERS,REDACTED,REDACTED
03.06.2020,CHILDREN'S SERVICES,REDACTED PERSONAL DATA,696.00,DISABILITY & HIV,PAYMENTS TO CARERS,REDACTED,REDACTED
03.06.2020,CHILDREN'S SERVICES,REDACTED PERSONAL DATA,842.00,DISABILITY & HIV,PAYMENTS TO CARERS,REDACTED,REDACTED
03.06.2020,CHILDREN'S SERVICES,REDACTED PERSONAL DATA,842.00,DISABILITY & HIV,PAYMENTS TO CARERS,REDACTED,REDACTED
03.06.2020,CHILDREN'S SERVICES,REDACTED PERSONAL DATA,"1,042.00",DISABILITY & HIV,PAYMENTS TO CARERS,REDACTED,REDACTED
03.06.2020,CHILDREN'S SERVICES,REDACTED PERSONAL DATA,810.00,DISABILITY & HIV,PAYMENTS TO CARERS,REDACTED,REDACTED
03.06.2020,CHILDREN'S SERVICES,REDACTED PERSONAL DATA,812.00,DISABILITY & HIV,PAYMENTS TO CARERS,REDACTED,REDACTED
03.06.2020,CHILDREN'S SERVICES,REDACTED PERSONAL DATA,696.00,DISABILITY & HIV,PAYMENTS TO CARERS,REDACTED,REDACTED
03.06.2020,CHILDREN'S SERVICES,REDACTED PERSONAL DATA,842.00,DISABILITY & HIV,PAYMENTS TO CARERS,REDACTED,REDACTED
03.06.2020,CHILDREN'S SERVICES,REDACTED PERSONAL DATA,746.00,DISABILITY & HIV,PAYMENTS TO CARERS,REDACTED,REDACTED
03.06.2020,CHILDREN'S SERVICES,REDACTED PERSONAL DATA,842.00,DISABILITY & HIV,PAYMENTS TO CARERS,REDACTED,REDACTED
03.06.2020,CHILDREN'S SERVICES,REDACTED PERSONAL DATA,746.00,DISABILITY & HIV,PAYMENTS TO CARERS,REDACTED,REDACTED
03.06.2020,CHILDREN'S SERVICES,REDACTED PERSONAL DATA,842.00,DISABILITY & HIV,PAYMENTS TO CARERS,REDACTED,REDACTED
03.06.2020,CHILDREN'S SERVICES,REDACTED PERSONAL DATA,812.00,DISABILITY & HIV,PAYMENTS TO CARERS,REDACTED,REDACTED
03.06.2020,CHILDREN'S SERVICES,REDACTED PERSONAL DATA,696.00,DISABILITY & HIV,PAYMENTS TO CARERS,REDACTED,REDACTED
03.06.2020,CHILDREN'S SERVICES,REDACTED PERSONAL DATA,842.00,DISABILITY & HIV,PAYMENTS TO CARERS,REDACTED,REDACTED
03.06.2020,CHILDREN'S SERVICES,REDACTED PERSONAL DATA,842.00,DISABILITY & HIV,PAYMENTS TO CARERS,REDACTED,REDACTED
03.06.2020,CHILDREN'S SERVICES,REDACTED PERSONAL DATA,812.00,DISABILITY & HIV,PAYMENTS TO CARERS,REDACTED,REDACTED
03.06.2020,CHILDREN'S SERVICES,REDACTED PERSONAL DATA,812.00,DISABILITY & HIV,PAYMENTS TO CARERS,REDACTED,REDACTED
03.06.2020,CHILDREN'S SERVICES,REDACTED PERSONAL DATA,"1,668.00",DISABILITY & HIV,PAYMENTS TO CARERS,REDACTED,REDACTED
03.06.2020,CHILDREN'S SERVICES,REDACTED PERSONAL DATA,812.00,DISABILITY & HIV,PAYMENTS TO CARERS,REDACTED,REDACTED
03.06.2020,CHILDREN'S SERVICES,REDACTED PERSONAL DATA,696.00,DISABILITY & HIV,PAYMENTS TO CARERS,REDACTED,REDACTED
03.06.2020,CHILDREN'S SERVICES,REDACTED PERSONAL DATA,716.00,DISABILITY & HIV,PAYMENTS TO CARERS,REDACTED,REDACTED
03.06.2020,CHILDREN'S SERVICES,REDACTED PERSONAL DATA,-971.43,DISABILITY & HIV,PAYMENTS TO CARERS,REDACTED,REDACTED
03.06.2020,CHILDREN'S SERVICES,REDACTED PERSONAL DATA,804.00,DISABILITY & HIV,PAYMENTS TO CARERS,REDACTED,REDACTED
03.06.2020,CHILDREN'S SERVICES,REDACTED PERSONAL DATA,842.00,DISABILITY & HIV,PAYMENTS TO CARERS,REDACTED,REDACTED
03.06.2020,CHILDREN'S SERVICES,REDACTED PERSONAL DATA,716.00,DISABILITY & HIV,PAYMENTS TO CARERS,REDACTED,REDACTED
03.06.2020,CHILDREN'S SERVICES,REDACTED PERSONAL DATA,716.00,DISABILITY & HIV,PAYMENTS TO CARERS,REDACTED,REDACTED
03.06.2020,CHILDREN'S SERVICES,REDACTED PERSONAL DATA,842.00,DISABILITY & HIV,PAYMENTS TO CARERS,REDACTED,REDACTED
03.06.2020,CHILDREN'S SERVICES,REDACTED PERSONAL DATA,776.08,DISABILITY & HIV,PAYMENTS TO CARERS,REDACTED,REDACTED
03.06.2020,CHILDREN'S SERVICES,REDACTED PERSONAL DATA,666.00,DISABILITY & HIV,PAYMENTS TO CARERS,REDACTED,REDACTED
03.06.2020,CHILDREN'S SERVICES,REDACTED PERSONAL DATA,842.00,DISABILITY & HIV,PAYMENTS TO CARERS,REDACTED,REDACTED
03.06.2020,CHILDREN'S SERVICES,REDACTED PERSONAL DATA,842.00,DISABILITY & HIV,PAYMENTS TO CARERS,REDACTED,REDACTED
03.06.2020,CHILDREN'S SERVICES,REDACTED PERSONAL DATA,696.00,DISABILITY & HIV,PAYMENTS TO CARERS,REDACTED,REDACTED
03.06.2020,CHILDREN'S SERVICES,REDACTED PERSONAL DATA,812.00,DISABILITY & HIV,PAYMENTS TO CARERS,REDACTED,REDACTED
03.06.2020,CHILDREN'S SERVICES,REDACTED PERSONAL DATA,"1,225.57",DISABILITY & HIV,PAYMENTS TO CARERS,REDACTED,REDACTED
03.06.2020,CHILDREN'S SERVICES,REDACTED PERSONAL DATA,696.00,DISABILITY & HIV,PAYMENTS TO CARERS,REDACTED,REDACTED
03.06.2020,CHILDREN'S SERVICES,REDACTED PERSONAL DATA,810.00,DISABILITY & HIV,PAYMENTS TO CARERS,REDACTED,REDACTED
03.06.2020,CHILDREN'S SERVICES,REDACTED PERSONAL DATA,928.00,DISABILITY & HIV,PAYMENTS TO CARERS,REDACTED,REDACTED
03.06.2020,CHILDREN'S SERVICES,REDACTED PERSONAL DATA,810.00,DISABILITY & HIV,PAYMENTS TO CARERS,REDACTED,REDACTED
03.06.2020,CHILDREN'S SERVICES,REDACTED PERSONAL DATA,"1,143.43",DISABILITY & HIV,PAYMENTS TO CARERS,REDACTED,REDACTED
03.06.2020,CHILDREN'S SERVICES,REDACTED PERSONAL DATA,842.00,DISABILITY & HIV,PAYMENTS TO CARERS,REDACTED,REDACTED
03.06.2020,CHILDREN'S SERVICES,REDACTED PERSONAL DATA,746.00,DISABILITY & HIV,PAYMENTS TO CARERS,REDACTED,REDACTED
03.06.2020,CHILDREN'S SERVICES,REDACTED PERSONAL DATA,746.00,DISABILITY & HIV,PAYMENTS TO CARERS,REDACTED,REDACTED
03.06.2020,CHILDREN'S SERVICES,REDACTED PERSONAL DATA,700.00,DISABILITY & HIV,PAYMENTS TO CARERS,REDACTED,REDACTED
03.06.2020,CHILDREN'S SERVICES,REDACTED PERSONAL DATA,842.00,DISABILITY & HIV,PAYMENTS TO CARERS,REDACTED,REDACTED
03.06.2020,CHILDREN'S SERVICES,REDACTED PERSONAL DATA,812.00,DISABILITY & HIV,PAYMENTS TO CARERS,REDACTED,REDACTED
03.06.2020,CHILDREN'S SERVICES,REDACTED PERSONAL DATA,812.00,DISABILITY & HIV,PAYMENTS TO CARERS,REDACTED,REDACTED
03.06.2020,CHILDREN'S SERVICES,REDACTED PERSONAL DATA,810.00,DISABILITY & HIV,PAYMENTS TO CARERS,REDACTED,REDACTED
03.06.2020,CHILDREN'S SERVICES,REDACTED PERSONAL DATA,-282.86,DISABILITY & HIV,PAYMENTS TO CARERS,REDACTED,REDACTED
03.06.2020,CHILDREN'S SERVICES,REDACTED PERSONAL DATA,716.00,DISABILITY & HIV,PAYMENTS TO CARERS,REDACTED,REDACTED
03.06.2020,CHILDREN'S SERVICES,REDACTED PERSONAL DATA,812.00,DISABILITY & HIV,PAYMENTS TO CARERS,REDACTED,REDACTED
03.06.2020,CHILDREN'S SERVICES,REDACTED PERSONAL DATA,666.00,DISABILITY & HIV,PAYMENTS TO CARERS,REDACTED,REDACTED
03.06.2020,CHILDREN'S SERVICES,TACT,315.00,FOSTERING PRAC GROUPS,PROFESSIONAL FEES,5902419521,1000012941
03.06.2020,CHILDREN'S SERVICES,TACT,696.10,FOSTERING PRAC GROUPS,PROFESSIONAL FEES,5902419522,1000012941
03.06.2020,CHILDREN'S SERVICES,AVOCET SOCIAL CARE LTD,"2,800.00",FOSTERING PRAC GROUPS,PROFESSIONAL FEES,5902419363,1000071940
03.06.2020,CHILDREN'S SERVICES,LOGICOUS LTD,324.31,FRIENDS & FAMILY FOSTERING,NURSING PLACEMENTS FEES,5902419450,1000073852
03.06.2020,CHILDREN'S SERVICES,REDACTED PERSONAL DATA,500.00,FRIENDS & FAMILY FOSTERING,COMPUTER CONSUMABLES,REDACTED,REDACTED
03.06.2020,CHILDREN'S SERVICES,REDACTED PERSONAL DATA,600.00,FRIENDS & FAMILY FOSTERING,OTHER PAYMENTS FOR CLIENTS,REDACTED,REDACTED
03.06.2020,CHILDREN'S SERVICES,REDACTED PERSONAL DATA,-300.00,FRIENDS & FAMILY FOSTERING,OTHER PAYMENTS FOR CLIENTS,REDACTED,REDACTED
03.06.2020,CHILDREN'S SERVICES,REDACTED PERSONAL DATA,300.00,FRIENDS & FAMILY FOSTERING,OTHER PAYMENTS FOR CLIENTS,REDACTED,REDACTED
03.06.2020,CHILDREN'S SERVICES,REDACTED PERSONAL DATA,300.00,FRIENDS & FAMILY FOSTERING,OTHER PAYMENTS FOR CLIENTS,REDACTED,REDACTED
03.06.2020,CHILDREN'S SERVICES,REDACTED PERSONAL DATA,300.00,FRIENDS & FAMILY FOSTERING,OTHER PAYMENTS FOR CLIENTS,REDACTED,REDACTED
03.06.2020,CHILDREN'S SERVICES,REDACTED PERSONAL DATA,"-1,302.86",FRIENDS & FAMILY FOSTERING,PAYMENTS TO CARERS,REDACTED,REDACTED
03.06.2020,CHILDREN'S SERVICES,REDACTED PERSONAL DATA,"1,638.57",FRIENDS & FAMILY FOSTERING,PAYMENTS TO CARERS,REDACTED,REDACTED
03.06.2020,CHILDREN'S SERVICES,REDACTED PERSONAL DATA,"-1,654.29",FRIENDS & FAMILY FOSTERING,PAYMENTS TO CARERS,REDACTED,REDACTED
03.06.2020,CHILDREN'S SERVICES,REDACTED PERSONAL DATA,"-1,437.17",FRIENDS & FAMILY FOSTERING,PAYMENTS TO CARERS,REDACTED,REDACTED
03.06.2020,CHILDREN'S SERVICES,REDACTED PERSONAL DATA,476.08,FRIENDS & FAMILY FOSTERING,PAYMENTS TO CARERS,REDACTED,REDACTED
03.06.2020,CHILDREN'S SERVICES,REDACTED PERSONAL DATA,"1,839.43",FRIENDS & FAMILY FOSTERING,PAYMENTS TO CARERS,REDACTED,REDACTED
03.06.2020,CHILDREN'S SERVICES,REDACTED PERSONAL DATA,"2,082.57",FRIENDS & FAMILY FOSTERING,PAYMENTS TO CARERS,REDACTED,REDACTED
03.06.2020,CHILDREN'S SERVICES,REDACTED PERSONAL DATA,942.85,FRIENDS & FAMILY FOSTERING,PAYMENTS TO CARERS,REDACTED,REDACTED
03.06.2020,CHILDREN'S SERVICES,REDACTED PERSONAL DATA,846.29,FRIENDS & FAMILY FOSTERING,PAYMENTS TO CARERS,REDACTED,REDACTED
03.06.2020,CHILDREN'S SERVICES,REDACTED PERSONAL DATA,"1,027.14",FRIENDS & FAMILY FOSTERING,PAYMENTS TO CARERS,REDACTED,REDACTED
03.06.2020,CHILDREN'S SERVICES,REDACTED PERSONAL DATA,741.71,FRIENDS & FAMILY FOSTERING,PAYMENTS TO CARERS,REDACTED,REDACTED
03.06.2020,CHILDREN'S SERVICES,REDACTED PERSONAL DATA,846.29,FRIENDS & FAMILY FOSTERING,PAYMENTS TO CARERS,REDACTED,REDACTED
03.06.2020,CHILDREN'S SERVICES,REDACTED PERSONAL DATA,846.29,FRIENDS & FAMILY FOSTERING,PAYMENTS TO CARERS,REDACTED,REDACTED
03.06.2020,CHILDREN'S SERVICES,REDACTED PERSONAL DATA,926.86,FRIENDS & FAMILY FOSTERING,PAYMENTS TO CARERS,REDACTED,REDACTED
03.06.2020,CHILDREN'S SERVICES,REDACTED PERSONAL DATA,741.71,FRIENDS & FAMILY FOSTERING,PAYMENTS TO CARERS,REDACTED,REDACTED
03.06.2020,CHILDREN'S SERVICES,REDACTED PERSONAL DATA,846.29,FRIENDS & FAMILY FOSTERING,PAYMENTS TO CARERS,REDACTED,REDACTED
03.06.2020,CHILDREN'S SERVICES,REDACTED PERSONAL DATA,810.00,FRIENDS & FAMILY FOSTERING,PAYMENTS TO CARERS,REDACTED,REDACTED
03.06.2020,CHILDREN'S SERVICES,REDACTED PERSONAL DATA,961.14,FRIENDS & FAMILY FOSTERING,PAYMENTS TO CARERS,REDACTED,REDACTED
03.06.2020,CHILDREN'S SERVICES,REDACTED PERSONAL DATA,961.14,FRIENDS & FAMILY FOSTERING,PAYMENTS TO CARERS,REDACTED,REDACTED
03.06.2020,CHILDREN'S SERVICES,REDACTED PERSONAL DATA,"-3,042.86",FRIENDS & FAMILY FOSTERING,PAYMENTS TO CARERS,REDACTED,REDACTED
03.06.2020,CHILDREN'S SERVICES,REDACTED PERSONAL DATA,741.71,FRIENDS & FAMILY FOSTERING,PAYMENTS TO CARERS,REDACTED,REDACTED
03.06.2020,CHILDREN'S SERVICES,REDACTED PERSONAL DATA,"3,784.57",FRIENDS & FAMILY FOSTERING,PAYMENTS TO CARERS,REDACTED,REDACTED
03.06.2020,CHILDREN'S SERVICES,REDACTED PERSONAL DATA,"-1,654.29",FRIENDS & FAMILY FOSTERING,PAYMENTS TO CARERS,REDACTED,REDACTED
03.06.2020,CHILDREN'S SERVICES,REDACTED PERSONAL DATA,"2,082.57",FRIENDS & FAMILY FOSTERING,PAYMENTS TO CARERS,REDACTED,REDACTED
03.06.2020,CHILDREN'S SERVICES,REDACTED PERSONAL DATA,"-1,937.14",FRIENDS & FAMILY FOSTERING,PAYMENTS TO CARERS,REDACTED,REDACTED
03.06.2020,CHILDREN'S SERVICES,REDACTED PERSONAL DATA,"-1,654.29",FRIENDS & FAMILY FOSTERING,PAYMENTS TO CARERS,REDACTED,REDACTED
03.06.2020,CHILDREN'S SERVICES,REDACTED PERSONAL DATA,"-1,654.29",FRIENDS & FAMILY FOSTERING,PAYMENTS TO CARERS,REDACTED,REDACTED
03.06.2020,CHILDREN'S SERVICES,REDACTED PERSONAL DATA,"2,082.57",FRIENDS & FAMILY FOSTERING,PAYMENTS TO CARERS,REDACTED,REDACTED
03.06.2020,CHILDREN'S SERVICES,REDACTED PERSONAL DATA,"2,082.57",FRIENDS & FAMILY FOSTERING,PAYMENTS TO CARERS,REDACTED,REDACTED
03.06.2020,CHILDREN'S SERVICES,REDACTED PERSONAL DATA,"2,442.00",FRIENDS & FAMILY FOSTERING,PAYMENTS TO CARERS,REDACTED,REDACTED
03.06.2020,CHILDREN'S SERVICES,REDACTED PERSONAL DATA,926.86,FRIENDS & FAMILY FOSTERING,PAYMENTS TO CARERS,REDACTED,REDACTED
03.06.2020,CHILDREN'S SERVICES,REDACTED PERSONAL DATA,817.43,FRIENDS & FAMILY FOSTERING,PAYMENTS TO CARERS,REDACTED,REDACTED
03.06.2020,CHILDREN'S SERVICES,REDACTED PERSONAL DATA,926.86,FRIENDS & FAMILY FOSTERING,PAYMENTS TO CARERS,REDACTED,REDACTED
03.06.2020,CHILDREN'S SERVICES,REDACTED PERSONAL DATA,817.43,FRIENDS & FAMILY FOSTERING,PAYMENTS TO CARERS,REDACTED,REDACTED
03.06.2020,CHILDREN'S SERVICES,REDACTED PERSONAL DATA,817.43,FRIENDS & FAMILY FOSTERING,PAYMENTS TO CARERS,REDACTED,REDACTED
03.06.2020,CHILDREN'S SERVICES,REDACTED PERSONAL DATA,926.86,FRIENDS & FAMILY FOSTERING,PAYMENTS TO CARERS,REDACTED,REDACTED
03.06.2020,CHILDREN'S SERVICES,REDACTED PERSONAL DATA,"-2,828.57",FRIENDS & FAMILY FOSTERING,PAYMENTS TO CARERS,REDACTED,REDACTED
03.06.2020,CHILDREN'S SERVICES,REDACTED PERSONAL DATA,"3,520.29",FRIENDS & FAMILY FOSTERING,PAYMENTS TO CARERS,REDACTED,REDACTED
03.06.2020,CHILDREN'S SERVICES,REDACTED PERSONAL DATA,"-1,937.14",FRIENDS & FAMILY FOSTERING,PAYMENTS TO CARERS,REDACTED,REDACTED
03.06.2020,CHILDREN'S SERVICES,REDACTED PERSONAL DATA,"2,442.00",FRIENDS & FAMILY FOSTERING,PAYMENTS TO CARERS,REDACTED,REDACTED
03.06.2020,CHILDREN'S SERVICES,REDACTED PERSONAL DATA,"-1,654.29",FRIENDS & FAMILY FOSTERING,PAYMENTS TO CARERS,REDACTED,REDACTED
03.06.2020,CHILDREN'S SERVICES,REDACTED PERSONAL DATA,"1,027.14",FRIENDS & FAMILY FOSTERING,PAYMENTS TO CARERS,REDACTED,REDACTED
03.06.2020,CHILDREN'S SERVICES,REDACTED PERSONAL DATA,"2,082.57",FRIENDS & FAMILY FOSTERING,PAYMENTS TO CARERS,REDACTED,REDACTED
03.06.2020,CHILDREN'S SERVICES,REDACTED PERSONAL DATA,"-3,445.71",FRIENDS & FAMILY FOSTERING,PAYMENTS TO CARERS,REDACTED,REDACTED
03.06.2020,CHILDREN'S SERVICES,REDACTED PERSONAL DATA,"4,292.00",FRIENDS & FAMILY FOSTERING,PAYMENTS TO CARERS,REDACTED,REDACTED
03.06.2020,CHILDREN'S SERVICES,REDACTED PERSONAL DATA,926.86,FRIENDS & FAMILY FOSTERING,PAYMENTS TO CARERS,REDACTED,REDACTED
03.06.2020,CHILDREN'S SERVICES,REDACTED PERSONAL DATA,528.28,FRIENDS & FAMILY FOSTERING,PAYMENTS TO CARERS,REDACTED,REDACTED
03.06.2020,CHILDREN'S SERVICES,REDACTED PERSONAL DATA,817.43,FRIENDS & FAMILY FOSTERING,PAYMENTS TO CARERS,REDACTED,REDACTED
03.06.2020,CHILDREN'S SERVICES,REDACTED PERSONAL DATA,926.86,FRIENDS & FAMILY FOSTERING,PAYMENTS TO CARERS,REDACTED,REDACTED
03.06.2020,CHILDREN'S SERVICES,REDACTED PERSONAL DATA,"-1,302.86",FRIENDS & FAMILY FOSTERING,PAYMENTS TO CARERS,REDACTED,REDACTED
03.06.2020,CHILDREN'S SERVICES,REDACTED PERSONAL DATA,"1,638.57",FRIENDS & FAMILY FOSTERING,PAYMENTS TO CARERS,REDACTED,REDACTED
03.06.2020,CHILDREN'S SERVICES,REDACTED PERSONAL DATA,"-2,828.57",FRIENDS & FAMILY FOSTERING,PAYMENTS TO CARERS,REDACTED,REDACTED
03.06.2020,CHILDREN'S SERVICES,REDACTED PERSONAL DATA,"3,520.29",FRIENDS & FAMILY FOSTERING,PAYMENTS TO CARERS,REDACTED,REDACTED
03.06.2020,CHILDREN'S SERVICES,REDACTED PERSONAL DATA,"-1,654.29",FRIENDS & FAMILY FOSTERING,PAYMENTS TO CARERS,REDACTED,REDACTED
03.06.2020,CHILDREN'S SERVICES,REDACTED PERSONAL DATA,"2,082.57",FRIENDS & FAMILY FOSTERING,PAYMENTS TO CARERS,REDACTED,REDACTED
03.06.2020,CHILDREN'S SERVICES,REDACTED PERSONAL DATA,"1,104.00",FRIENDS & FAMILY FOSTERING,PAYMENTS TO CARERS,REDACTED,REDACTED
03.06.2020,CHILDREN'S SERVICES,REDACTED PERSONAL DATA,"-1,302.86",FRIENDS & FAMILY FOSTERING,PAYMENTS TO CARERS,REDACTED,REDACTED
03.06.2020,CHILDREN'S SERVICES,REDACTED PERSONAL DATA,"1,638.57",FRIENDS & FAMILY FOSTERING,PAYMENTS TO CARERS,REDACTED,REDACTED
03.06.2020,CHILDREN'S SERVICES,REDACTED PERSONAL DATA,"-1,465.71",FRIENDS & FAMILY FOSTERING,PAYMENTS TO CARERS,REDACTED,REDACTED
03.06.2020,CHILDREN'S SERVICES,REDACTED PERSONAL DATA,"-1,302.86",FRIENDS & FAMILY FOSTERING,PAYMENTS TO CARERS,REDACTED,REDACTED
03.06.2020,CHILDREN'S SERVICES,REDACTED PERSONAL DATA,"1,638.57",FRIENDS & FAMILY FOSTERING,PAYMENTS TO CARERS,REDACTED,REDACTED
03.06.2020,CHILDREN'S SERVICES,REDACTED PERSONAL DATA,"1,839.43",FRIENDS & FAMILY FOSTERING,PAYMENTS TO CARERS,REDACTED,REDACTED
03.06.2020,CHILDREN'S SERVICES,REDACTED PERSONAL DATA,"-1,654.29",FRIENDS & FAMILY FOSTERING,PAYMENTS TO CARERS,REDACTED,REDACTED
03.06.2020,CHILDREN'S SERVICES,REDACTED PERSONAL DATA,"-1,654.29",FRIENDS & FAMILY FOSTERING,PAYMENTS TO CARERS,REDACTED,REDACTED
03.06.2020,CHILDREN'S SERVICES,REDACTED PERSONAL DATA,"2,082.57",FRIENDS & FAMILY FOSTERING,PAYMENTS TO CARERS,REDACTED,REDACTED
03.06.2020,CHILDREN'S SERVICES,REDACTED PERSONAL DATA,"2,082.57",FRIENDS & FAMILY FOSTERING,PAYMENTS TO CARERS,REDACTED,REDACTED
03.06.2020,CHILDREN'S SERVICES,REDACTED PERSONAL DATA,"-1,654.29",FRIENDS & FAMILY FOSTERING,PAYMENTS TO CARERS,REDACTED,REDACTED
03.06.2020,CHILDREN'S SERVICES,REDACTED PERSONAL DATA,"-1,654.29",FRIENDS & FAMILY FOSTERING,PAYMENTS TO CARERS,REDACTED,REDACTED
03.06.2020,CHILDREN'S SERVICES,REDACTED PERSONAL DATA,"2,082.57",FRIENDS & FAMILY FOSTERING,PAYMENTS TO CARERS,REDACTED,REDACTED
03.06.2020,CHILDREN'S SERVICES,REDACTED PERSONAL DATA,"2,082.57",FRIENDS & FAMILY FOSTERING,PAYMENTS TO CARERS,REDACTED,REDACTED
03.06.2020,CHILDREN'S SERVICES,REDACTED PERSONAL DATA,304.00,FRIENDS & FAMILY FOSTERING,PAYMENTS TO CARERS,REDACTED,REDACTED
03.06.2020,CHILDREN'S SERVICES,REDACTED PERSONAL DATA,300.00,FURTHER EDUCATION SUPPORT,OTHER PAYMENTS FOR CLIENTS,REDACTED,REDACTED
03.06.2020,CHILDREN'S SERVICES,REDACTED PERSONAL DATA,400.00,FURTHER EDUCATION SUPPORT,OTHER PAYMENTS FOR CLIENTS,REDACTED,REDACTED
03.06.2020,CHILDREN'S SERVICES,REDACTED PERSONAL DATA,733.01,LEAVING CARE GRANT,OTHER PAYMENTS FOR CLIENTS,REDACTED,REDACTED
03.06.2020,CHILDREN'S SERVICES,EWINGS & CO SOLICITORS,300.00,LEGAL,LEGAL FEES & COURT COSTS,5902419564,1000023816
03.06.2020,CHILDREN'S SERVICES,ALLPAY LTD (0-25),"50,000.00",SCH TRANS - CONTRACT COST,OTHER PAYMENTS FOR CLIENTS,5902419419,1000083062
03.06.2020,CHILDREN'S SERVICES,AMBITIOUS ABOUT AUTISM,"1,998.35",SCHOOLS IN FINANCIAL DIFFICULTY,SCHOOLS CAPITATION,5902419396,1000035784
03.06.2020,CHILDREN'S SERVICES,CITYGLEN LTD,"1,395.00",SEMI INDEPENDENT CARE LEAVERS,EXTERNAL AGENCIES AND BODIES,2103107666,1000026239
03.06.2020,CHILDREN'S SERVICES,HEARTWOOD OUTREACH SERVICES LTD,"1,826.70",SEMI INDEPENDENT CARE LEAVERS,EXTERNAL AGENCIES AND BODIES,2103107668,1000075021
03.06.2020,CHILDREN'S SERVICES,HEARTWOOD OUTREACH SERVICES LTD,"1,887.59",SEMI INDEPENDENT CARE LEAVERS,EXTERNAL AGENCIES AND BODIES,2103107664,1000075021
03.06.2020,CHILDREN'S SERVICES,FAMILY FOSTERING LTD,"1,771.14",SEMI INDEPENDENT CARE LEAVERS,EXTERNAL AGENCIES AND BODIES,2103107662,1000075179
03.06.2020,CHILDREN'S SERVICES,FINEFAIR LTD,"1,687.33",SEMI INDEPENDENT CARE LEAVERS,EXTERNAL AGENCIES AND BODIES,2103107667,1000075570
03.06.2020,CHILDREN'S SERVICES,SYDNEY CARE LTD,"5,314.28",SEMI INDEPENDENT CARE LEAVERS,EXTERNAL AGENCIES AND BODIES,2103107660,1000081598
03.06.2020,CHILDREN'S SERVICES,TRANSFORMING LIVES COMPANY LTD,"3,739.92",SEMI INDEPENDENT CARE LEAVERS,EXTERNAL AGENCIES AND BODIES,2103107665,1000083352
03.06.2020,CHILDREN'S SERVICES,SYDNEY CARE LTD,310.00,SEMI INDEPENDENT CARE LEAVERS,OTHER PAYMENTS FOR CLIENTS,2103107663,1000081598
03.06.2020,CHILDREN'S SERVICES,CREATING LIFESTYLES LTD,"21,280.00",SEMI INDEPENDENT LAC,EXTERNAL AGENCIES AND BODIES,2103107672,1000075830
03.06.2020,CHILDREN'S SERVICES,SYDNEY CARE LTD,"3,985.71",SEMI INDEPENDENT LAC,EXTERNAL AGENCIES AND BODIES,2103107669,1000081598
03.06.2020,CHILDREN'S SERVICES,E A JIGSAW CARE LIMITED,"2,807.10",SEMI INDEPENDENT LAC,EXTERNAL AGENCIES AND BODIES,2103107673,1000084233
03.06.2020,CHILDREN'S SERVICES,SYDNEY CARE LTD,310.00,SEMI INDEPENDENT LAC,OTHER PAYMENTS FOR CLIENTS,2103107670,1000081598
03.06.2020,CHILDREN'S SERVICES,E A JIGSAW CARE LIMITED,300.00,SEMI INDEPENDENT LAC,OTHER PAYMENTS FOR CLIENTS,2103107674,1000084233
03.06.2020,CHILDREN'S SERVICES,MAGIC ROUNDABOUT NURSERIES LTD,"1,100.00",SPECIAL GUARDIANSHIP,EXTERNAL AGENCIES AND BODIES,5902419451,1000045128
03.06.2020,CHILDREN'S SERVICES,REDACTED PERSONAL DATA,269.08,SPECIAL GUARDIANSHIP,PAYMENTS TO CARERS,REDACTED,REDACTED
03.06.2020,CHILDREN'S SERVICES,REDACTED PERSONAL DATA,388.04,SPECIAL GUARDIANSHIP,PAYMENTS TO CARERS,REDACTED,REDACTED
03.06.2020,CHILDREN'S SERVICES,REDACTED PERSONAL DATA,342.45,SPECIAL GUARDIANSHIP,PAYMENTS TO CARERS,REDACTED,REDACTED
03.06.2020,CHILDREN'S SERVICES,REDACTED PERSONAL DATA,389.34,SPECIAL GUARDIANSHIP,PAYMENTS TO CARERS,REDACTED,REDACTED
03.06.2020,CHILDREN'S SERVICES,REDACTED PERSONAL DATA,356.15,SPECIAL GUARDIANSHIP,PAYMENTS TO CARERS,REDACTED,REDACTED
03.06.2020,CHILDREN'S SERVICES,REDACTED PERSONAL DATA,403.04,SPECIAL GUARDIANSHIP,PAYMENTS TO CARERS,REDACTED,REDACTED
03.06.2020,CHILDREN'S SERVICES,REDACTED PERSONAL DATA,343.05,SPECIAL GUARDIANSHIP,PAYMENTS TO CARERS,REDACTED,REDACTED
03.06.2020,CHILDREN'S SERVICES,REDACTED PERSONAL DATA,525.00,SPECIAL GUARDIANSHIP,PAYMENTS TO CARERS,REDACTED,REDACTED
03.06.2020,CHILDREN'S SERVICES,REDACTED PERSONAL DATA,525.00,SPECIAL GUARDIANSHIP,PAYMENTS TO CARERS,REDACTED,REDACTED
03.06.2020,CHILDREN'S SERVICES,REDACTED PERSONAL DATA,395.00,SPECIAL GUARDIANSHIP,PAYMENTS TO CARERS,REDACTED,REDACTED
03.06.2020,CHILDREN'S SERVICES,REDACTED PERSONAL DATA,341.15,SPECIAL GUARDIANSHIP,PAYMENTS TO CARERS,REDACTED,REDACTED
03.06.2020,CHILDREN'S SERVICES,REDACTED PERSONAL DATA,500.00,STAYING PUT,PAYMENTS TO CARERS,REDACTED,REDACTED
03.06.2020,CHILDREN'S SERVICES,REDACTED PERSONAL DATA,942.00,STAYING PUT,PAYMENTS TO CARERS,REDACTED,REDACTED
03.06.2020,CHILDREN'S SERVICES,REDACTED PERSONAL DATA,500.00,STAYING PUT,PAYMENTS TO CARERS,REDACTED,REDACTED
03.06.2020,CHILDREN'S SERVICES,REDACTED PERSONAL DATA,500.00,STAYING PUT,PAYMENTS TO CARERS,REDACTED,REDACTED
03.06.2020,CHILDREN'S SERVICES,REDACTED PERSONAL DATA,500.00,STAYING PUT,PAYMENTS TO CARERS,REDACTED,REDACTED
03.06.2020,CHILDREN'S SERVICES,REDACTED PERSONAL DATA,832.00,STAYING PUT,PAYMENTS TO CARERS,REDACTED,REDACTED
03.06.2020,CHILDREN'S SERVICES,REDACTED PERSONAL DATA,500.00,STAYING PUT,PAYMENTS TO CARERS,REDACTED,REDACTED
03.06.2020,CHILDREN'S SERVICES,REDACTED PERSONAL DATA,500.00,STAYING PUT,PAYMENTS TO CARERS,REDACTED,REDACTED
03.06.2020,CHILDREN'S SERVICES,REDACTED PERSONAL DATA,500.00,STAYING PUT,PAYMENTS TO CARERS,REDACTED,REDACTED
03.06.2020,CHILDREN'S SERVICES,REDACTED PERSONAL DATA,500.00,STAYING PUT,PAYMENTS TO CARERS,REDACTED,REDACTED
03.06.2020,CHILDREN'S SERVICES,REDACTED PERSONAL DATA,942.00,STAYING PUT,PAYMENTS TO CARERS,REDACTED,REDACTED
03.06.2020,CHILDREN'S SERVICES,REDACTED PERSONAL DATA,500.00,STAYING PUT,PAYMENTS TO CARERS,REDACTED,REDACTED
03.06.2020,CHILDREN'S SERVICES,REDACTED PERSONAL DATA,500.00,STAYING PUT,PAYMENTS TO CARERS,REDACTED,REDACTED
03.06.2020,CHILDREN'S SERVICES,REDACTED PERSONAL DATA,500.00,STAYING PUT,PAYMENTS TO CARERS,REDACTED,REDACTED
03.06.2020,CHILDREN'S SERVICES,REDACTED PERSONAL DATA,500.00,STAYING PUT,PAYMENTS TO CARERS,REDACTED,REDACTED
03.06.2020,CHILDREN'S SERVICES,REDACTED PERSONAL DATA,500.00,STAYING PUT,PAYMENTS TO CARERS,REDACTED,REDACTED
03.06.2020,CHILDREN'S SERVICES,REDACTED PERSONAL DATA,500.00,STAYING PUT,PAYMENTS TO CARERS,REDACTED,REDACTED
03.06.2020,CHILDREN'S SERVICES,REDACTED PERSONAL DATA,500.00,STAYING PUT,PAYMENTS TO CARERS,REDACTED,REDACTED
03.06.2020,CHILDREN'S SERVICES,REDACTED PERSONAL DATA,500.00,STAYING PUT,PAYMENTS TO CARERS,REDACTED,REDACTED
03.06.2020,CHILDREN'S SERVICES,REDACTED PERSONAL DATA,-607.15,STAYING PUT,PAYMENTS TO CARERS,REDACTED,REDACTED
03.06.2020,CHILDREN'S SERVICES,REDACTED PERSONAL DATA,500.00,STAYING PUT,PAYMENTS TO CARERS,REDACTED,REDACTED
03.06.2020,CHILDREN'S SERVICES,REDACTED PERSONAL DATA,"1,700.00",STAYING PUT,PAYMENTS TO CARERS,REDACTED,REDACTED
03.06.2020,CHILDREN'S SERVICES,REDACTED PERSONAL DATA,500.00,STAYING PUT,PAYMENTS TO CARERS,REDACTED,REDACTED
03.06.2020,CHILDREN'S SERVICES,REDACTED PERSONAL DATA,500.00,STAYING PUT,PAYMENTS TO CARERS,REDACTED,REDACTED
03.06.2020,CHILDREN'S SERVICES,REDACTED PERSONAL DATA,500.00,STAYING PUT,PAYMENTS TO CARERS,REDACTED,REDACTED
03.06.2020,CHILDREN'S SERVICES,REDACTED PERSONAL DATA,832.00,STAYING PUT,PAYMENTS TO CARERS,REDACTED,REDACTED
03.06.2020,CHILDREN'S SERVICES,REDACTED PERSONAL DATA,784.00,STAYING PUT,PAYMENTS TO CARERS,REDACTED,REDACTED
03.06.2020,CHILDREN'S SERVICES,REDACTED PERSONAL DATA,430.00,STAYING PUT,PAYMENTS TO CARERS,REDACTED,REDACTED
03.06.2020,CHILDREN'S SERVICES,REDACTED PERSONAL DATA,500.00,STAYING PUT,PAYMENTS TO CARERS,REDACTED,REDACTED
03.06.2020,CHILDREN'S SERVICES,REDACTED PERSONAL DATA,700.00,STAYING PUT,PAYMENTS TO CARERS,REDACTED,REDACTED
03.06.2020,CHILDREN'S SERVICES,REDACTED PERSONAL DATA,500.00,STAYING PUT,PAYMENTS TO CARERS,REDACTED,REDACTED
03.06.2020,CHILDREN'S SERVICES,REDACTED PERSONAL DATA,"1,000.00",STAYING PUT,PAYMENTS TO CARERS,REDACTED,REDACTED
03.06.2020,CHILDREN'S SERVICES,REDACTED PERSONAL DATA,500.00,STAYING PUT,PAYMENTS TO CARERS,REDACTED,REDACTED
03.06.2020,CHILDREN'S SERVICES,SINEAD JOYCE,900.00,SUMMERHOUSE,CONSULTANTS SERVICES,5902419537,1000056695
03.06.2020,CHILDREN'S SERVICES,CHARTWELLS,420.00,SUMMERHOUSE,CATERING MATERIALS & SUPPLIES,5902419569,1000010625
03.06.2020,CHILDREN'S SERVICES,KENT COUNTY COUNCIL - LASER,318.23,SUMMERHOUSE,GAS,5902419542,1000012926
03.06.2020,COMMUNITIES,COMMUNITY SOUTHWARK,"95,932.50",CVS & VOLUNTEERING,GRANTS,5902419561,1000018147
03.06.2020,COMMUNITIES,COMMUNITY SOUTHWARK,"30,000.00",HEALTHWATCH,GRANTS,5902419567,1000018147
03.06.2020,COMMUNITIES,BELLS GARDENS T&RA,"2,975.50",TENANTS FUND,GRANTS,5902419394,1000058350
03.06.2020,CUSTOMER EXPERIENCE HGF,EMMA CHEONG,"2,953.84",HOMELESS PROJECTS,GRANTS,5902419497,1000084355
03.06.2020,ENVIRONMENT AND LEISURE,LETTSOM ALLOTMENTS ASSOCIATION,"2,124.45",CAPITAL PS (LEISURE),CAPITAL GRANTS,5902419146,1000084346
03.06.2020,ENVIRONMENT AND LEISURE,CONWAY AECOM LTD,"100,754.72",CAPITAL PS (LEISURE),CONSTRUCTION MAIN CONTRACT,2103106710,3000001595
03.06.2020,ENVIRONMENT DIRECTORATE,AUTOMOTIVE LEASING,520.00,COMMERCIAL VEH CTRL A/C,HIRED VEHICLES,5902419558,11014756
03.06.2020,ENVIRONMENT DIRECTORATE,AUTOMOTIVE LEASING,780.00,COMMERCIAL VEH CTRL A/C,HIRED VEHICLES,5902419562,11014756
03.06.2020,ENVIRONMENT DIRECTORATE,AUTOMOTIVE LEASING,788.67,COMMERCIAL VEH CTRL A/C,HIRED VEHICLES,5902419566,11014756
03.06.2020,ENVIRONMENT DIRECTORATE,AUTOMOTIVE LEASING,"1,074.40",COMMERCIAL VEH CTRL A/C,HIRED VEHICLES,5902419555,11014756
03.06.2020,ENVIRONMENT DIRECTORATE,DAWSONGROUP VANS LTD,280.72,COMMERCIAL VEH CTRL A/C,HIRED VEHICLES,5902419533,1000082230
03.06.2020,ENVIRONMENT DIRECTORATE,E. H. ROBERTS - PENET GROUP LTD,341.52,COMMERCIAL VEH CTRL A/C,HIRED VEHICLES,5902419444,1000082787
03.06.2020,ENVIRONMENT DIRECTORATE,E. H. ROBERTS - PENET GROUP LTD,"1,455.00",COMMERCIAL VEH CTRL A/C,HIRED VEHICLES,5902419443,1000082787
03.06.2020,ENVIRONMENT DIRECTORATE,SHELL UK OIL PRODUCTS LTD,266.36,COMMERCIAL VEH CTRL A/C,VEHICLE FUEL,5902419343,1000081254
03.06.2020,ENVIRONMENT DIRECTORATE,SHELL UK OIL PRODUCTS LTD,385.08,COMMERCIAL VEH CTRL A/C,VEHICLE FUEL,5902419351,1000081254
03.06.2020,ENVIRONMENT DIRECTORATE,SHELL UK OIL PRODUCTS LTD,482.81,COMMERCIAL VEH CTRL A/C,VEHICLE FUEL,5902419409,1000081254
03.06.2020,ENVIRONMENT DIRECTORATE,SHELL UK OIL PRODUCTS LTD,553.49,COMMERCIAL VEH CTRL A/C,VEHICLE FUEL,5902419344,1000081254
03.06.2020,ENVIRONMENT DIRECTORATE,SHELL UK OIL PRODUCTS LTD,637.84,COMMERCIAL VEH CTRL A/C,VEHICLE FUEL,5902419398,1000081254
03.06.2020,ENVIRONMENT DIRECTORATE,SHELL UK OIL PRODUCTS LTD,654.32,COMMERCIAL VEH CTRL A/C,VEHICLE FUEL,5902419349,1000081254
03.06.2020,ENVIRONMENT DIRECTORATE,SHELL UK OIL PRODUCTS LTD,"1,460.42",COMMERCIAL VEH CTRL A/C,VEHICLE FUEL,5902419345,1000081254
03.06.2020,ENVIRONMENT DIRECTORATE,SHELL UK OIL PRODUCTS LTD,"1,568.38",COMMERCIAL VEH CTRL A/C,VEHICLE FUEL,5902419399,1000081254
03.06.2020,ENVIRONMENT DIRECTORATE,JOHNSTON SWEEPERS LTD,577.90,COMMERCIAL VEH CTRL A/C,VEHICLE REPAIRS & MAINTENANCE,5902419445,1000043974
03.06.2020,ENVIRONMENT DIRECTORATE,GREEN PLANT UK LTD,369.13,NON HOUSING GROUNDS,EQUIPMENT PURCHASE & REPAIR,5902419484,1000073151
03.06.2020,ENVIRONMENT DIRECTORATE,GREEN PLANT UK LTD,784.83,NON HOUSING GROUNDS,EQUIPMENT PURCHASE & REPAIR,5902419474,1000073151
03.06.2020,ENVIRONMENT DIRECTORATE,CONWAY AECOM LTD,"2,964.55",PARKING OVERHEADS,OTHER CONTRACTORS,5902419454,1000071205
03.06.2020,ENVIRONMENT DIRECTORATE,ELLIOT ENVIRONMENTAL LTD,400.00,STREET CLEANING-GENERAL,OTHER CONTRACTORS,5902419515,1000047392
03.06.2020,ENVIRONMENT DIRECTORATE,SOUTHWARK NEWSPAPER LTD,324.00,STREET WORKS OVERHEADS,MARKETING & PUBLICITY SERVICES,5902419472,1556957
03.06.2020,ENVIRONMENT DIRECTORATE,SOUTHWARK NEWSPAPER LTD,336.00,STREET WORKS OVERHEADS,MARKETING & PUBLICITY SERVICES,5902419457,1556957
03.06.2020,ENVIRONMENT DIRECTORATE,SOUTHWARK NEWSPAPER LTD,336.00,STREET WORKS OVERHEADS,MARKETING & PUBLICITY SERVICES,5902419468,1556957
03.06.2020,ENVIRONMENT DIRECTORATE,SOUTHWARK NEWSPAPER LTD,348.00,STREET WORKS OVERHEADS,MARKETING & PUBLICITY SERVICES,5902419455,1556957
03.06.2020,ENVIRONMENT DIRECTORATE,LONDON TOOLS LIMITED,390.00,STREETS (CENTRAL),MATERIALS,5902419387,1000003017
03.06.2020,EXCHEQUER SERVICES,FISCAL TECHNOLOGIES LTD,"1,170.00",FC&P QUALITY & PERFORMANCE,OFFICE EXPENSES,5902419342,1000075143
03.06.2020,HOUSING,PRB ESTATES LTD,"7,497.36",LEDBURY ESTATE,COVID 19 SUPPLIER RELIEF,2103106712,3000001691
03.06.2020,HOUSING GENERAL FUND,INFINITY NETWORKS LTD,"2,998.00",CAPITAL PS (REGEN),CONSTRUCTION MAIN CONTRACT,5902419378,1000035571
03.06.2020,HOUSING GENERAL FUND,INFINITY NETWORKS LTD,"2,998.00",CAPITAL PS (REGEN),CONSTRUCTION MAIN CONTRACT,5902419378,1000035571
03.06.2020,LEISURE DIRECTORATE,MAXIMILIAN MARSHALL,425.00,HERITAGE,MARKETING & PUBLICITY SERVICES,5902419491,1000051938
03.06.2020,LEISURE DIRECTORATE,WORKING TRANSITIONS,300.00,LIBRARIES DEVELOPMENT,TRAINING,5902419544,1000063689
03.06.2020,LEISURE DIRECTORATE,STRUCTURA UK LTD,"5,773.00",SOUTHWARK AREA TEAM,BUILDING R&M,2103106711,3000002156
03.06.2020,REGENERATION,BELL PHILLIPS ARCHITECTS LTD,"30,744.00",BLACKFRIARS ROAD PROJECT,PROFESSIONAL FEES,5902419547,1000069307
03.06.2020,RESIDENT SERVICES,CASTLE WATER LTD,"1,167.46",PECKHAM,WATER,5902419559,1000078867
03.06.2020,RESIDENT SERVICES,LONDON TOOLS LIMITED,289.50,TA HOSTELS,MATERIALS,5902419383,1000003017
03.06.2020,SBS OPERATIONS,LONDON TOOLS LIMITED,625.20,SBS COMMUNAL REPAIRS,MATERIALS,5902419385,1000003017
03.06.2020,SBS OPERATIONS,T4 INTELLIGENT INFRASTRUCTURE,"7,417.89",SBS COMMUNAL REPAIRS,OTHER CONTRACTORS,2103107675,3000001985
03.06.2020,SBS SUPPORT,LONDON TOOLS LIMITED,285.00,R & M OVERHEADS,HARDWARE,5902419368,1000003017
03.06.2020,SBS SUPPORT,LONDON TOOLS LIMITED,292.40,R & M OVERHEADS,HARDWARE,5902419368,1000003017
03.06.2020,SBS SUPPORT,LONDON TOOLS LIMITED,477.00,R & M OVERHEADS,MATERIALS,5902419430,1000003017
03.06.2020,SBS SUPPORT,LONDON TOOLS LIMITED,"1,890.00",STORES / LOGISTICS,MATERIALS,5902419367,1000003017
03.06.2020,SBS SUPPORT,LONDON TOOLS LIMITED,477.00,VOIDS OVERHEADS,MATERIALS,5902419430,1000003017
03.06.2020,SOUTHWARK BUILDING SERVICES,LONDON TOOLS LIMITED,264.00,STORES/LOGISTICS,CREDITORS -GR/IR CLEARING ACCOUNT,5902419435,1000003017
03.06.2020,SOUTHWARK BUILDING SERVICES,LONDON TOOLS LIMITED,345.00,STORES/LOGISTICS,CREDITORS -GR/IR CLEARING ACCOUNT,5902419377,1000003017
03.06.2020,SOUTHWARK BUILDING SERVICES,LONDON TOOLS LIMITED,356.40,STORES/LOGISTICS,CREDITORS -GR/IR CLEARING ACCOUNT,5902419434,1000003017
03.06.2020,SOUTHWARK BUILDING SERVICES,LONDON TOOLS LIMITED,439.20,STORES/LOGISTICS,CREDITORS -GR/IR CLEARING ACCOUNT,5902419375,1000003017
03.06.2020,SOUTHWARK BUILDING SERVICES,LONDON TOOLS LIMITED,595.00,STORES/LOGISTICS,CREDITORS -GR/IR CLEARING ACCOUNT,5902419439,1000003017
03.06.2020,SOUTHWARK BUILDING SERVICES,LONDON TOOLS LIMITED,"1,190.00",STORES/LOGISTICS,CREDITORS -GR/IR CLEARING ACCOUNT,5902419431,1000003017
03.06.2020,SOUTHWARK BUILDING SERVICES,LONDON TOOLS LIMITED,"1,190.00",STORES/LOGISTICS,CREDITORS -GR/IR CLEARING ACCOUNT,5902419440,1000003017
03.06.2020,SOUTHWARK BUILDING SERVICES,LONDON TOOLS LIMITED,"1,680.00",STORES/LOGISTICS,CREDITORS -GR/IR CLEARING ACCOUNT,5902419431,1000003017
03.06.2020,SOUTHWARK BUILDING SERVICES,LONDON TOOLS LIMITED,"1,680.00",STORES/LOGISTICS,CREDITORS -GR/IR CLEARING ACCOUNT,5902419439,1000003017
03.06.2020,SOUTHWARK BUILDING SERVICES,LONDON TOOLS LIMITED,"1,680.00",STORES/LOGISTICS,CREDITORS -GR/IR CLEARING ACCOUNT,5902419440,1000003017
03.06.2020,SOUTHWARK BUILDING SERVICES,LONDON TOOLS LIMITED,"2,520.00",STORES/LOGISTICS,CREDITORS -GR/IR CLEARING ACCOUNT,5902419382,1000003017
03.06.2020,SOUTHWARK BUILDING SERVICES,LONDON TOOLS LIMITED,"2,562.00",STORES/LOGISTICS,CREDITORS -GR/IR CLEARING ACCOUNT,5902419373,1000003017
03.06.2020,SOUTHWARK BUILDING SERVICES,LONDON TOOLS LIMITED,"2,562.00",STORES/LOGISTICS,CREDITORS -GR/IR CLEARING ACCOUNT,5902419373,1000003017
03.06.2020,SOUTHWARK BUILDING SERVICES,LONDON TOOLS LIMITED,"3,450.00",STORES/LOGISTICS,CREDITORS -GR/IR CLEARING ACCOUNT,5902419432,1000003017
03.06.2020,SOUTHWARK BUILDING SERVICES,LONDON TOOLS LIMITED,"5,510.80",STORES/LOGISTICS,CREDITORS -GR/IR CLEARING ACCOUNT,5902419374,1000003017
03.06.2020,SOUTHWARK BUILDING SERVICES,LONDON TOOLS LIMITED,"19,760.00",STORES/LOGISTICS,CREDITORS -GR/IR CLEARING ACCOUNT,5902419358,1000003017
03.06.2020,SOUTHWARK BUILDING SERVICES,LONDON TOOLS LIMITED,"26,600.00",STORES/LOGISTICS,CREDITORS -GR/IR CLEARING ACCOUNT,5902419359,1000003017
03.06.2020,SOUTHWARK BUILDING SERVICES,LONDON TOOLS LIMITED,"28,320.00",STORES/LOGISTICS,CREDITORS -GR/IR CLEARING ACCOUNT,5902419361,1000003017
03.06.2020,SOUTHWARK BUILDING SERVICES,LONDON TOOLS LIMITED,"29,640.00",STORES/LOGISTICS,CREDITORS -GR/IR CLEARING ACCOUNT,5902419360,1000003017
03.06.2020,SOUTHWARK BUILDING SERVICES,LONDON TOOLS LIMITED,"32,745.00",STORES/LOGISTICS,CREDITORS -GR/IR CLEARING ACCOUNT,5902419362,1000003017
03.06.2020,SOUTHWARK BUILDING SERVICES,LONDON TOOLS LIMITED,"34,515.00",STORES/LOGISTICS,CREDITORS -GR/IR CLEARING ACCOUNT,5902419364,1000003017
03.06.2020,SOUTHWARK BUILDING SERVICES,LONDON TOOLS LIMITED,"37,170.00",STORES/LOGISTICS,CREDITORS -GR/IR CLEARING ACCOUNT,5902419436,1000003017
04.06.2020,ADULT SOCIAL CARE,THE DRIVE CARE HOMES LTD,"19,025.94",DISABILITIES LAC,EXTERNAL AGENCIES AND BODIES,2103107843,1000003889
04.06.2020,ADULT SOCIAL CARE,CREATING CARE CHOICES LTD,"18,600.00",DISABILITIES LAC,EXTERNAL AGENCIES AND BODIES,2103107840,1000076738
04.06.2020,ADULT SOCIAL CARE,AMELIA'S HOUSE LIMITED,"2,400.00",DISABILITIES LAC,EXTERNAL AGENCIES AND BODIES,2103108159,1000083007
04.06.2020,ADULT SOCIAL CARE,AMELIA'S HOUSE LIMITED,"13,950.00",DISABILITIES LAC,EXTERNAL AGENCIES AND BODIES,2103108162,1000083007
04.06.2020,ADULT SOCIAL CARE,THE DRIVE CARE HOMES LTD,"14,126.52",DISABILITIES LAC,RESIDENTIAL CARE,2103107841,1000003889
04.06.2020,ADULT SOCIAL CARE,AMELIA'S HOUSE LIMITED,"16,986.45",DISABILITIES LAC,RESIDENTIAL CARE,2103108161,1000083007
04.06.2020,ADULT SOCIAL CARE,ACCESS MOBILITY TRANSPORT LTD,491.20,LD LTS 18-64,CLIENT TRANSPORT,2103107892,1000074637
04.06.2020,ADULT SOCIAL CARE,SURREY DOCKS FARM PROVIDENT SOCIETY,480.00,LD LTS 18-64,DAYCARE,2103108226,1000000958
04.06.2020,ADULT SOCIAL CARE,SURREY DOCKS FARM PROVIDENT SOCIETY,487.50,LD LTS 18-64,DAYCARE,2103108225,1000000958
04.06.2020,ADULT SOCIAL CARE,SURREY DOCKS FARM PROVIDENT SOCIETY,720.00,LD LTS 18-64,DAYCARE,2103108224,1000000958
04.06.2020,ADULT SOCIAL CARE,SWK DISABLEMENT ASSN,"1,350.96",LD LTS 18-64,HOMECARE - C&V,2103108286,1000011698
04.06.2020,ADULT SOCIAL CARE,SAGECARE LTD,301.75,LD LTS 18-64,HOMECARE - C&V,2103108000,1000080924
04.06.2020,ADULT SOCIAL CARE,SAGECARE LTD,777.75,LD LTS 18-64,HOMECARE - C&V,2103108139,1000080924
04.06.2020,ADULT SOCIAL CARE,SAGECARE LTD,952.00,LD LTS 18-64,HOMECARE - C&V,2103108027,1000080924
04.06.2020,ADULT SOCIAL CARE,SOUTHSIDE PARTNERSHIP LTD,"1,010.50",LD LTS 18-64,SUPPORTED LIVING,2103108214,1716624
04.06.2020,ADULT SOCIAL CARE,CARE O LINE,999.09,LD LTS 18-64,SUPPORTED LIVING,2103107904,11241743
04.06.2020,ADULT SOCIAL CARE,CARE O LINE,"1,530.94",LD LTS 18-64,SUPPORTED LIVING,2103107898,11241743
04.06.2020,ADULT SOCIAL CARE,SWK DISABLEMENT ASSN,443.04,LD LTS 18-64,SUPPORTED LIVING,2103108234,1000011698
04.06.2020,ADULT SOCIAL CARE,SWK DISABLEMENT ASSN,443.04,LD LTS 18-64,SUPPORTED LIVING,2103108259,1000011698
04.06.2020,ADULT SOCIAL CARE,SWK DISABLEMENT ASSN,443.04,LD LTS 18-64,SUPPORTED LIVING,2103108277,1000011698
04.06.2020,ADULT SOCIAL CARE,SWK DISABLEMENT ASSN,738.40,LD LTS 18-64,SUPPORTED LIVING,2103108248,1000011698
04.06.2020,ADULT SOCIAL CARE,SWK DISABLEMENT ASSN,"1,144.52",LD LTS 18-64,SUPPORTED LIVING,2103108291,1000011698
04.06.2020,ADULT SOCIAL CARE,SWK DISABLEMENT ASSN,"1,255.28",LD LTS 18-64,SUPPORTED LIVING,2103108244,1000011698
04.06.2020,ADULT SOCIAL CARE,RESOURCES FOR AUTISM,"1,800.00",LD LTS 18-64,SUPPORTED LIVING,2103107903,1000062540
04.06.2020,ADULT SOCIAL CARE,MARCUS AND MARCUS LTD,"2,000.00",LD LTS 18-64,SUPPORTED LIVING,2103107899,1000065913
04.06.2020,ADULT SOCIAL CARE,MARCUS AND MARCUS LTD,"4,800.00",LD LTS 18-64,SUPPORTED LIVING,2103107890,1000065913
04.06.2020,ADULT SOCIAL CARE,CARE DIRECT UK LTD,347.51,LD LTS 18-64,SUPPORTED LIVING,2103108222,1000066322
04.06.2020,ADULT SOCIAL CARE,PECULIAR CARE HOMES LTD,"1,346.25",LD LTS 18-64,SUPPORTED LIVING,2103108221,1000076991
04.06.2020,ADULT SOCIAL CARE,ABILITY FOCUS LTD,"2,100.00",LD LTS 18-64,SUPPORTED LIVING,2103107893,1000084199
04.06.2020,ADULT SOCIAL CARE,REDACTED PERSONAL DATA,390.00,LD LTS 18-64,SUPPORTED LIVING,REDACTED,REDACTED
04.06.2020,ADULT SOCIAL CARE,SWK DISABLEMENT ASSN,"1,550.64",LD LTS 65+,SUPPORTED LIVING,2103108245,1000011698
04.06.2020,ADULT SOCIAL CARE,SAGECARE LTD,717.90,MEM LTS 18-64,HOMECARE - C&V,2103107988,1000080924
04.06.2020,ADULT SOCIAL CARE,SAGECARE LTD,255.00,MEM LTS 65+,HOMECARE - C&V,2103108017,1000080924
04.06.2020,ADULT SOCIAL CARE,SAGECARE LTD,357.00,MEM LTS 65+,HOMECARE - C&V,2103108033,1000080924
04.06.2020,ADULT SOCIAL CARE,SAGECARE LTD,531.25,MEM LTS 65+,HOMECARE - C&V,2103108054,1000080924
04.06.2020,ADULT SOCIAL CARE,SAGECARE LTD,586.50,MEM LTS 65+,HOMECARE - C&V,2103108075,1000080924
04.06.2020,ADULT SOCIAL CARE,SAGECARE LTD,646.00,MEM LTS 65+,HOMECARE - C&V,2103107995,1000080924
04.06.2020,ADULT SOCIAL CARE,SAGECARE LTD,935.00,MEM LTS 65+,HOMECARE - C&V,2103108056,1000080924
04.06.2020,ADULT SOCIAL CARE,SAGECARE LTD,"1,732.71",MEM LTS 65+,HOMECARE - C&V,2103108002,1000080924
04.06.2020,ADULT SOCIAL CARE,SAGECARE LTD,344.25,MH LTS 18-64,HOMECARE - C&V,2103107908,1000080924
04.06.2020,ADULT SOCIAL CARE,SAGECARE LTD,510.00,MH LTS 18-64,HOMECARE - C&V,2103107975,1000080924
04.06.2020,ADULT SOCIAL CARE,SAGECARE LTD,527.00,MH LTS 18-64,HOMECARE - C&V,2103108065,1000080924
04.06.2020,ADULT SOCIAL CARE,SAGECARE LTD,535.50,MH LTS 18-64,HOMECARE - C&V,2103107930,1000080924
04.06.2020,ADULT SOCIAL CARE,SAGECARE LTD,"1,194.25",MH LTS 18-64,HOMECARE - C&V,2103108057,1000080924
04.06.2020,ADULT SOCIAL CARE,SWK DISABLEMENT ASSN,369.20,MH LTS 18-64,HOMECARE - SPOT,2103108276,1000011698
04.06.2020,ADULT SOCIAL CARE,SWK DISABLEMENT ASSN,886.08,MH LTS 18-64,HOMECARE - SPOT,2103108251,1000011698
04.06.2020,ADULT SOCIAL CARE,OASIS CARE AND TRAINING AGENCY,937.72,MH LTS 18-64,SUPPORTED LIVING,2103107901,1000003687
04.06.2020,ADULT SOCIAL CARE,SWK DISABLEMENT ASSN,276.90,MH LTS 18-64,SUPPORTED LIVING,2103108266,1000011698
04.06.2020,ADULT SOCIAL CARE,SWK DISABLEMENT ASSN,289.92,MH LTS 18-64,SUPPORTED LIVING,2103108262,1000011698
04.06.2020,ADULT SOCIAL CARE,SWK DISABLEMENT ASSN,295.36,MH LTS 18-64,SUPPORTED LIVING,2103108272,1000011698
04.06.2020,ADULT SOCIAL CARE,SWK DISABLEMENT ASSN,295.36,MH LTS 18-64,SUPPORTED LIVING,2103108294,1000011698
04.06.2020,ADULT SOCIAL CARE,SWK DISABLEMENT ASSN,296.04,MH LTS 18-64,SUPPORTED LIVING,2103108267,1000011698
04.06.2020,ADULT SOCIAL CARE,SWK DISABLEMENT ASSN,369.20,MH LTS 18-64,SUPPORTED LIVING,2103108240,1000011698
04.06.2020,ADULT SOCIAL CARE,SWK DISABLEMENT ASSN,369.20,MH LTS 18-64,SUPPORTED LIVING,2103108252,1000011698
04.06.2020,ADULT SOCIAL CARE,SWK DISABLEMENT ASSN,479.96,MH LTS 18-64,SUPPORTED LIVING,2103108258,1000011698
04.06.2020,ADULT SOCIAL CARE,SWK DISABLEMENT ASSN,590.72,MH LTS 18-64,SUPPORTED LIVING,2103108298,1000011698
04.06.2020,ADULT SOCIAL CARE,SWK DISABLEMENT ASSN,664.56,MH LTS 18-64,SUPPORTED LIVING,2103108290,1000011698
04.06.2020,ADULT SOCIAL CARE,SWK DISABLEMENT ASSN,886.08,MH LTS 18-64,SUPPORTED LIVING,2103108239,1000011698
04.06.2020,ADULT SOCIAL CARE,SWK DISABLEMENT ASSN,"1,684.48",MH LTS 18-64,SUPPORTED LIVING,2103108250,1000011698
04.06.2020,ADULT SOCIAL CARE,REDACTED PERSONAL DATA,285.30,MH LTS 18-64,SUPPORTED LIVING,REDACTED,REDACTED
04.06.2020,ADULT SOCIAL CARE,REDACTED PERSONAL DATA,427.95,MH LTS 18-64,SUPPORTED LIVING,REDACTED,REDACTED
04.06.2020,ADULT SOCIAL CARE,REDACTED PERSONAL DATA,602.30,MH LTS 18-64,SUPPORTED LIVING,REDACTED,REDACTED
04.06.2020,ADULT SOCIAL CARE,REDACTED PERSONAL DATA,665.70,MH LTS 18-64,SUPPORTED LIVING,REDACTED,REDACTED
04.06.2020,ADULT SOCIAL CARE,REDACTED PERSONAL DATA,729.10,MH LTS 18-64,SUPPORTED LIVING,REDACTED,REDACTED
04.06.2020,ADULT SOCIAL CARE,SAGECARE LTD,272.00,MH LTS 65+,HOMECARE - C&V,2103108100,1000080924
04.06.2020,ADULT SOCIAL CARE,SAGECARE LTD,276.25,MH LTS 65+,HOMECARE - C&V,2103107912,1000080924
04.06.2020,ADULT SOCIAL CARE,SAGECARE LTD,612.00,MH LTS 65+,HOMECARE - C&V,2103108043,1000080924
04.06.2020,ADULT SOCIAL CARE,SAGECARE LTD,637.50,MH LTS 65+,HOMECARE - C&V,2103108064,1000080924
04.06.2020,ADULT SOCIAL CARE,SAGECARE LTD,828.75,MH LTS 65+,HOMECARE - C&V,2103107983,1000080924
04.06.2020,ADULT SOCIAL CARE,SWK DISABLEMENT ASSN,295.36,MH LTS 65+,SUPPORTED LIVING,2103108242,1000011698
04.06.2020,ADULT SOCIAL CARE,SWK DISABLEMENT ASSN,466.12,MH LTS 65+,SUPPORTED LIVING,2103108271,1000011698
04.06.2020,ADULT SOCIAL CARE,REDACTED PERSONAL DATA,301.15,MH LTS 65+,SUPPORTED LIVING,REDACTED,REDACTED
04.06.2020,ADULT SOCIAL CARE,PHOENIX HEALTHCARE & RECRUITMENT,431.44,PHY LTS 18-64,DAYCARE,2103107894,1000065636
04.06.2020,ADULT SOCIAL CARE,PHOENIX HEALTHCARE & RECRUITMENT,477.84,PHY LTS 18-64,DAYCARE,2103107902,1000065636
04.06.2020,ADULT SOCIAL CARE,SAGECARE LTD,263.50,PHY LTS 18-64,HOMECARE - C&V,2103108023,1000080924
04.06.2020,ADULT SOCIAL CARE,SAGECARE LTD,276.25,PHY LTS 18-64,HOMECARE - C&V,2103108141,1000080924
04.06.2020,ADULT SOCIAL CARE,SAGECARE LTD,301.75,PHY LTS 18-64,HOMECARE - C&V,2103107985,1000080924
04.06.2020,ADULT SOCIAL CARE,SAGECARE LTD,306.00,PHY LTS 18-64,HOMECARE - C&V,2103108125,1000080924
04.06.2020,ADULT SOCIAL CARE,SAGECARE LTD,318.75,PHY LTS 18-64,HOMECARE - C&V,2103107950,1000080924
04.06.2020,ADULT SOCIAL CARE,SAGECARE LTD,331.50,PHY LTS 18-64,HOMECARE - C&V,2103107947,1000080924
04.06.2020,ADULT SOCIAL CARE,SAGECARE LTD,331.50,PHY LTS 18-64,HOMECARE - C&V,2103108134,1000080924
04.06.2020,ADULT SOCIAL CARE,SAGECARE LTD,344.25,PHY LTS 18-64,HOMECARE - C&V,2103108089,1000080924
04.06.2020,ADULT SOCIAL CARE,SAGECARE LTD,348.50,PHY LTS 18-64,HOMECARE - C&V,2103108128,1000080924
04.06.2020,ADULT SOCIAL CARE,SAGECARE LTD,352.58,PHY LTS 18-64,HOMECARE - C&V,2103107989,1000080924
04.06.2020,ADULT SOCIAL CARE,SAGECARE LTD,386.75,PHY LTS 18-64,HOMECARE - C&V,2103108132,1000080924
04.06.2020,ADULT SOCIAL CARE,SAGECARE LTD,403.75,PHY LTS 18-64,HOMECARE - C&V,2103108026,1000080924
04.06.2020,ADULT SOCIAL CARE,SAGECARE LTD,420.75,PHY LTS 18-64,HOMECARE - C&V,2103108035,1000080924
04.06.2020,ADULT SOCIAL CARE,SAGECARE LTD,425.00,PHY LTS 18-64,HOMECARE - C&V,2103108090,1000080924
04.06.2020,ADULT SOCIAL CARE,SAGECARE LTD,514.25,PHY LTS 18-64,HOMECARE - C&V,2103108055,1000080924
04.06.2020,ADULT SOCIAL CARE,SAGECARE LTD,518.24,PHY LTS 18-64,HOMECARE - C&V,2103108001,1000080924
04.06.2020,ADULT SOCIAL CARE,SAGECARE LTD,530.90,PHY LTS 18-64,HOMECARE - C&V,2103107952,1000080924
04.06.2020,ADULT SOCIAL CARE,SAGECARE LTD,556.75,PHY LTS 18-64,HOMECARE - C&V,2103107923,1000080924
04.06.2020,ADULT SOCIAL CARE,SAGECARE LTD,556.75,PHY LTS 18-64,HOMECARE - C&V,2103108109,1000080924
04.06.2020,ADULT SOCIAL CARE,SAGECARE LTD,577.74,PHY LTS 18-64,HOMECARE - C&V,2103107934,1000080924
04.06.2020,ADULT SOCIAL CARE,SAGECARE LTD,582.25,PHY LTS 18-64,HOMECARE - C&V,2103108080,1000080924
04.06.2020,ADULT SOCIAL CARE,SAGECARE LTD,595.00,PHY LTS 18-64,HOMECARE - C&V,2103108087,1000080924
04.06.2020,ADULT SOCIAL CARE,SAGECARE LTD,599.25,PHY LTS 18-64,HOMECARE - C&V,2103108041,1000080924
04.06.2020,ADULT SOCIAL CARE,SAGECARE LTD,867.00,PHY LTS 18-64,HOMECARE - C&V,2103108123,1000080924
04.06.2020,ADULT SOCIAL CARE,SAGECARE LTD,871.25,PHY LTS 18-64,HOMECARE - C&V,2103107955,1000080924
04.06.2020,ADULT SOCIAL CARE,SAGECARE LTD,888.25,PHY LTS 18-64,HOMECARE - C&V,2103107931,1000080924
04.06.2020,ADULT SOCIAL CARE,SAGECARE LTD,939.25,PHY LTS 18-64,HOMECARE - C&V,2103108154,1000080924
04.06.2020,ADULT SOCIAL CARE,SAGECARE LTD,"1,003.00",PHY LTS 18-64,HOMECARE - C&V,2103107946,1000080924
04.06.2020,ADULT SOCIAL CARE,SAGECARE LTD,"1,100.40",PHY LTS 18-64,HOMECARE - C&V,2103108146,1000080924
04.06.2020,ADULT SOCIAL CARE,SAGECARE LTD,"1,177.25",PHY LTS 18-64,HOMECARE - C&V,2103108079,1000080924
04.06.2020,ADULT SOCIAL CARE,SAGECARE LTD,"1,210.91",PHY LTS 18-64,HOMECARE - C&V,2103107968,1000080924
04.06.2020,ADULT SOCIAL CARE,SAGECARE LTD,"1,508.75",PHY LTS 18-64,HOMECARE - C&V,2103107919,1000080924
04.06.2020,ADULT SOCIAL CARE,SAGECARE LTD,"1,555.50",PHY LTS 18-64,HOMECARE - C&V,2103108073,1000080924
04.06.2020,ADULT SOCIAL CARE,SAGECARE LTD,"1,848.75",PHY LTS 18-64,HOMECARE - C&V,2103108063,1000080924
04.06.2020,ADULT SOCIAL CARE,SWK DISABLEMENT ASSN,311.76,PHY LTS 18-64,HOMECARE - SPOT,2103108243,1000011698
04.06.2020,ADULT SOCIAL CARE,SWK DISABLEMENT ASSN,484.96,PHY LTS 18-64,HOMECARE - SPOT,2103108270,1000011698
04.06.2020,ADULT SOCIAL CARE,SWK DISABLEMENT ASSN,969.92,PHY LTS 18-64,HOMECARE - SPOT,2103108295,1000011698
04.06.2020,ADULT SOCIAL CARE,SWK DISABLEMENT ASSN,"1,108.48",PHY LTS 18-64,HOMECARE - SPOT,2103108260,1000011698
04.06.2020,ADULT SOCIAL CARE,SWK DISABLEMENT ASSN,"1,177.76",PHY LTS 18-64,HOMECARE - SPOT,2103108246,1000011698
04.06.2020,ADULT SOCIAL CARE,SWK DISABLEMENT ASSN,"1,749.32",PHY LTS 18-64,HOMECARE - SPOT,2103108231,1000011698
04.06.2020,ADULT SOCIAL CARE,SWK DISABLEMENT ASSN,"2,286.24",PHY LTS 18-64,HOMECARE - SPOT,2103108293,1000011698
04.06.2020,ADULT SOCIAL CARE,SWK DISABLEMENT ASSN,"2,719.24",PHY LTS 18-64,HOMECARE - SPOT,2103108273,1000011698
04.06.2020,ADULT SOCIAL CARE,SWK DISABLEMENT ASSN,"3,087.44",PHY LTS 18-64,HOMECARE - SPOT,2103108287,1000011698
04.06.2020,ADULT SOCIAL CARE,SWK DISABLEMENT ASSN,"3,498.64",PHY LTS 18-64,HOMECARE - SPOT,2103108238,1000011698
04.06.2020,ADULT SOCIAL CARE,SAGECARE LTD,726.75,PHY LTS 18-64,HOMECARE - SPOT,2103108018,1000080924
04.06.2020,ADULT SOCIAL CARE,SWK DISABLEMENT ASSN,516.88,PHY LTS 18-64,SUPPORTED LIVING,2103108283,1000011698
04.06.2020,ADULT SOCIAL CARE,PECULIAR CARE HOMES LTD,897.50,PHY LTS 18-64,SUPPORTED LIVING,2103108215,1000076991
04.06.2020,ADULT SOCIAL CARE,REDACTED PERSONAL DATA,256.00,PHY LTS 18-64,DAYCARE,REDACTED,REDACTED
04.06.2020,ADULT SOCIAL CARE,REDACTED PERSONAL DATA,256.00,PHY LTS 18-64,DAYCARE,REDACTED,REDACTED
04.06.2020,ADULT SOCIAL CARE,LONDON CARE LTD,916.68,PHY LTS 65+,HOMECARE - C&V,2103108299,1000003398
04.06.2020,ADULT SOCIAL CARE,SAGECARE LTD,250.75,PHY LTS 65+,HOMECARE - C&V,2103108014,1000080924
04.06.2020,ADULT SOCIAL CARE,SAGECARE LTD,259.25,PHY LTS 65+,HOMECARE - C&V,2103107943,1000080924
04.06.2020,ADULT SOCIAL CARE,SAGECARE LTD,272.00,PHY LTS 65+,HOMECARE - C&V,2103107935,1000080924
04.06.2020,ADULT SOCIAL CARE,SAGECARE LTD,272.00,PHY LTS 65+,HOMECARE - C&V,2103108031,1000080924
04.06.2020,ADULT SOCIAL CARE,SAGECARE LTD,281.63,PHY LTS 65+,HOMECARE - C&V,2103108129,1000080924
04.06.2020,ADULT SOCIAL CARE,SAGECARE LTD,310.25,PHY LTS 65+,HOMECARE - C&V,2103107944,1000080924
04.06.2020,ADULT SOCIAL CARE,SAGECARE LTD,331.24,PHY LTS 65+,HOMECARE - C&V,2103108088,1000080924
04.06.2020,ADULT SOCIAL CARE,SAGECARE LTD,332.44,PHY LTS 65+,HOMECARE - C&V,2103108104,1000080924
04.06.2020,ADULT SOCIAL CARE,SAGECARE LTD,352.75,PHY LTS 65+,HOMECARE - C&V,2103108121,1000080924
04.06.2020,ADULT SOCIAL CARE,SAGECARE LTD,357.00,PHY LTS 65+,HOMECARE - C&V,2103108032,1000080924
04.06.2020,ADULT SOCIAL CARE,SAGECARE LTD,360.99,PHY LTS 65+,HOMECARE - C&V,2103107957,1000080924
04.06.2020,ADULT SOCIAL CARE,SAGECARE LTD,361.25,PHY LTS 65+,HOMECARE - C&V,2103108131,1000080924
04.06.2020,ADULT SOCIAL CARE,SAGECARE LTD,369.75,PHY LTS 65+,HOMECARE - C&V,2103108005,1000080924
04.06.2020,ADULT SOCIAL CARE,SAGECARE LTD,378.25,PHY LTS 65+,HOMECARE - C&V,2103108078,1000080924
04.06.2020,ADULT SOCIAL CARE,SAGECARE LTD,386.75,PHY LTS 65+,HOMECARE - C&V,2103107937,1000080924
04.06.2020,ADULT SOCIAL CARE,SAGECARE LTD,391.00,PHY LTS 65+,HOMECARE - C&V,2103107939,1000080924
04.06.2020,ADULT SOCIAL CARE,SAGECARE LTD,391.00,PHY LTS 65+,HOMECARE - C&V,2103108003,1000080924
04.06.2020,ADULT SOCIAL CARE,SAGECARE LTD,408.00,PHY LTS 65+,HOMECARE - C&V,2103108136,1000080924
04.06.2020,ADULT SOCIAL CARE,SAGECARE LTD,425.00,PHY LTS 65+,HOMECARE - C&V,2103107906,1000080924
04.06.2020,ADULT SOCIAL CARE,SAGECARE LTD,429.25,PHY LTS 65+,HOMECARE - C&V,2103107997,1000080924
04.06.2020,ADULT SOCIAL CARE,SAGECARE LTD,442.00,PHY LTS 65+,HOMECARE - C&V,2103108135,1000080924
04.06.2020,ADULT SOCIAL CARE,SAGECARE LTD,442.00,PHY LTS 65+,HOMECARE - C&V,2103108143,1000080924
04.06.2020,ADULT SOCIAL CARE,SAGECARE LTD,471.75,PHY LTS 65+,HOMECARE - C&V,2103108077,1000080924
04.06.2020,ADULT SOCIAL CARE,SAGECARE LTD,476.00,PHY LTS 65+,HOMECARE - C&V,2103107914,1000080924
04.06.2020,ADULT SOCIAL CARE,SAGECARE LTD,476.00,PHY LTS 65+,HOMECARE - C&V,2103108072,1000080924
04.06.2020,ADULT SOCIAL CARE,SAGECARE LTD,480.25,PHY LTS 65+,HOMECARE - C&V,2103107911,1000080924
04.06.2020,ADULT SOCIAL CARE,SAGECARE LTD,488.75,PHY LTS 65+,HOMECARE - C&V,2103107974,1000080924
04.06.2020,ADULT SOCIAL CARE,SAGECARE LTD,493.00,PHY LTS 65+,HOMECARE - C&V,2103107986,1000080924
04.06.2020,ADULT SOCIAL CARE,SAGECARE LTD,497.25,PHY LTS 65+,HOMECARE - C&V,2103108059,1000080924
04.06.2020,ADULT SOCIAL CARE,SAGECARE LTD,501.50,PHY LTS 65+,HOMECARE - C&V,2103107922,1000080924
04.06.2020,ADULT SOCIAL CARE,SAGECARE LTD,510.00,PHY LTS 65+,HOMECARE - C&V,2103107951,1000080924
04.06.2020,ADULT SOCIAL CARE,SAGECARE LTD,531.25,PHY LTS 65+,HOMECARE - C&V,2103108081,1000080924
04.06.2020,ADULT SOCIAL CARE,SAGECARE LTD,552.50,PHY LTS 65+,HOMECARE - C&V,2103108025,1000080924
04.06.2020,ADULT SOCIAL CARE,SAGECARE LTD,573.75,PHY LTS 65+,HOMECARE - C&V,2103107999,1000080924
04.06.2020,ADULT SOCIAL CARE,SAGECARE LTD,582.25,PHY LTS 65+,HOMECARE - C&V,2103108101,1000080924
04.06.2020,ADULT SOCIAL CARE,SAGECARE LTD,585.08,PHY LTS 65+,HOMECARE - C&V,2103107916,1000080924
04.06.2020,ADULT SOCIAL CARE,SAGECARE LTD,586.50,PHY LTS 65+,HOMECARE - C&V,2103108086,1000080924
04.06.2020,ADULT SOCIAL CARE,SAGECARE LTD,590.75,PHY LTS 65+,HOMECARE - C&V,2103108039,1000080924
04.06.2020,ADULT SOCIAL CARE,SAGECARE LTD,599.25,PHY LTS 65+,HOMECARE - C&V,2103107969,1000080924
04.06.2020,ADULT SOCIAL CARE,SAGECARE LTD,606.56,PHY LTS 65+,HOMECARE - C&V,2103107953,1000080924
04.06.2020,ADULT SOCIAL CARE,SAGECARE LTD,633.08,PHY LTS 65+,HOMECARE - C&V,2103108047,1000080924
04.06.2020,ADULT SOCIAL CARE,SAGECARE LTD,654.50,PHY LTS 65+,HOMECARE - C&V,2103108004,1000080924
04.06.2020,ADULT SOCIAL CARE,SAGECARE LTD,667.25,PHY LTS 65+,HOMECARE - C&V,2103108111,1000080924
04.06.2020,ADULT SOCIAL CARE,SAGECARE LTD,675.75,PHY LTS 65+,HOMECARE - C&V,2103107936,1000080924
04.06.2020,ADULT SOCIAL CARE,SAGECARE LTD,684.25,PHY LTS 65+,HOMECARE - C&V,2103108010,1000080924
04.06.2020,ADULT SOCIAL CARE,SAGECARE LTD,684.25,PHY LTS 65+,HOMECARE - C&V,2103108061,1000080924
04.06.2020,ADULT SOCIAL CARE,SAGECARE LTD,692.58,PHY LTS 65+,HOMECARE - C&V,2103108067,1000080924
04.06.2020,ADULT SOCIAL CARE,SAGECARE LTD,692.75,PHY LTS 65+,HOMECARE - C&V,2103108084,1000080924
04.06.2020,ADULT SOCIAL CARE,SAGECARE LTD,697.00,PHY LTS 65+,HOMECARE - C&V,2103108155,1000080924
04.06.2020,ADULT SOCIAL CARE,SAGECARE LTD,701.25,PHY LTS 65+,HOMECARE - C&V,2103107970,1000080924
04.06.2020,ADULT SOCIAL CARE,SAGECARE LTD,701.25,PHY LTS 65+,HOMECARE - C&V,2103108012,1000080924
04.06.2020,ADULT SOCIAL CARE,SAGECARE LTD,704.82,PHY LTS 65+,HOMECARE - C&V,2103107964,1000080924
04.06.2020,ADULT SOCIAL CARE,SAGECARE LTD,709.75,PHY LTS 65+,HOMECARE - C&V,2103108051,1000080924
04.06.2020,ADULT SOCIAL CARE,SAGECARE LTD,713.74,PHY LTS 65+,HOMECARE - C&V,2103107998,1000080924
04.06.2020,ADULT SOCIAL CARE,SAGECARE LTD,722.50,PHY LTS 65+,HOMECARE - C&V,2103107981,1000080924
04.06.2020,ADULT SOCIAL CARE,SAGECARE LTD,726.75,PHY LTS 65+,HOMECARE - C&V,2103108060,1000080924
04.06.2020,ADULT SOCIAL CARE,SAGECARE LTD,731.00,PHY LTS 65+,HOMECARE - C&V,2103107980,1000080924
04.06.2020,ADULT SOCIAL CARE,SAGECARE LTD,739.33,PHY LTS 65+,HOMECARE - C&V,2103108011,1000080924
04.06.2020,ADULT SOCIAL CARE,SAGECARE LTD,769.25,PHY LTS 65+,HOMECARE - C&V,2103108042,1000080924
04.06.2020,ADULT SOCIAL CARE,SAGECARE LTD,773.50,PHY LTS 65+,HOMECARE - C&V,2103108113,1000080924
04.06.2020,ADULT SOCIAL CARE,SAGECARE LTD,782.00,PHY LTS 65+,HOMECARE - C&V,2103107978,1000080924
04.06.2020,ADULT SOCIAL CARE,SAGECARE LTD,782.00,PHY LTS 65+,HOMECARE - C&V,2103108009,1000080924
04.06.2020,ADULT SOCIAL CARE,SAGECARE LTD,786.25,PHY LTS 65+,HOMECARE - C&V,2103108117,1000080924
04.06.2020,ADULT SOCIAL CARE,SAGECARE LTD,790.50,PHY LTS 65+,HOMECARE - C&V,2103108083,1000080924
04.06.2020,ADULT SOCIAL CARE,SAGECARE LTD,794.75,PHY LTS 65+,HOMECARE - C&V,2103108008,1000080924
04.06.2020,ADULT SOCIAL CARE,SAGECARE LTD,798.74,PHY LTS 65+,HOMECARE - C&V,2103107984,1000080924
04.06.2020,ADULT SOCIAL CARE,SAGECARE LTD,810.63,PHY LTS 65+,HOMECARE - C&V,2103107979,1000080924
04.06.2020,ADULT SOCIAL CARE,SAGECARE LTD,820.25,PHY LTS 65+,HOMECARE - C&V,2103107976,1000080924
04.06.2020,ADULT SOCIAL CARE,SAGECARE LTD,824.33,PHY LTS 65+,HOMECARE - C&V,2103107918,1000080924
04.06.2020,ADULT SOCIAL CARE,SAGECARE LTD,828.75,PHY LTS 65+,HOMECARE - C&V,2103108034,1000080924
04.06.2020,ADULT SOCIAL CARE,SAGECARE LTD,837.25,PHY LTS 65+,HOMECARE - C&V,2103108006,1000080924
04.06.2020,ADULT SOCIAL CARE,SAGECARE LTD,837.25,PHY LTS 65+,HOMECARE - C&V,2103108053,1000080924
04.06.2020,ADULT SOCIAL CARE,SAGECARE LTD,841.50,PHY LTS 65+,HOMECARE - C&V,2103108127,1000080924
04.06.2020,ADULT SOCIAL CARE,SAGECARE LTD,862.75,PHY LTS 65+,HOMECARE - C&V,2103107954,1000080924
04.06.2020,ADULT SOCIAL CARE,SAGECARE LTD,867.00,PHY LTS 65+,HOMECARE - C&V,2103108024,1000080924
04.06.2020,ADULT SOCIAL CARE,SAGECARE LTD,892.24,PHY LTS 65+,HOMECARE - C&V,2103108152,1000080924
04.06.2020,ADULT SOCIAL CARE,SAGECARE LTD,896.75,PHY LTS 65+,HOMECARE - C&V,2103108082,1000080924
04.06.2020,ADULT SOCIAL CARE,SAGECARE LTD,896.75,PHY LTS 65+,HOMECARE - C&V,2103108098,1000080924
04.06.2020,ADULT SOCIAL CARE,SAGECARE LTD,901.00,PHY LTS 65+,HOMECARE - C&V,2103107907,1000080924
04.06.2020,ADULT SOCIAL CARE,SAGECARE LTD,908.90,PHY LTS 65+,HOMECARE - C&V,2103108069,1000080924
04.06.2020,ADULT SOCIAL CARE,SAGECARE LTD,922.25,PHY LTS 65+,HOMECARE - C&V,2103108038,1000080924
04.06.2020,ADULT SOCIAL CARE,SAGECARE LTD,922.25,PHY LTS 65+,HOMECARE - C&V,2103108091,1000080924
04.06.2020,ADULT SOCIAL CARE,SAGECARE LTD,934.83,PHY LTS 65+,HOMECARE - C&V,2103107959,1000080924
04.06.2020,ADULT SOCIAL CARE,SAGECARE LTD,943.50,PHY LTS 65+,HOMECARE - C&V,2103107915,1000080924
04.06.2020,ADULT SOCIAL CARE,SAGECARE LTD,943.50,PHY LTS 65+,HOMECARE - C&V,2103107917,1000080924
04.06.2020,ADULT SOCIAL CARE,SAGECARE LTD,947.07,PHY LTS 65+,HOMECARE - C&V,2103107992,1000080924
04.06.2020,ADULT SOCIAL CARE,SAGECARE LTD,952.00,PHY LTS 65+,HOMECARE - C&V,2103107949,1000080924
04.06.2020,ADULT SOCIAL CARE,SAGECARE LTD,956.25,PHY LTS 65+,HOMECARE - C&V,2103108133,1000080924
04.06.2020,ADULT SOCIAL CARE,SAGECARE LTD,969.00,PHY LTS 65+,HOMECARE - C&V,2103107928,1000080924
04.06.2020,ADULT SOCIAL CARE,SAGECARE LTD,973.25,PHY LTS 65+,HOMECARE - C&V,2103108106,1000080924
04.06.2020,ADULT SOCIAL CARE,SAGECARE LTD,977.50,PHY LTS 65+,HOMECARE - C&V,2103108048,1000080924
04.06.2020,ADULT SOCIAL CARE,SAGECARE LTD,981.06,PHY LTS 65+,HOMECARE - C&V,2103107966,1000080924
04.06.2020,ADULT SOCIAL CARE,SAGECARE LTD,990.25,PHY LTS 65+,HOMECARE - C&V,2103108050,1000080924
04.06.2020,ADULT SOCIAL CARE,SAGECARE LTD,"1,003.00",PHY LTS 65+,HOMECARE - C&V,2103108097,1000080924
04.06.2020,ADULT SOCIAL CARE,SAGECARE LTD,"1,003.00",PHY LTS 65+,HOMECARE - C&V,2103108119,1000080924
04.06.2020,ADULT SOCIAL CARE,SAGECARE LTD,"1,014.81",PHY LTS 65+,HOMECARE - C&V,2103108093,1000080924
04.06.2020,ADULT SOCIAL CARE,SAGECARE LTD,"1,036.65",PHY LTS 65+,HOMECARE - C&V,2103108137,1000080924
04.06.2020,ADULT SOCIAL CARE,SAGECARE LTD,"1,037.00",PHY LTS 65+,HOMECARE - C&V,2103108052,1000080924
04.06.2020,ADULT SOCIAL CARE,SAGECARE LTD,"1,041.25",PHY LTS 65+,HOMECARE - C&V,2103108036,1000080924
04.06.2020,ADULT SOCIAL CARE,SAGECARE LTD,"1,049.75",PHY LTS 65+,HOMECARE - C&V,2103107926,1000080924
04.06.2020,ADULT SOCIAL CARE,SAGECARE LTD,"1,057.56",PHY LTS 65+,HOMECARE - C&V,2103107996,1000080924
04.06.2020,ADULT SOCIAL CARE,SAGECARE LTD,"1,058.25",PHY LTS 65+,HOMECARE - C&V,2103107991,1000080924
04.06.2020,ADULT SOCIAL CARE,SAGECARE LTD,"1,068.23",PHY LTS 65+,HOMECARE - C&V,2103107933,1000080924
04.06.2020,ADULT SOCIAL CARE,SAGECARE LTD,"1,071.00",PHY LTS 65+,HOMECARE - C&V,2103108028,1000080924
04.06.2020,ADULT SOCIAL CARE,SAGECARE LTD,"1,102.10",PHY LTS 65+,HOMECARE - C&V,2103108095,1000080924
04.06.2020,ADULT SOCIAL CARE,SAGECARE LTD,"1,109.25",PHY LTS 65+,HOMECARE - C&V,2103108013,1000080924
04.06.2020,ADULT SOCIAL CARE,SAGECARE LTD,"1,117.75",PHY LTS 65+,HOMECARE - C&V,2103108149,1000080924
04.06.2020,ADULT SOCIAL CARE,SAGECARE LTD,"1,143.25",PHY LTS 65+,HOMECARE - C&V,2103108094,1000080924
04.06.2020,ADULT SOCIAL CARE,SAGECARE LTD,"1,151.41",PHY LTS 65+,HOMECARE - C&V,2103108138,1000080924
04.06.2020,ADULT SOCIAL CARE,SAGECARE LTD,"1,151.75",PHY LTS 65+,HOMECARE - C&V,2103108148,1000080924
04.06.2020,ADULT SOCIAL CARE,SAGECARE LTD,"1,156.00",PHY LTS 65+,HOMECARE - C&V,2103107942,1000080924
04.06.2020,ADULT SOCIAL CARE,SAGECARE LTD,"1,177.25",PHY LTS 65+,HOMECARE - C&V,2103108076,1000080924
04.06.2020,ADULT SOCIAL CARE,SAGECARE LTD,"1,181.50",PHY LTS 65+,HOMECARE - C&V,2103108140,1000080924
04.06.2020,ADULT SOCIAL CARE,SAGECARE LTD,"1,185.75",PHY LTS 65+,HOMECARE - C&V,2103107921,1000080924
04.06.2020,ADULT SOCIAL CARE,SAGECARE LTD,"1,190.00",PHY LTS 65+,HOMECARE - C&V,2103108099,1000080924
04.06.2020,ADULT SOCIAL CARE,SAGECARE LTD,"1,198.50",PHY LTS 65+,HOMECARE - C&V,2103107977,1000080924
04.06.2020,ADULT SOCIAL CARE,SAGECARE LTD,"1,218.89",PHY LTS 65+,HOMECARE - C&V,2103107987,1000080924
04.06.2020,ADULT SOCIAL CARE,SAGECARE LTD,"1,228.25",PHY LTS 65+,HOMECARE - C&V,2103108062,1000080924
04.06.2020,ADULT SOCIAL CARE,SAGECARE LTD,"1,232.50",PHY LTS 65+,HOMECARE - C&V,2103108068,1000080924
04.06.2020,ADULT SOCIAL CARE,SAGECARE LTD,"1,249.50",PHY LTS 65+,HOMECARE - C&V,2103108144,1000080924
04.06.2020,ADULT SOCIAL CARE,SAGECARE LTD,"1,265.80",PHY LTS 65+,HOMECARE - C&V,2103108092,1000080924
04.06.2020,ADULT SOCIAL CARE,SAGECARE LTD,"1,296.25",PHY LTS 65+,HOMECARE - C&V,2103108153,1000080924
04.06.2020,ADULT SOCIAL CARE,SAGECARE LTD,"1,313.25",PHY LTS 65+,HOMECARE - C&V,2103107971,1000080924
04.06.2020,ADULT SOCIAL CARE,SAGECARE LTD,"1,313.25",PHY LTS 65+,HOMECARE - C&V,2103107972,1000080924
04.06.2020,ADULT SOCIAL CARE,SAGECARE LTD,"1,389.75",PHY LTS 65+,HOMECARE - C&V,2103107941,1000080924
04.06.2020,ADULT SOCIAL CARE,SAGECARE LTD,"1,445.00",PHY LTS 65+,HOMECARE - C&V,2103108049,1000080924
04.06.2020,ADULT SOCIAL CARE,SAGECARE LTD,"1,525.75",PHY LTS 65+,HOMECARE - C&V,2103108040,1000080924
04.06.2020,ADULT SOCIAL CARE,SAGECARE LTD,"1,547.00",PHY LTS 65+,HOMECARE - C&V,2103108115,1000080924
04.06.2020,ADULT SOCIAL CARE,SAGECARE LTD,"1,550.99",PHY LTS 65+,HOMECARE - C&V,2103108110,1000080924
04.06.2020,ADULT SOCIAL CARE,SAGECARE LTD,"1,674.50",PHY LTS 65+,HOMECARE - C&V,2103108147,1000080924
04.06.2020,ADULT SOCIAL CARE,SAGECARE LTD,"2,065.50",PHY LTS 65+,HOMECARE - C&V,2103108122,1000080924
04.06.2020,ADULT SOCIAL CARE,SAGECARE LTD,"2,120.75",PHY LTS 65+,HOMECARE - C&V,2103108074,1000080924
04.06.2020,ADULT SOCIAL CARE,SAGECARE LTD,"2,154.75",PHY LTS 65+,HOMECARE - C&V,2103107960,1000080924
04.06.2020,ADULT SOCIAL CARE,SAGECARE LTD,"2,170.64",PHY LTS 65+,HOMECARE - C&V,2103108118,1000080924
04.06.2020,ADULT SOCIAL CARE,SAGECARE LTD,"2,248.25",PHY LTS 65+,HOMECARE - C&V,2103108108,1000080924
04.06.2020,ADULT SOCIAL CARE,SAGECARE LTD,"2,337.50",PHY LTS 65+,HOMECARE - C&V,2103108030,1000080924
04.06.2020,ADULT SOCIAL CARE,SAGECARE LTD,"2,337.50",PHY LTS 65+,HOMECARE - C&V,2103108096,1000080924
04.06.2020,ADULT SOCIAL CARE,SAGECARE LTD,"2,411.17",PHY LTS 65+,HOMECARE - C&V,2103108107,1000080924
04.06.2020,ADULT SOCIAL CARE,SAGECARE LTD,"2,422.50",PHY LTS 65+,HOMECARE - C&V,2103108070,1000080924
04.06.2020,ADULT SOCIAL CARE,SAGECARE LTD,"2,431.00",PHY LTS 65+,HOMECARE - C&V,2103108116,1000080924
04.06.2020,ADULT SOCIAL CARE,SAGECARE LTD,"2,494.75",PHY LTS 65+,HOMECARE - C&V,2103107973,1000080924
04.06.2020,ADULT SOCIAL CARE,SAGECARE LTD,"2,519.82",PHY LTS 65+,HOMECARE - C&V,2103108150,1000080924
04.06.2020,ADULT SOCIAL CARE,SAGECARE LTD,"2,539.70",PHY LTS 65+,HOMECARE - C&V,2103107932,1000080924
04.06.2020,ADULT SOCIAL CARE,SAGECARE LTD,"2,545.75",PHY LTS 65+,HOMECARE - C&V,2103107965,1000080924
04.06.2020,ADULT SOCIAL CARE,SAGECARE LTD,"2,575.50",PHY LTS 65+,HOMECARE - C&V,2103107963,1000080924
04.06.2020,ADULT SOCIAL CARE,SAGECARE LTD,"3,000.50",PHY LTS 65+,HOMECARE - C&V,2103108120,1000080924
04.06.2020,ADULT SOCIAL CARE,SAGECARE LTD,"3,191.75",PHY LTS 65+,HOMECARE - C&V,2103108020,1000080924
04.06.2020,ADULT SOCIAL CARE,SWK DISABLEMENT ASSN,311.76,PHY LTS 65+,HOMECARE - SPOT,2103108289,1000011698
04.06.2020,ADULT SOCIAL CARE,SWK DISABLEMENT ASSN,346.40,PHY LTS 65+,HOMECARE - SPOT,2103108255,1000011698
04.06.2020,ADULT SOCIAL CARE,SWK DISABLEMENT ASSN,363.72,PHY LTS 65+,HOMECARE - SPOT,2103108233,1000011698
04.06.2020,ADULT SOCIAL CARE,SWK DISABLEMENT ASSN,381.04,PHY LTS 65+,HOMECARE - SPOT,2103108274,1000011698
04.06.2020,ADULT SOCIAL CARE,SWK DISABLEMENT ASSN,727.44,PHY LTS 65+,HOMECARE - SPOT,2103108249,1000011698
04.06.2020,ADULT SOCIAL CARE,SWK DISABLEMENT ASSN,866.00,PHY LTS 65+,HOMECARE - SPOT,2103108256,1000011698
04.06.2020,ADULT SOCIAL CARE,SWK DISABLEMENT ASSN,"1,160.44",PHY LTS 65+,HOMECARE - SPOT,2103108235,1000011698
04.06.2020,ADULT SOCIAL CARE,SWK DISABLEMENT ASSN,"1,177.76",PHY LTS 65+,HOMECARE - SPOT,2103108297,1000011698
04.06.2020,ADULT SOCIAL CARE,SWK DISABLEMENT ASSN,"1,385.60",PHY LTS 65+,HOMECARE - SPOT,2103108265,1000011698
04.06.2020,ADULT SOCIAL CARE,SWK DISABLEMENT ASSN,"1,506.84",PHY LTS 65+,HOMECARE - SPOT,2103108228,1000011698
04.06.2020,ADULT SOCIAL CARE,SWK DISABLEMENT ASSN,"1,905.20",PHY LTS 65+,HOMECARE - SPOT,2103108247,1000011698
04.06.2020,ADULT SOCIAL CARE,SWK DISABLEMENT ASSN,"2,000.46",PHY LTS 65+,HOMECARE - SPOT,2103108280,1000011698
04.06.2020,ADULT SOCIAL CARE,SWK DISABLEMENT ASSN,"2,424.80",PHY LTS 65+,HOMECARE - SPOT,2103108236,1000011698
04.06.2020,ADULT SOCIAL CARE,SWK DISABLEMENT ASSN,"2,572.02",PHY LTS 65+,HOMECARE - SPOT,2103108296,1000011698
04.06.2020,ADULT SOCIAL CARE,SWK DISABLEMENT ASSN,"3,394.72",PHY LTS 65+,HOMECARE - SPOT,2103108264,1000011698
04.06.2020,ADULT SOCIAL CARE,CARE DIRECT UK LTD,505.88,PHY LTS 65+,HOMECARE - SPOT,2103108217,1000066322
04.06.2020,ADULT SOCIAL CARE,CARE DIRECT UK LTD,559.13,PHY LTS 65+,HOMECARE - SPOT,2103108220,1000066322
04.06.2020,ADULT SOCIAL CARE,SAGECARE LTD,581.99,PHY LTS 65+,HOMECARE - SPOT,2103108021,1000080924
04.06.2020,ADULT SOCIAL CARE,REDACTED PERSONAL DATA,"2,377.50",PHY LTS 65+,SUPPORTED LIVING,REDACTED,REDACTED
04.06.2020,ADULT SOCIAL CARE,SWK DISABLEMENT ASSN,917.96,PHY STS 65+,HOMECARE - IC,2103108281,1000011698
04.06.2020,ADULT SOCIAL CARE,SAGECARE LTD,265.96,PHY STS 65+,HOMECARE - IC,2103108103,1000080924
04.06.2020,ADULT SOCIAL CARE,MADEIRA FLOWER LTD T/A MARIAS KITCHEN,"-1,464.75",SERVICE & PRACTICE DEVELOPMENT,REFRESHMENTS FOR MEETINGS,5902419827,1000058840
04.06.2020,ADULT SOCIAL CARE,MADEIRA FLOWER LTD T/A MARIAS KITCHEN,"1,464.75",SERVICE & PRACTICE DEVELOPMENT,REFRESHMENTS FOR MEETINGS,5902418218,1000058840
04.06.2020,ADULT SOCIAL CARE,SURREY DOCKS FARM PROVIDENT SOCIETY,500.00,SOCIAL ISOLATION,DAYCARE,2103108223,1000000958
04.06.2020,ADULT SOCIAL CARE,SAGECARE LTD,412.25,SOCIAL ISOLATION,HOMECARE - C&V,2103107925,1000080924
04.06.2020,ADULT SOCIAL CARE,SAGECARE LTD,483.99,SOCIAL ISOLATION,HOMECARE - C&V,2103107990,1000080924
04.06.2020,ADULT SOCIAL CARE,SAGECARE LTD,794.75,SOCIAL ISOLATION,HOMECARE - C&V,2103108015,1000080924
04.06.2020,ADULT SOCIAL CARE,SAGECARE LTD,"2,473.33",SOCIAL ISOLATION,HOMECARE - C&V,2103107924,1000080924
04.06.2020,ADULT SOCIAL CARE,SAGECARE LTD,"2,936.75",SOCIAL ISOLATION,HOMECARE - C&V,2103107994,1000080924
04.06.2020,ADULT SOCIAL CARE,SWK DISABLEMENT ASSN,311.76,SOCIAL ISOLATION,HOMECARE - SPOT,2103108227,1000011698
04.06.2020,ADULT SOCIAL CARE,SWK DISABLEMENT ASSN,"1,229.72",SOCIAL ISOLATION,HOMECARE - SPOT,2103108237,1000011698
04.06.2020,ADULT SOCIAL CARE,RESOURCES FOR AUTISM,300.00,SPECIALIST CARE,SECTION 17 PAYMENTS TO AGENCIES/CARERS,2103108171,1000062540
04.06.2020,ADULT SOCIAL CARE,RESOURCES FOR AUTISM,540.00,SPECIALIST CARE,SECTION 17 PAYMENTS TO AGENCIES/CARERS,2103108173,1000062540
04.06.2020,ADULT SOCIAL CARE,RESOURCES FOR AUTISM,760.00,SPECIALIST CARE,SECTION 17 PAYMENTS TO AGENCIES/CARERS,2103108172,1000062540
04.06.2020,ADULT SOCIAL CARE,RESOURCES FOR AUTISM,800.00,SPECIALIST CARE,SECTION 17 PAYMENTS TO AGENCIES/CARERS,2103107876,1000062540
04.06.2020,ADULT SOCIAL CARE,HOPE WORLDWIDE,"2,400.00",SUB LTS 18-64,PLACEMENTS - REHAB,2103107905,1000047835
04.06.2020,CENTRAL FUNCTIONS,BIFFA WASTE SERVICES LTD,"1,001.39",COMMERCIAL PROPERTIES,REFUSE COLLECTION CONTRACT,5902419618,1147051
04.06.2020,CENTRAL FUNCTIONS,BIFFA WASTE SERVICES LTD,"1,399.45",COMMERCIAL PROPERTIES,REFUSE COLLECTION CONTRACT,5902419615,1147051
04.06.2020,CHIEF EXECUTIVE,STEER DAVIES & GLEAVE LIMITED,"8,315.00",CAPITAL PS (REGEN),CONSTR'N SUB CONTRACT - NON CERTIFICATED,5902419575,1823348
04.06.2020,CHILDREN'S SERVICES,WINCHMORE TUTORS LTD,280.00,ALTERNATIVE PROVISION,EXTERNAL AGENCIES AND BODIES,5902419744,1000075298
04.06.2020,CHILDREN'S SERVICES,WINCHMORE TUTORS LTD,800.00,ALTERNATIVE PROVISION,EXTERNAL AGENCIES AND BODIES,5902419747,1000075298
04.06.2020,CHILDREN'S SERVICES,REDACTED PERSONAL DATA,300.00,DISABILITY & HIV,OTHER PAYMENTS FOR CLIENTS,REDACTED,REDACTED
04.06.2020,CHILDREN'S SERVICES,ETHELBERT SPECIALIST HOMES,"1,162.50",FRIENDS & FAMILY FOSTERING,EXTERNAL AGENCIES AND BODIES,2103108166,1796129
04.06.2020,CHILDREN'S SERVICES,SYNERGY FOSTERING LTD,"1,251.00",FRIENDS & FAMILY FOSTERING,EXTERNAL AGENCIES AND BODIES,2103107845,1000031559
04.06.2020,CHILDREN'S SERVICES,COMPASS FOSTERING LONDON LTD,"3,069.31",FRIENDS & FAMILY FOSTERING,EXTERNAL AGENCIES AND BODIES,2103107855,1000057908
04.06.2020,CHILDREN'S SERVICES,FOLLOWING WHISPERS FAMILY SERVICE LTD,"6,525.50",FRIENDS & FAMILY FOSTERING,EXTERNAL AGENCIES AND BODIES,2103107857,1000065611
04.06.2020,CHILDREN'S SERVICES,FOLLOWING WHISPERS FAMILY SERVICE LTD,"6,864.33",FRIENDS & FAMILY FOSTERING,EXTERNAL AGENCIES AND BODIES,2103107847,1000065611
04.06.2020,CHILDREN'S SERVICES,FOSTERING LONDON LTD,"4,650.00",FRIENDS & FAMILY FOSTERING,EXTERNAL AGENCIES AND BODIES,2103108169,1000077541
04.06.2020,CHILDREN'S SERVICES,FOSTERING LONDON LTD,"5,092.68",FRIENDS & FAMILY FOSTERING,EXTERNAL AGENCIES AND BODIES,2103108164,1000077541
04.06.2020,CHILDREN'S SERVICES,ORANGE GROVE FOSTERCARE LTD,"3,751.62",FRIENDS & FAMILY FOSTERING,EXTERNAL AGENCIES AND BODIES,2103107856,1000078716
04.06.2020,CHILDREN'S SERVICES,PARENT AND CHILD FOSTERING ASSESSMENTS,"3,321.42",FRIENDS & FAMILY FOSTERING,EXTERNAL AGENCIES AND BODIES,2103108167,1000078962
04.06.2020,CHILDREN'S SERVICES,PARENT AND CHILD FOSTERING ASSESSMENTS,"8,134.00",FRIENDS & FAMILY FOSTERING,EXTERNAL AGENCIES AND BODIES,2103108168,1000078962
04.06.2020,CHILDREN'S SERVICES,SHARED CARE SERVICES LTD,"1,080.00",FRIENDS & FAMILY FOSTERING,EXTERNAL AGENCIES AND BODIES,2103108163,1000080308
04.06.2020,CHILDREN'S SERVICES,SHARED CARE SERVICES LTD,"1,080.00",FRIENDS & FAMILY FOSTERING,EXTERNAL AGENCIES AND BODIES,2103108165,1000080308
04.06.2020,CHILDREN'S SERVICES,SHARED CARE SERVICES LTD,"1,350.00",FRIENDS & FAMILY FOSTERING,EXTERNAL AGENCIES AND BODIES,2103108170,1000080308
04.06.2020,CHILDREN'S SERVICES,LIGHTHOUSE FOSTERING LTD,"5,766.89",FRIENDS & FAMILY FOSTERING,EXTERNAL AGENCIES AND BODIES,2103107852,1000080372
04.06.2020,CHILDREN'S SERVICES,FOSTERING FOR YOU LTD,"3,271.21",FRIENDS & FAMILY FOSTERING,EXTERNAL AGENCIES AND BODIES,2103107846,1000080380
04.06.2020,CHILDREN'S SERVICES,FOSTERING FOR YOU LTD,"3,271.21",FRIENDS & FAMILY FOSTERING,EXTERNAL AGENCIES AND BODIES,2103107859,1000080380
04.06.2020,CHILDREN'S SERVICES,FOSTERING FOR YOU LTD,"3,443.39",FRIENDS & FAMILY FOSTERING,EXTERNAL AGENCIES AND BODIES,2103107844,1000080380
04.06.2020,CHILDREN'S SERVICES,FOSTERING FOR YOU LTD,"3,443.39",FRIENDS & FAMILY FOSTERING,EXTERNAL AGENCIES AND BODIES,2103107848,1000080380
04.06.2020,CHILDREN'S SERVICES,FOSTERING FOR YOU LTD,"3,443.39",FRIENDS & FAMILY FOSTERING,EXTERNAL AGENCIES AND BODIES,2103107851,1000080380
04.06.2020,CHILDREN'S SERVICES,FOSTERING FOR YOU LTD,"3,443.39",FRIENDS & FAMILY FOSTERING,EXTERNAL AGENCIES AND BODIES,2103107854,1000080380
04.06.2020,CHILDREN'S SERVICES,FOSTERING FOR YOU LTD,"3,443.39",FRIENDS & FAMILY FOSTERING,EXTERNAL AGENCIES AND BODIES,2103107858,1000080380
04.06.2020,CHILDREN'S SERVICES,DIVERSITY FOSTER CARE LTD,"4,108.69",FRIENDS & FAMILY FOSTERING,EXTERNAL AGENCIES AND BODIES,2103107849,1000081399
04.06.2020,CHILDREN'S SERVICES,DIVERSITY FOSTER CARE LTD,"4,108.69",FRIENDS & FAMILY FOSTERING,EXTERNAL AGENCIES AND BODIES,2103107850,1000081399
04.06.2020,CHILDREN'S SERVICES,WONDE LTD,"1,220.00",HOLLYDALE PRIMARY SCHOOL,SCHOOLS CAPITATION,5902419630,1000084215
04.06.2020,CHILDREN'S SERVICES,FLEET TUTORS,315.00,PUPIL PREMIUM CURRENT YEAR,EXTERNAL AGENCIES AND BODIES,5902419639,1000044820
04.06.2020,CHILDREN'S SERVICES,FLEET TUTORS,540.00,PUPIL PREMIUM CURRENT YEAR,EXTERNAL AGENCIES AND BODIES,5902419625,1000044820
04.06.2020,CHILDREN'S SERVICES,FLEET TUTORS,"1,007.00",PUPIL PREMIUM CURRENT YEAR,EXTERNAL AGENCIES AND BODIES,5902419620,1000044820
04.06.2020,CHILDREN'S SERVICES,FLEET TUTORS,"5,377.50",PUPIL PREMIUM CURRENT YEAR,EXTERNAL AGENCIES AND BODIES,5902419651,1000044820
04.06.2020,CHILDREN'S SERVICES,PROSPERO RECRUITMENT LTD,"5,265.00",PUPIL PREMIUM CURRENT YEAR,EXTERNAL AGENCIES AND BODIES,5902419600,1000082492
04.06.2020,CHILDREN'S SERVICES,HOLIBROOK HOUSE LTD,"24,290.71",RESIDENTIAL,RESIDENTIAL CARE,2103107842,1000067873
04.06.2020,CHILDREN'S SERVICES,ACORN HOMES (UK) LTD,"19,166.67",RESIDENTIAL,RESIDENTIAL CARE,2103108202,1000080423
04.06.2020,CHILDREN'S SERVICES,DURHAM COUNTY COUNCIL,"31,650.00",RESIDENTIAL,EXTERNAL AGENCIES AND BODIES,2103108160,1000023294
04.06.2020,CHILDREN'S SERVICES,DURHAM COUNTY COUNCIL,"32,705.00",RESIDENTIAL,EXTERNAL AGENCIES AND BODIES,2103108158,1000023294
04.06.2020,CHILDREN'S SERVICES,HOLMDENE HOUSING LTD,"1,276.70",SEMI INDEPENDENT CARE LEAVERS,EXTERNAL AGENCIES AND BODIES,2103107866,1000032598
04.06.2020,CHILDREN'S SERVICES,FUTURE FOUNDATIONS LTD,"1,722.71",SEMI INDEPENDENT CARE LEAVERS,EXTERNAL AGENCIES AND BODIES,2103107862,1000063272
04.06.2020,CHILDREN'S SERVICES,BARNARDOS SERVICES LTD,736.67,SEMI INDEPENDENT CARE LEAVERS,EXTERNAL AGENCIES AND BODIES,2103108187,1000063730
04.06.2020,CHILDREN'S SERVICES,NETPEX LTD CORPORATE SERVICES,"-2,814.57",SEMI INDEPENDENT CARE LEAVERS,EXTERNAL AGENCIES AND BODIES,2103103806,1000076073
04.06.2020,CHILDREN'S SERVICES,NETPEX LTD CORPORATE SERVICES,"-1,800.00",SEMI INDEPENDENT CARE LEAVERS,EXTERNAL AGENCIES AND BODIES,2103103808,1000076073
04.06.2020,CHILDREN'S SERVICES,NETPEX LTD CORPORATE SERVICES,"2,435.67",SEMI INDEPENDENT CARE LEAVERS,EXTERNAL AGENCIES AND BODIES,2103108188,1000076073
04.06.2020,CHILDREN'S SERVICES,NETPEX LTD CORPORATE SERVICES,"2,767.99",SEMI INDEPENDENT CARE LEAVERS,EXTERNAL AGENCIES AND BODIES,2103108192,1000076073
04.06.2020,CHILDREN'S SERVICES,NETPEX LTD CORPORATE SERVICES,"2,767.99",SEMI INDEPENDENT CARE LEAVERS,EXTERNAL AGENCIES AND BODIES,2103108198,1000076073
04.06.2020,CHILDREN'S SERVICES,NETPEX LTD CORPORATE SERVICES,"3,077.99",SEMI INDEPENDENT CARE LEAVERS,EXTERNAL AGENCIES AND BODIES,2103108191,1000076073
04.06.2020,CHILDREN'S SERVICES,NETPEX LTD CORPORATE SERVICES,"3,321.34",SEMI INDEPENDENT CARE LEAVERS,EXTERNAL AGENCIES AND BODIES,2103108182,1000076073
04.06.2020,CHILDREN'S SERVICES,NETPEX LTD CORPORATE SERVICES,"3,553.75",SEMI INDEPENDENT CARE LEAVERS,EXTERNAL AGENCIES AND BODIES,2103108199,1000076073
04.06.2020,CHILDREN'S SERVICES,NETPEX LTD CORPORATE SERVICES,"4,207.32",SEMI INDEPENDENT CARE LEAVERS,EXTERNAL AGENCIES AND BODIES,2103108183,1000076073
04.06.2020,CHILDREN'S SERVICES,CORNERSTONE CARE PARTNERSHIP LTD,"1,327.38",SEMI INDEPENDENT CARE LEAVERS,EXTERNAL AGENCIES AND BODIES,2103107864,1000078888
04.06.2020,CHILDREN'S SERVICES,PATHWAY LTD,"4,472.85",SEMI INDEPENDENT CARE LEAVERS,EXTERNAL AGENCIES AND BODIES,2103108200,1000080564
04.06.2020,CHILDREN'S SERVICES,PATHWAY LTD,"4,650.00",SEMI INDEPENDENT CARE LEAVERS,EXTERNAL AGENCIES AND BODIES,2103108197,1000080564
04.06.2020,CHILDREN'S SERVICES,PATHWAY LTD,"6,200.00",SEMI INDEPENDENT CARE LEAVERS,EXTERNAL AGENCIES AND BODIES,2103108186,1000080564
04.06.2020,CHILDREN'S SERVICES,ADULLAM SUPPORT LTD,"2,989.29",SEMI INDEPENDENT CARE LEAVERS,EXTERNAL AGENCIES AND BODIES,2103108196,1000081148
04.06.2020,CHILDREN'S SERVICES,PATHWAY LTD,265.71,SEMI INDEPENDENT CARE LEAVERS,OTHER PAYMENTS FOR CLIENTS,2103108185,1000080564
04.06.2020,CHILDREN'S SERVICES,NETPEX LTD CORPORATE SERVICES,"4,960.00",SEMI INDEPENDENT LAC,EXTERNAL AGENCIES AND BODIES,2103108175,1000076073
04.06.2020,CHILDREN'S SERVICES,ADULLAM SUPPORT LTD,"1,379.23",SEMI INDEPENDENT LAC,EXTERNAL AGENCIES AND BODIES,2103108195,1000081148
04.06.2020,CHILDREN'S SERVICES,WONDE LTD,435.00,ST JUDE'S CE PRIMARY SCHOOL,SCHOOLS CAPITATION,5902419647,1000084215
04.06.2020,CHILDREN'S SERVICES,COMPASS FOSTERING LONDON LTD,"2,142.90",STAYING PUT,EXTERNAL AGENCIES AND BODIES,2103108193,1000057908
04.06.2020,CHILDREN'S SERVICES,COMPASS FOSTERING LONDON LTD,"2,214.33",STAYING PUT,EXTERNAL AGENCIES AND BODIES,2103108194,1000057908
04.06.2020,CHILDREN'S SERVICES,CITYGLEN LTD,459.00,TEMPORARY ACCOMMODATION,EXTERNAL AGENCIES AND BODIES,5902419702,1000026239
04.06.2020,CHILDREN'S SERVICES,SOUTH OF THE RIVER INVESTMENTS LTD,"2,253.70",TEMPORARY ACCOMMODATION,EXTERNAL AGENCIES AND BODIES,5902419641,1000073638
04.06.2020,CHILDREN'S SERVICES,HOLMDENE HOUSING LTD,"1,850.00",UASC CARE LEAVERS,EXTERNAL AGENCIES AND BODIES,2103107860,1000032598
04.06.2020,CHILDREN'S SERVICES,HOLMDENE HOUSING LTD,"1,850.00",UASC CARE LEAVERS,EXTERNAL AGENCIES AND BODIES,2103107861,1000032598
04.06.2020,CHILDREN'S SERVICES,HOLMDENE HOUSING LTD,"1,850.00",UASC CARE LEAVERS,EXTERNAL AGENCIES AND BODIES,2103107865,1000032598
04.06.2020,CHILDREN'S SERVICES,NETPEX LTD CORPORATE SERVICES,"4,113.62",UASC CARE LEAVERS,EXTERNAL AGENCIES AND BODIES,2103108189,1000076073
04.06.2020,CHILDREN'S SERVICES,HOLMDENE HOUSING LTD,"2,275.00",UASC LAC,EXTERNAL AGENCIES AND BODIES,2103107869,1000032598
04.06.2020,CHILDREN'S SERVICES,PURPLE PEBBLES(CHILD CARE) SERVICES,"1,981.79",UASC LAC,EXTERNAL AGENCIES AND BODIES,2103108179,1000070705
04.06.2020,CHILDREN'S SERVICES,NETPEX LTD CORPORATE SERVICES,"4,406.34",UASC LAC,EXTERNAL AGENCIES AND BODIES,2103108174,1000076073
04.06.2020,CHILDREN'S SERVICES,NETPEX LTD CORPORATE SERVICES,"4,406.65",UASC LAC,EXTERNAL AGENCIES AND BODIES,2103108180,1000076073
04.06.2020,CHILDREN'S SERVICES,EPIC CARE HOME LTD,"4,074.29",UASC LAC,EXTERNAL AGENCIES AND BODIES,2103108178,1000084192
04.06.2020,COMMISSIONING & CENTRAL,SERVELEC SOCIAL CARE LTD,"224,996.00",C&AS SOFTWARE APPS,EXTERNAL AGENCIES AND BODIES,5902419635,1000077688
04.06.2020,COMMISSIONING & CENTRAL,WONDE LTD,935.00,STRATEGIC DIRECTOR OF C&AS,REFRESHMENTS FOR MEETINGS,5902419612,1000084215
04.06.2020,COMMUNITIES,TURNING POINT,"1,378.08",NO RECOURSE TO PUBLIC FUNDS,ACCOMMODATION CHARGES,5902419574,11321523
04.06.2020,COMMUNITIES,HOMELY HOUSING LETS LTD,"23,844.60",NO RECOURSE TO PUBLIC FUNDS,ACCOMMODATION CHARGES,5902419576,1000050013
04.06.2020,COMMUNITIES,CROMWOOD HOUSING,"6,169.00",NO RECOURSE TO PUBLIC FUNDS,ACCOMMODATION CHARGES,5902419582,1000071450
04.06.2020,COMMUNITIES,TAAKSVALE HOUSING LTD,"27,915.25",NO RECOURSE TO PUBLIC FUNDS,ACCOMMODATION CHARGES,5902419583,1000073665
04.06.2020,COMMUNITIES,CARE UNLIMITED GROUP LTD,"5,870.70",NO RECOURSE TO PUBLIC FUNDS,RESIDENTIAL CARE,5902419581,11172617
04.06.2020,CUSTOMER EXPERIENCE,THE HOUSING OMBUDSMAN,"117,039.64",COMPLAINTS,LEVIES,5902419694,1000074016
04.06.2020,CUSTOMER EXPERIENCE,ARGOS BUSINESS SOLUTIONS LTD,623.27,COMPLAINTS,OFFICE EXPENSES,5902419693,1000001734
04.06.2020,CUSTOMER EXPERIENCE,WEB-LABS LTD,"2,535.00",PECKHAM MSSP,SOFTWARE,5902419672,1000039819
04.06.2020,CUSTOMER EXPERIENCE HGF,SG PATH LTD,415.80,CORONER'S,PROFESSIONAL FEES,5902419708,1000077883
04.06.2020,CUSTOMER EXPERIENCE HGF,SOUTH OF THE RIVER INVESTMENTS LTD,"11,748.25",NIGHTLY TA (NSC),EXTERNAL AGENCIES AND BODIES,5902419722,1000073638
04.06.2020,CUSTOMER EXPERIENCE HGF,SOUTH OF THE RIVER INVESTMENTS LTD,"118,313.92",NIGHTLY TA (NSC),EXTERNAL AGENCIES AND BODIES,5902419638,1000073638
04.06.2020,CUSTOMER EXPERIENCE HGF,CENTENNIAL PROPERTY LIMITED,"1,395.00",NIGHTLY TA (NSC),EXTERNAL AGENCIES AND BODIES,5902419721,1000083022
04.06.2020,CUSTOMER EXPERIENCE HGF,ZFA ACCOMMODATION LTD,"160,504.08",PSL PLACEMENTS,EXTERNAL AGENCIES AND BODIES,5902419629,1000082620
04.06.2020,CUSTOMER EXPERIENCE HGF,ZFA ACCOMMODATION LTD,"80,000.00",PSL PLACEMENTS,GRANTS,5902419632,1000082620
04.06.2020,CUSTOMER EXPERIENCE HGF,CITYGLEN LTD,"1,305.00",RAPID REHOUSING,EXTERNAL AGENCIES AND BODIES,5902419691,1000026239
04.06.2020,CUSTOMER EXPERIENCE HGF,LIVING ACCOMMODATION LTD,"12,150.00",RAPID REHOUSING,EXTERNAL AGENCIES AND BODIES,5902419659,1000063985
04.06.2020,CUSTOMER EXPERIENCE HGF,AMT PROPERTY LTD,969.24,RAPID REHOUSING,GRANTS,5902419663,1000084257
04.06.2020,CUSTOMER EXPERIENCE HGF,AMT PROPERTY LTD,"1,533.00",RAPID REHOUSING,GRANTS,5902419668,1000084257
04.06.2020,CUSTOMER EXPERIENCE HGF,AMT PROPERTY LTD,"2,068.43",RAPID REHOUSING,GRANTS,5902419663,1000084257
04.06.2020,CUSTOMER EXPERIENCE HGF,AMT PROPERTY LTD,"2,174.68",RAPID REHOUSING,GRANTS,5902419668,1000084257
04.06.2020,ENVIRONMENT DIRECTORATE,DAIMLER FLEET MANAGEMENT,399.95,CAR LEASING CTRL A/C,VEHICLE LEASING CHARGES,5902419585,1000079667
04.06.2020,ENVIRONMENT DIRECTORATE,DAIMLER FLEET MANAGEMENT,399.95,CAR LEASING CTRL A/C,VEHICLE LEASING CHARGES,5902419586,1000079667
04.06.2020,ENVIRONMENT DIRECTORATE,DAIMLER FLEET MANAGEMENT,411.88,CAR LEASING CTRL A/C,VEHICLE LEASING CHARGES,5902419585,1000079667
04.06.2020,ENVIRONMENT DIRECTORATE,DAIMLER FLEET MANAGEMENT,411.88,CAR LEASING CTRL A/C,VEHICLE LEASING CHARGES,5902419586,1000079667
04.06.2020,ENVIRONMENT DIRECTORATE,DAIMLER FLEET MANAGEMENT,446.68,CAR LEASING CTRL A/C,VEHICLE LEASING CHARGES,5902419587,1000079667
04.06.2020,ENVIRONMENT DIRECTORATE,ARVAL UK LTD,-299.45,CAR LEASING CTRL A/C,VEHICLE LEASING CHARGES,5902419709,1000079802
04.06.2020,ENVIRONMENT DIRECTORATE,ARVAL UK LTD,"11,072.07",CAR LEASING CTRL A/C,VEHICLE LEASING CHARGES,5902419717,1000079802
04.06.2020,ENVIRONMENT DIRECTORATE,ARVAL UK LTD,"11,616.56",CAR LEASING CTRL A/C,VEHICLE LEASING CHARGES,5902419717,1000079802
04.06.2020,ENVIRONMENT DIRECTORATE,DAWSON RENTALS BUS & COACH LTD,"1,455.65",COMMERCIAL VEH CTRL A/C,HIRED VEHICLES,5902419605,1000042174
04.06.2020,ENVIRONMENT DIRECTORATE,DAWSON RENTALS BUS & COACH LTD,"1,586.02",COMMERCIAL VEH CTRL A/C,HIRED VEHICLES,5902419597,1000042174
04.06.2020,ENVIRONMENT DIRECTORATE,DAWSON RENTALS BUS & COACH LTD,"1,586.02",COMMERCIAL VEH CTRL A/C,HIRED VEHICLES,5902419598,1000042174
04.06.2020,ENVIRONMENT DIRECTORATE,DAWSON RENTALS BUS & COACH LTD,"1,586.02",COMMERCIAL VEH CTRL A/C,HIRED VEHICLES,5902419599,1000042174
04.06.2020,ENVIRONMENT DIRECTORATE,DAWSON RENTALS BUS & COACH LTD,"1,586.02",COMMERCIAL VEH CTRL A/C,HIRED VEHICLES,5902419601,1000042174
04.06.2020,ENVIRONMENT DIRECTORATE,DAWSON RENTALS BUS & COACH LTD,"1,586.02",COMMERCIAL VEH CTRL A/C,HIRED VEHICLES,5902419602,1000042174
04.06.2020,ENVIRONMENT DIRECTORATE,DAWSON RENTALS BUS & COACH LTD,"1,586.02",COMMERCIAL VEH CTRL A/C,HIRED VEHICLES,5902419603,1000042174
04.06.2020,ENVIRONMENT DIRECTORATE,IMPERIAL JANITORIAL SUPPLIES LTD,758.00,ESTATE CLEANING-GENERAL,MATERIALS,5902419738,1000038126
04.06.2020,ENVIRONMENT DIRECTORATE,DAIMLER FLEET MANAGEMENT,779.00,FLEET INSURANCE WORKS,TRANSPORT INSURANCE COSTS,5902419594,1000079667
04.06.2020,ENVIRONMENT DIRECTORATE,WEB-LABS LTD,"2,760.00",HOUSING SPECIAL INVESTIGATIONS,SOFTWARE,5902419648,1000039819
04.06.2020,ENVIRONMENT DIRECTORATE,FUTURE GARMENTS LTD T/A EUROX,"1,500.00",MANAGEMENT TEAM,"CLOTHING, UNIFORMS & LAUNDRY",5902419732,1000080983
04.06.2020,ENVIRONMENT DIRECTORATE,CONWAY AECOM LTD,"2,621.68",PARKING OVERHEADS,OTHER CONTRACTORS,5902419626,1000071205
04.06.2020,ENVIRONMENT DIRECTORATE,CONWAY AECOM LTD,"1,422.00",TRANSPORT PROJECTS,OTHER CONTRACTORS,5902419712,1000071205
04.06.2020,EXCHEQUER SERVICES,NORTHGATE PUBLIC SERVICES (UK) LTD,"8,652.02",ADMINISTRATIVE SUPPORT,PRINTING,5902419710,1000037405
04.06.2020,EXCHEQUER SERVICES,NORTHGATE PUBLIC SERVICES (UK) LTD,"492,723.50",ADMINISTRATIVE SUPPORT,SOFTWARE,5902419706,1000037405
04.06.2020,EXCHEQUER SERVICES,ALLPAY LTD,750.00,INCOME MANAGEMENT,OFFICE EXPENSES,5902419636,1000043001
04.06.2020,EXCHEQUER SERVICES,ALLPAY LTD,750.00,INCOME MANAGEMENT,OFFICE EXPENSES,5902419637,1000043001
04.06.2020,EXCHEQUER SERVICES,LATIN ELEPHANT,"2,000.00",SESS,OTHER PAYMENTS FOR CLIENTS,2103108303,1000074187
04.06.2020,EXCHEQUER SERVICES,PRO TOUCH SA,"2,500.00",SESS,OTHER PAYMENTS FOR CLIENTS,2103108305,1000074843
04.06.2020,EXCHEQUER SERVICES,RESTORATIVE JUSTICE FOR ALL,"2,500.00",SESS,OTHER PAYMENTS FOR CLIENTS,2103108306,1000081455
04.06.2020,EXCHEQUER SERVICES,THE CORNERSTONE CHURCH,"1,500.00",SESS,OTHER PAYMENTS FOR CLIENTS,2103108302,1000084283
04.06.2020,EXCHEQUER SERVICES,LOUIE LOUIE LTD,"4,000.00",SESS,OTHER PAYMENTS FOR CLIENTS,2103108301,1000084284
04.06.2020,EXCHEQUER SERVICES,SOUTHWARK DYNAMOS FOOTBALL CLUB,"2,000.00",SESS,OTHER PAYMENTS FOR CLIENTS,2103108304,1000084306
04.06.2020,EXTERNAL AFFAIRS,GETTY IMAGES (UK) LTD,"1,149.00",MEDIA,OFFICE EXPENSES,5902419707,1000084294
04.06.2020,HOUSING,GUIDELINE LIFT SERVICES LTD,"32,012.42",GUIDELINE,I-WORLD CONTRACTORS HOLDING ACCOUNT,5902419634,1000064176
04.06.2020,HOUSING GENERAL FUND,BRINSON STANILAND PARTNERSHIP LTD,"1,240.46",CAPITAL PS (REGEN),CONSTRUCTION MAIN CONTRACT,5902419729,1000059553
04.06.2020,HOUSING HRA,POTTER RAPER LTD,970.92,CAPITAL PS (HRA),CONSTRUCTION FEES  - EXTERNAL,5902419750,1009369
04.06.2020,HOUSING HRA,POTTER RAPER LTD,"3,818.82",CAPITAL PS (HRA),CONSTRUCTION FEES  - EXTERNAL,5902419749,1009369
04.06.2020,HOUSING HRA,POINT 2 SURVEYORS LTD,"1,418.35",CAPITAL PS (HRA),CONSTRUCTION FEES  - EXTERNAL,5902419725,1000076513
04.06.2020,HOUSING HRA,RAB CONSULTANTS LTD,500.00,CAPITAL PS (HRA),CONSTRUCTION FEES  - EXTERNAL,5902419719,1000078085
04.06.2020,LEISURE DIRECTORATE,WESTMINSTER WASTE,478.00,CEMETERIES,OTHER CONTRACTORS,5902419746,1000080933
04.06.2020,LEISURE DIRECTORATE,WESTMINSTER WASTE,897.00,CEMETERIES,OTHER CONTRACTORS,5902419748,1000080933
04.06.2020,LEISURE DIRECTORATE,STREET TREE CARE LTD,488.00,TREES PRINCIPAL ROADS,OTHER CONTRACTORS,5902419662,1000055901
04.06.2020,MODERNISATION HGF,ZALARIS CONSULTING UK LTD,"1,200.00",APPLICATIONS,SOFTWARE,5902419669,1000062505
04.06.2020,MODERNISATION HGF,SHE SOFTWARE LTD,"8,500.00",CFM OPERATIONAL BUDGET,SOFTWARE,5902419604,1000083262
04.06.2020,MODERNISATION HGF,INTERSERVE (FACILITIES MANAGEMENT),"32,728.06",FM SERVICES BY INTERSERVE,BUILDING R&M,5902419649,1000070792
04.06.2020,MODERNISATION HGF,JOHN STATTERS ASSOCIATES,"6,412.50",OCCUPATIONAL ASSESSMENT,CONSULTANTS SERVICES,5902419731,1000065600
04.06.2020,MODERNISATION HGF,COMENSURA LTD,"14,532.48",WEEKLY PAYMENTS,AGENCY STAFF,5902419678,1000051261
04.06.2020,MODERNISATION HGF,COMENSURA LTD,"563,589.12",WEEKLY PAYMENTS,AGENCY STAFF,5902419677,1000051261
04.06.2020,NEW BUILD,BEACON PARTNERSHIP LLP,"4,908.75",DEVELOPMENT DELIVERY,PROFESSIONAL FEES,5902419688,1000082300
04.06.2020,PUBLIC HEALTH,UNIVERSITY OF MANCHESTER,298.00,HEALTH INTERVENTIONS,EXTERNAL AGENCIES AND BODIES,5902419686,1000067583
04.06.2020,REGENERATION,LIVING WELL AT HOME LTD,770.00,BLACKFRIARS ROAD PROJECT,PROFESSIONAL FEES,5902419595,1000084036
04.06.2020,RESIDENT SERVICES,CASTLE WATER LTD,386.85,NORTHCOTT HOUSE,WATER,5902419657,1000078867
04.06.2020,RESIDENT SERVICES,CITYGLEN LTD,450.00,TA PLACEMENTS,EXTERNAL AGENCIES AND BODIES,5902419684,1000026239
04.06.2020,RESIDENT SERVICES,CITYGLEN LTD,702.00,TA PLACEMENTS,EXTERNAL AGENCIES AND BODIES,5902419687,1000026239
04.06.2020,RESIDENT SERVICES,CITYGLEN LTD,"1,240.00",TA PLACEMENTS,EXTERNAL AGENCIES AND BODIES,5902419680,1000026239
04.06.2020,RESIDENT SERVICES,RS REAL ESTATE LTD,"3,255.00",TA PLACEMENTS,EXTERNAL AGENCIES AND BODIES,5902419737,1000072485
04.06.2020,RESIDENT SERVICES,NATIONWIDE ACCOMMODATION,"5,633.32",TA PLACEMENTS,EXTERNAL AGENCIES AND BODIES,5902419690,1000076112
05.06.2020,ADULT SOCIAL CARE,INDEPENDENT PEOPLE HOMECARE LTD,"3,985.71",CARERS SERVICES,PLACEMENTS - RESPITE,2103108622,1000083488
05.06.2020,ADULT SOCIAL CARE,GET ASSIGNED LTD,"30,940.00",DISABILITIES LAC,RESIDENTIAL CARE,5902419767,1000081697
05.06.2020,ADULT SOCIAL CARE,GET ASSIGNED LTD,"32,860.00",DISABILITIES LAC,RESIDENTIAL CARE,5902419820,1000081697
05.06.2020,ADULT SOCIAL CARE,REDACTED PERSONAL DATA,296.96,DISCHARGE TO ACCESS,PAYMENTS TO CLIENTS (DIRECT PAYMENTS),REDACTED,REDACTED
05.06.2020,ADULT SOCIAL CARE,HARRISON CATERING SERVICES LTD,"3,578.16",FRED FRANCIS CENTRE,CATERING MATERIALS & SUPPLIES,5902419801,1000025486
05.06.2020,ADULT SOCIAL CARE,AURORA OPTIONS,408.00,LD LTS 18-64,DAYCARE,2103109490,1000066695
05.06.2020,ADULT SOCIAL CARE,PEOPLEPLUS ILS,417.38,LD LTS 18-64,DISCRETIONARY FLEXIBLE FEES & INCOME,2103109345,1000061886
05.06.2020,ADULT SOCIAL CARE,KENT HARRIER PROPERTY MANAGEMENT,"1,426.00",LD LTS 18-64,EXTERNAL AGENCIES AND BODIES,2103108625,1000078130
05.06.2020,ADULT SOCIAL CARE,KENT HARRIER PROPERTY MANAGEMENT,"1,500.00",LD LTS 18-64,EXTERNAL AGENCIES AND BODIES,2103108615,1000078130
05.06.2020,ADULT SOCIAL CARE,PEOPLEPLUS ILS,"-2,025.00",LD LTS 18-64,PAYMENTS TO CLIENTS (DIRECT PAYMENTS),2103109252,1000061886
05.06.2020,ADULT SOCIAL CARE,PEOPLEPLUS ILS,-351.61,LD LTS 18-64,PAYMENTS TO CLIENTS (DIRECT PAYMENTS),2103109478,1000061886
05.06.2020,ADULT SOCIAL CARE,PEOPLEPLUS ILS,254.68,LD LTS 18-64,PAYMENTS TO CLIENTS (DIRECT PAYMENTS),2103108993,1000061886
05.06.2020,ADULT SOCIAL CARE,PEOPLEPLUS ILS,260.00,LD LTS 18-64,PAYMENTS TO CLIENTS (DIRECT PAYMENTS),2103109456,1000061886
05.06.2020,ADULT SOCIAL CARE,PEOPLEPLUS ILS,266.00,LD LTS 18-64,PAYMENTS TO CLIENTS (DIRECT PAYMENTS),2103109472,1000061886
05.06.2020,ADULT SOCIAL CARE,PEOPLEPLUS ILS,299.60,LD LTS 18-64,PAYMENTS TO CLIENTS (DIRECT PAYMENTS),2103109157,1000061886
05.06.2020,ADULT SOCIAL CARE,PEOPLEPLUS ILS,300.00,LD LTS 18-64,PAYMENTS TO CLIENTS (DIRECT PAYMENTS),2103109247,1000061886
05.06.2020,ADULT SOCIAL CARE,PEOPLEPLUS ILS,305.88,LD LTS 18-64,PAYMENTS TO CLIENTS (DIRECT PAYMENTS),2103109574,1000061886
05.06.2020,ADULT SOCIAL CARE,PEOPLEPLUS ILS,316.80,LD LTS 18-64,PAYMENTS TO CLIENTS (DIRECT PAYMENTS),2103109382,1000061886
05.06.2020,ADULT SOCIAL CARE,PEOPLEPLUS ILS,329.32,LD LTS 18-64,PAYMENTS TO CLIENTS (DIRECT PAYMENTS),2103109346,1000061886
05.06.2020,ADULT SOCIAL CARE,PEOPLEPLUS ILS,329.80,LD LTS 18-64,PAYMENTS TO CLIENTS (DIRECT PAYMENTS),2103109206,1000061886
05.06.2020,ADULT SOCIAL CARE,PEOPLEPLUS ILS,334.00,LD LTS 18-64,PAYMENTS TO CLIENTS (DIRECT PAYMENTS),2103109313,1000061886
05.06.2020,ADULT SOCIAL CARE,PEOPLEPLUS ILS,342.00,LD LTS 18-64,PAYMENTS TO CLIENTS (DIRECT PAYMENTS),2103109031,1000061886
05.06.2020,ADULT SOCIAL CARE,PEOPLEPLUS ILS,349.00,LD LTS 18-64,PAYMENTS TO CLIENTS (DIRECT PAYMENTS),2103109172,1000061886
05.06.2020,ADULT SOCIAL CARE,PEOPLEPLUS ILS,352.00,LD LTS 18-64,PAYMENTS TO CLIENTS (DIRECT PAYMENTS),2103109202,1000061886
05.06.2020,ADULT SOCIAL CARE,PEOPLEPLUS ILS,356.92,LD LTS 18-64,PAYMENTS TO CLIENTS (DIRECT PAYMENTS),2103109418,1000061886
05.06.2020,ADULT SOCIAL CARE,PEOPLEPLUS ILS,374.00,LD LTS 18-64,PAYMENTS TO CLIENTS (DIRECT PAYMENTS),2103108954,1000061886
05.06.2020,ADULT SOCIAL CARE,PEOPLEPLUS ILS,385.60,LD LTS 18-64,PAYMENTS TO CLIENTS (DIRECT PAYMENTS),2103109352,1000061886
05.06.2020,ADULT SOCIAL CARE,PEOPLEPLUS ILS,419.44,LD LTS 18-64,PAYMENTS TO CLIENTS (DIRECT PAYMENTS),2103108890,1000061886
05.06.2020,ADULT SOCIAL CARE,PEOPLEPLUS ILS,437.60,LD LTS 18-64,PAYMENTS TO CLIENTS (DIRECT PAYMENTS),2103108982,1000061886
05.06.2020,ADULT SOCIAL CARE,PEOPLEPLUS ILS,440.00,LD LTS 18-64,PAYMENTS TO CLIENTS (DIRECT PAYMENTS),2103109088,1000061886
05.06.2020,ADULT SOCIAL CARE,PEOPLEPLUS ILS,452.48,LD LTS 18-64,PAYMENTS TO CLIENTS (DIRECT PAYMENTS),2103109447,1000061886
05.06.2020,ADULT SOCIAL CARE,PEOPLEPLUS ILS,458.08,LD LTS 18-64,PAYMENTS TO CLIENTS (DIRECT PAYMENTS),2103108897,1000061886
05.06.2020,ADULT SOCIAL CARE,PEOPLEPLUS ILS,464.80,LD LTS 18-64,PAYMENTS TO CLIENTS (DIRECT PAYMENTS),2103108969,1000061886
05.06.2020,ADULT SOCIAL CARE,PEOPLEPLUS ILS,480.00,LD LTS 18-64,PAYMENTS TO CLIENTS (DIRECT PAYMENTS),2103109097,1000061886
05.06.2020,ADULT SOCIAL CARE,PEOPLEPLUS ILS,486.48,LD LTS 18-64,PAYMENTS TO CLIENTS (DIRECT PAYMENTS),2103109269,1000061886
05.06.2020,ADULT SOCIAL CARE,PEOPLEPLUS ILS,493.36,LD LTS 18-64,PAYMENTS TO CLIENTS (DIRECT PAYMENTS),2103108977,1000061886
05.06.2020,ADULT SOCIAL CARE,PEOPLEPLUS ILS,513.36,LD LTS 18-64,PAYMENTS TO CLIENTS (DIRECT PAYMENTS),2103109120,1000061886
05.06.2020,ADULT SOCIAL CARE,PEOPLEPLUS ILS,558.72,LD LTS 18-64,PAYMENTS TO CLIENTS (DIRECT PAYMENTS),2103108911,1000061886
05.06.2020,ADULT SOCIAL CARE,PEOPLEPLUS ILS,577.00,LD LTS 18-64,PAYMENTS TO CLIENTS (DIRECT PAYMENTS),2103109554,1000061886
05.06.2020,ADULT SOCIAL CARE,PEOPLEPLUS ILS,578.00,LD LTS 18-64,PAYMENTS TO CLIENTS (DIRECT PAYMENTS),2103108832,1000061886
05.06.2020,ADULT SOCIAL CARE,PEOPLEPLUS ILS,632.40,LD LTS 18-64,PAYMENTS TO CLIENTS (DIRECT PAYMENTS),2103109186,1000061886
05.06.2020,ADULT SOCIAL CARE,PEOPLEPLUS ILS,633.20,LD LTS 18-64,PAYMENTS TO CLIENTS (DIRECT PAYMENTS),2103108999,1000061886
05.06.2020,ADULT SOCIAL CARE,PEOPLEPLUS ILS,633.20,LD LTS 18-64,PAYMENTS TO CLIENTS (DIRECT PAYMENTS),2103109501,1000061886
05.06.2020,ADULT SOCIAL CARE,PEOPLEPLUS ILS,670.00,LD LTS 18-64,PAYMENTS TO CLIENTS (DIRECT PAYMENTS),2103109156,1000061886
05.06.2020,ADULT SOCIAL CARE,PEOPLEPLUS ILS,670.00,LD LTS 18-64,PAYMENTS TO CLIENTS (DIRECT PAYMENTS),2103109388,1000061886
05.06.2020,ADULT SOCIAL CARE,PEOPLEPLUS ILS,680.00,LD LTS 18-64,PAYMENTS TO CLIENTS (DIRECT PAYMENTS),2103109529,1000061886
05.06.2020,ADULT SOCIAL CARE,PEOPLEPLUS ILS,694.00,LD LTS 18-64,PAYMENTS TO CLIENTS (DIRECT PAYMENTS),2103109402,1000061886
05.06.2020,ADULT SOCIAL CARE,PEOPLEPLUS ILS,718.00,LD LTS 18-64,PAYMENTS TO CLIENTS (DIRECT PAYMENTS),2103109438,1000061886
05.06.2020,ADULT SOCIAL CARE,PEOPLEPLUS ILS,724.24,LD LTS 18-64,PAYMENTS TO CLIENTS (DIRECT PAYMENTS),2103108901,1000061886
05.06.2020,ADULT SOCIAL CARE,PEOPLEPLUS ILS,743.04,LD LTS 18-64,PAYMENTS TO CLIENTS (DIRECT PAYMENTS),2103109169,1000061886
05.06.2020,ADULT SOCIAL CARE,PEOPLEPLUS ILS,753.04,LD LTS 18-64,PAYMENTS TO CLIENTS (DIRECT PAYMENTS),2103109161,1000061886
05.06.2020,ADULT SOCIAL CARE,PEOPLEPLUS ILS,753.04,LD LTS 18-64,PAYMENTS TO CLIENTS (DIRECT PAYMENTS),2103109195,1000061886
05.06.2020,ADULT SOCIAL CARE,PEOPLEPLUS ILS,753.04,LD LTS 18-64,PAYMENTS TO CLIENTS (DIRECT PAYMENTS),2103109327,1000061886
05.06.2020,ADULT SOCIAL CARE,PEOPLEPLUS ILS,758.72,LD LTS 18-64,PAYMENTS TO CLIENTS (DIRECT PAYMENTS),2103109329,1000061886
05.06.2020,ADULT SOCIAL CARE,PEOPLEPLUS ILS,762.28,LD LTS 18-64,PAYMENTS TO CLIENTS (DIRECT PAYMENTS),2103109002,1000061886
05.06.2020,ADULT SOCIAL CARE,PEOPLEPLUS ILS,766.00,LD LTS 18-64,PAYMENTS TO CLIENTS (DIRECT PAYMENTS),2103109024,1000061886
05.06.2020,ADULT SOCIAL CARE,PEOPLEPLUS ILS,780.00,LD LTS 18-64,PAYMENTS TO CLIENTS (DIRECT PAYMENTS),2103109250,1000061886
05.06.2020,ADULT SOCIAL CARE,PEOPLEPLUS ILS,784.08,LD LTS 18-64,PAYMENTS TO CLIENTS (DIRECT PAYMENTS),2103109333,1000061886
05.06.2020,ADULT SOCIAL CARE,PEOPLEPLUS ILS,789.60,LD LTS 18-64,PAYMENTS TO CLIENTS (DIRECT PAYMENTS),2103109491,1000061886
05.06.2020,ADULT SOCIAL CARE,PEOPLEPLUS ILS,794.00,LD LTS 18-64,PAYMENTS TO CLIENTS (DIRECT PAYMENTS),2103108933,1000061886
05.06.2020,ADULT SOCIAL CARE,PEOPLEPLUS ILS,800.00,LD LTS 18-64,PAYMENTS TO CLIENTS (DIRECT PAYMENTS),2103109600,1000061886
05.06.2020,ADULT SOCIAL CARE,PEOPLEPLUS ILS,811.84,LD LTS 18-64,PAYMENTS TO CLIENTS (DIRECT PAYMENTS),2103108886,1000061886
05.06.2020,ADULT SOCIAL CARE,PEOPLEPLUS ILS,819.84,LD LTS 18-64,PAYMENTS TO CLIENTS (DIRECT PAYMENTS),2103109212,1000061886
05.06.2020,ADULT SOCIAL CARE,PEOPLEPLUS ILS,860.00,LD LTS 18-64,PAYMENTS TO CLIENTS (DIRECT PAYMENTS),2103109042,1000061886
05.06.2020,ADULT SOCIAL CARE,PEOPLEPLUS ILS,875.60,LD LTS 18-64,PAYMENTS TO CLIENTS (DIRECT PAYMENTS),2103109317,1000061886
05.06.2020,ADULT SOCIAL CARE,PEOPLEPLUS ILS,890.84,LD LTS 18-64,PAYMENTS TO CLIENTS (DIRECT PAYMENTS),2103108895,1000061886
05.06.2020,ADULT SOCIAL CARE,PEOPLEPLUS ILS,896.80,LD LTS 18-64,PAYMENTS TO CLIENTS (DIRECT PAYMENTS),2103109357,1000061886
05.06.2020,ADULT SOCIAL CARE,PEOPLEPLUS ILS,904.96,LD LTS 18-64,PAYMENTS TO CLIENTS (DIRECT PAYMENTS),2103108921,1000061886
05.06.2020,ADULT SOCIAL CARE,PEOPLEPLUS ILS,918.00,LD LTS 18-64,PAYMENTS TO CLIENTS (DIRECT PAYMENTS),2103109479,1000061886
05.06.2020,ADULT SOCIAL CARE,PEOPLEPLUS ILS,957.20,LD LTS 18-64,PAYMENTS TO CLIENTS (DIRECT PAYMENTS),2103109506,1000061886
05.06.2020,ADULT SOCIAL CARE,PEOPLEPLUS ILS,970.20,LD LTS 18-64,PAYMENTS TO CLIENTS (DIRECT PAYMENTS),2103109196,1000061886
05.06.2020,ADULT SOCIAL CARE,PEOPLEPLUS ILS,"1,000.00",LD LTS 18-64,PAYMENTS TO CLIENTS (DIRECT PAYMENTS),2103108957,1000061886
05.06.2020,ADULT SOCIAL CARE,PEOPLEPLUS ILS,"1,000.00",LD LTS 18-64,PAYMENTS TO CLIENTS (DIRECT PAYMENTS),2103109007,1000061886
05.06.2020,ADULT SOCIAL CARE,PEOPLEPLUS ILS,"1,013.48",LD LTS 18-64,PAYMENTS TO CLIENTS (DIRECT PAYMENTS),2103109029,1000061886
05.06.2020,ADULT SOCIAL CARE,PEOPLEPLUS ILS,"1,018.08",LD LTS 18-64,PAYMENTS TO CLIENTS (DIRECT PAYMENTS),2103108905,1000061886
05.06.2020,ADULT SOCIAL CARE,PEOPLEPLUS ILS,"1,020.00",LD LTS 18-64,PAYMENTS TO CLIENTS (DIRECT PAYMENTS),2103109201,1000061886
05.06.2020,ADULT SOCIAL CARE,PEOPLEPLUS ILS,"1,052.00",LD LTS 18-64,PAYMENTS TO CLIENTS (DIRECT PAYMENTS),2103109045,1000061886
05.06.2020,ADULT SOCIAL CARE,PEOPLEPLUS ILS,"1,054.00",LD LTS 18-64,PAYMENTS TO CLIENTS (DIRECT PAYMENTS),2103109419,1000061886
05.06.2020,ADULT SOCIAL CARE,PEOPLEPLUS ILS,"1,128.96",LD LTS 18-64,PAYMENTS TO CLIENTS (DIRECT PAYMENTS),2103109271,1000061886
05.06.2020,ADULT SOCIAL CARE,PEOPLEPLUS ILS,"1,172.48",LD LTS 18-64,PAYMENTS TO CLIENTS (DIRECT PAYMENTS),2103109320,1000061886
05.06.2020,ADULT SOCIAL CARE,PEOPLEPLUS ILS,"1,192.64",LD LTS 18-64,PAYMENTS TO CLIENTS (DIRECT PAYMENTS),2103109588,1000061886
05.06.2020,ADULT SOCIAL CARE,PEOPLEPLUS ILS,"1,242.40",LD LTS 18-64,PAYMENTS TO CLIENTS (DIRECT PAYMENTS),2103108868,1000061886
05.06.2020,ADULT SOCIAL CARE,PEOPLEPLUS ILS,"1,319.24",LD LTS 18-64,PAYMENTS TO CLIENTS (DIRECT PAYMENTS),2103109410,1000061886
05.06.2020,ADULT SOCIAL CARE,PEOPLEPLUS ILS,"1,324.40",LD LTS 18-64,PAYMENTS TO CLIENTS (DIRECT PAYMENTS),2103109611,1000061886
05.06.2020,ADULT SOCIAL CARE,PEOPLEPLUS ILS,"1,326.40",LD LTS 18-64,PAYMENTS TO CLIENTS (DIRECT PAYMENTS),2103108972,1000061886
05.06.2020,ADULT SOCIAL CARE,PEOPLEPLUS ILS,"1,358.00",LD LTS 18-64,PAYMENTS TO CLIENTS (DIRECT PAYMENTS),2103108889,1000061886
05.06.2020,ADULT SOCIAL CARE,PEOPLEPLUS ILS,"1,359.24",LD LTS 18-64,PAYMENTS TO CLIENTS (DIRECT PAYMENTS),2103109510,1000061886
05.06.2020,ADULT SOCIAL CARE,PEOPLEPLUS ILS,"1,433.20",LD LTS 18-64,PAYMENTS TO CLIENTS (DIRECT PAYMENTS),2103109258,1000061886
05.06.2020,ADULT SOCIAL CARE,PEOPLEPLUS ILS,"1,460.96",LD LTS 18-64,PAYMENTS TO CLIENTS (DIRECT PAYMENTS),2103109296,1000061886
05.06.2020,ADULT SOCIAL CARE,PEOPLEPLUS ILS,"1,471.60",LD LTS 18-64,PAYMENTS TO CLIENTS (DIRECT PAYMENTS),2103109516,1000061886
05.06.2020,ADULT SOCIAL CARE,PEOPLEPLUS ILS,"1,475.84",LD LTS 18-64,PAYMENTS TO CLIENTS (DIRECT PAYMENTS),2103109581,1000061886
05.06.2020,ADULT SOCIAL CARE,PEOPLEPLUS ILS,"1,480.20",LD LTS 18-64,PAYMENTS TO CLIENTS (DIRECT PAYMENTS),2103108918,1000061886
05.06.2020,ADULT SOCIAL CARE,PEOPLEPLUS ILS,"1,593.92",LD LTS 18-64,PAYMENTS TO CLIENTS (DIRECT PAYMENTS),2103109556,1000061886
05.06.2020,ADULT SOCIAL CARE,PEOPLEPLUS ILS,"1,605.76",LD LTS 18-64,PAYMENTS TO CLIENTS (DIRECT PAYMENTS),2103109168,1000061886
05.06.2020,ADULT SOCIAL CARE,PEOPLEPLUS ILS,"1,617.28",LD LTS 18-64,PAYMENTS TO CLIENTS (DIRECT PAYMENTS),2103108852,1000061886
05.06.2020,ADULT SOCIAL CARE,PEOPLEPLUS ILS,"1,659.04",LD LTS 18-64,PAYMENTS TO CLIENTS (DIRECT PAYMENTS),2103109023,1000061886
05.06.2020,ADULT SOCIAL CARE,PEOPLEPLUS ILS,"1,674.96",LD LTS 18-64,PAYMENTS TO CLIENTS (DIRECT PAYMENTS),2103108944,1000061886
05.06.2020,ADULT SOCIAL CARE,PEOPLEPLUS ILS,"1,690.24",LD LTS 18-64,PAYMENTS TO CLIENTS (DIRECT PAYMENTS),2103109583,1000061886
05.06.2020,ADULT SOCIAL CARE,PEOPLEPLUS ILS,"1,693.36",LD LTS 18-64,PAYMENTS TO CLIENTS (DIRECT PAYMENTS),2103109442,1000061886
05.06.2020,ADULT SOCIAL CARE,PEOPLEPLUS ILS,"1,696.32",LD LTS 18-64,PAYMENTS TO CLIENTS (DIRECT PAYMENTS),2103108946,1000061886
05.06.2020,ADULT SOCIAL CARE,PEOPLEPLUS ILS,"1,696.80",LD LTS 18-64,PAYMENTS TO CLIENTS (DIRECT PAYMENTS),2103109059,1000061886
05.06.2020,ADULT SOCIAL CARE,PEOPLEPLUS ILS,"1,730.80",LD LTS 18-64,PAYMENTS TO CLIENTS (DIRECT PAYMENTS),2103108971,1000061886
05.06.2020,ADULT SOCIAL CARE,PEOPLEPLUS ILS,"1,823.48",LD LTS 18-64,PAYMENTS TO CLIENTS (DIRECT PAYMENTS),2103109151,1000061886
05.06.2020,ADULT SOCIAL CARE,PEOPLEPLUS ILS,"1,829.00",LD LTS 18-64,PAYMENTS TO CLIENTS (DIRECT PAYMENTS),2103108936,1000061886
05.06.2020,ADULT SOCIAL CARE,PEOPLEPLUS ILS,"1,829.60",LD LTS 18-64,PAYMENTS TO CLIENTS (DIRECT PAYMENTS),2103109435,1000061886
05.06.2020,ADULT SOCIAL CARE,PEOPLEPLUS ILS,"1,832.64",LD LTS 18-64,PAYMENTS TO CLIENTS (DIRECT PAYMENTS),2103108928,1000061886
05.06.2020,ADULT SOCIAL CARE,PEOPLEPLUS ILS,"1,862.00",LD LTS 18-64,PAYMENTS TO CLIENTS (DIRECT PAYMENTS),2103109005,1000061886
05.06.2020,ADULT SOCIAL CARE,PEOPLEPLUS ILS,"1,888.28",LD LTS 18-64,PAYMENTS TO CLIENTS (DIRECT PAYMENTS),2103109199,1000061886
05.06.2020,ADULT SOCIAL CARE,PEOPLEPLUS ILS,"1,950.96",LD LTS 18-64,PAYMENTS TO CLIENTS (DIRECT PAYMENTS),2103109387,1000061886
05.06.2020,ADULT SOCIAL CARE,PEOPLEPLUS ILS,"2,044.40",LD LTS 18-64,PAYMENTS TO CLIENTS (DIRECT PAYMENTS),2103109358,1000061886
05.06.2020,ADULT SOCIAL CARE,PEOPLEPLUS ILS,"2,090.00",LD LTS 18-64,PAYMENTS TO CLIENTS (DIRECT PAYMENTS),2103109436,1000061886
05.06.2020,ADULT SOCIAL CARE,PEOPLEPLUS ILS,"2,097.56",LD LTS 18-64,PAYMENTS TO CLIENTS (DIRECT PAYMENTS),2103109519,1000061886
05.06.2020,ADULT SOCIAL CARE,PEOPLEPLUS ILS,"2,131.20",LD LTS 18-64,PAYMENTS TO CLIENTS (DIRECT PAYMENTS),2103109403,1000061886
05.06.2020,ADULT SOCIAL CARE,PEOPLEPLUS ILS,"2,268.84",LD LTS 18-64,PAYMENTS TO CLIENTS (DIRECT PAYMENTS),2103108843,1000061886
05.06.2020,ADULT SOCIAL CARE,PEOPLEPLUS ILS,"2,289.28",LD LTS 18-64,PAYMENTS TO CLIENTS (DIRECT PAYMENTS),2103109268,1000061886
05.06.2020,ADULT SOCIAL CARE,PEOPLEPLUS ILS,"2,354.88",LD LTS 18-64,PAYMENTS TO CLIENTS (DIRECT PAYMENTS),2103109297,1000061886
05.06.2020,ADULT SOCIAL CARE,PEOPLEPLUS ILS,"2,447.76",LD LTS 18-64,PAYMENTS TO CLIENTS (DIRECT PAYMENTS),2103109118,1000061886
05.06.2020,ADULT SOCIAL CARE,PEOPLEPLUS ILS,"2,494.00",LD LTS 18-64,PAYMENTS TO CLIENTS (DIRECT PAYMENTS),2103109552,1000061886
05.06.2020,ADULT SOCIAL CARE,PEOPLEPLUS ILS,"2,529.52",LD LTS 18-64,PAYMENTS TO CLIENTS (DIRECT PAYMENTS),2103108839,1000061886
05.06.2020,ADULT SOCIAL CARE,PEOPLEPLUS ILS,"2,668.40",LD LTS 18-64,PAYMENTS TO CLIENTS (DIRECT PAYMENTS),2103109154,1000061886
05.06.2020,ADULT SOCIAL CARE,PEOPLEPLUS ILS,"2,865.00",LD LTS 18-64,PAYMENTS TO CLIENTS (DIRECT PAYMENTS),2103109575,1000061886
05.06.2020,ADULT SOCIAL CARE,PEOPLEPLUS ILS,"2,906.00",LD LTS 18-64,PAYMENTS TO CLIENTS (DIRECT PAYMENTS),2103108924,1000061886
05.06.2020,ADULT SOCIAL CARE,PEOPLEPLUS ILS,"2,918.00",LD LTS 18-64,PAYMENTS TO CLIENTS (DIRECT PAYMENTS),2103109010,1000061886
05.06.2020,ADULT SOCIAL CARE,PEOPLEPLUS ILS,"2,972.00",LD LTS 18-64,PAYMENTS TO CLIENTS (DIRECT PAYMENTS),2103108942,1000061886
05.06.2020,ADULT SOCIAL CARE,PEOPLEPLUS ILS,"3,106.52",LD LTS 18-64,PAYMENTS TO CLIENTS (DIRECT PAYMENTS),2103108968,1000061886
05.06.2020,ADULT SOCIAL CARE,PEOPLEPLUS ILS,"3,281.60",LD LTS 18-64,PAYMENTS TO CLIENTS (DIRECT PAYMENTS),2103109503,1000061886
05.06.2020,ADULT SOCIAL CARE,PEOPLEPLUS ILS,"3,795.20",LD LTS 18-64,PAYMENTS TO CLIENTS (DIRECT PAYMENTS),2103109424,1000061886
05.06.2020,ADULT SOCIAL CARE,PEOPLEPLUS ILS,"3,913.00",LD LTS 18-64,PAYMENTS TO CLIENTS (DIRECT PAYMENTS),2103109453,1000061886
05.06.2020,ADULT SOCIAL CARE,PEOPLEPLUS ILS,"4,242.00",LD LTS 18-64,PAYMENTS TO CLIENTS (DIRECT PAYMENTS),2103109400,1000061886
05.06.2020,ADULT SOCIAL CARE,PEOPLEPLUS ILS,"4,524.80",LD LTS 18-64,PAYMENTS TO CLIENTS (DIRECT PAYMENTS),2103109072,1000061886
05.06.2020,ADULT SOCIAL CARE,PEOPLEPLUS ILS,"4,629.20",LD LTS 18-64,PAYMENTS TO CLIENTS (DIRECT PAYMENTS),2103109217,1000061886
05.06.2020,ADULT SOCIAL CARE,PEOPLEPLUS ILS,"7,997.92",LD LTS 18-64,PAYMENTS TO CLIENTS (DIRECT PAYMENTS),2103109496,1000061886
05.06.2020,ADULT SOCIAL CARE,PEOPLEPLUS ILS,"9,126.80",LD LTS 18-64,PAYMENTS TO CLIENTS (DIRECT PAYMENTS),2103108988,1000061886
05.06.2020,ADULT SOCIAL CARE,PEOPLEPLUS ILS,"11,809.20",LD LTS 18-64,PAYMENTS TO CLIENTS (DIRECT PAYMENTS),2103109384,1000061886
05.06.2020,ADULT SOCIAL CARE,PEOPLEPLUS ILS,"12,619.20",LD LTS 18-64,PAYMENTS TO CLIENTS (DIRECT PAYMENTS),2103108860,1000061886
05.06.2020,ADULT SOCIAL CARE,PEOPLEPLUS ILS,"12,619.20",LD LTS 18-64,PAYMENTS TO CLIENTS (DIRECT PAYMENTS),2103109167,1000061886
05.06.2020,ADULT SOCIAL CARE,FRESH IDEAS & SOLUTIONS SERVICES CIC,465.64,LD LTS 18-64,PAYMENTS TO CLIENTS (DIRECT PAYMENTS),2103109095,1000070832
05.06.2020,ADULT SOCIAL CARE,FRESH IDEAS & SOLUTIONS SERVICES CIC,740.00,LD LTS 18-64,PAYMENTS TO CLIENTS (DIRECT PAYMENTS),2103109284,1000070832
05.06.2020,ADULT SOCIAL CARE,FRESH IDEAS & SOLUTIONS SERVICES CIC,791.84,LD LTS 18-64,PAYMENTS TO CLIENTS (DIRECT PAYMENTS),2103109030,1000070832
05.06.2020,ADULT SOCIAL CARE,FRESH IDEAS & SOLUTIONS SERVICES CIC,875.60,LD LTS 18-64,PAYMENTS TO CLIENTS (DIRECT PAYMENTS),2103108958,1000070832
05.06.2020,ADULT SOCIAL CARE,FRESH IDEAS & SOLUTIONS SERVICES CIC,900.00,LD LTS 18-64,PAYMENTS TO CLIENTS (DIRECT PAYMENTS),2103108863,1000070832
05.06.2020,ADULT SOCIAL CARE,FRESH IDEAS & SOLUTIONS SERVICES CIC,"1,047.52",LD LTS 18-64,PAYMENTS TO CLIENTS (DIRECT PAYMENTS),2103109485,1000070832
05.06.2020,ADULT SOCIAL CARE,FRESH IDEAS & SOLUTIONS SERVICES CIC,"1,848.00",LD LTS 18-64,PAYMENTS TO CLIENTS (DIRECT PAYMENTS),2103109605,1000070832
05.06.2020,ADULT SOCIAL CARE,FRESH IDEAS & SOLUTIONS SERVICES CIC,"2,618.80",LD LTS 18-64,PAYMENTS TO CLIENTS (DIRECT PAYMENTS),2103109076,1000070832
05.06.2020,ADULT SOCIAL CARE,GRANGE FARM COMPLEX,"1,778.36",LD LTS 18-64,SUPPORTED LIVING,2103109303,11086081
05.06.2020,ADULT SOCIAL CARE,CARE O LINE,"1,801.27",LD LTS 18-64,SUPPORTED LIVING,2103108617,11241743
05.06.2020,ADULT SOCIAL CARE,PLUS SERVICES,"3,200.00",LD LTS 18-64,SUPPORTED LIVING,2103109471,1000021241
05.06.2020,ADULT SOCIAL CARE,PLUS SERVICES,"5,173.60",LD LTS 18-64,SUPPORTED LIVING,2103109343,1000021241
05.06.2020,ADULT SOCIAL CARE,PLUS SERVICES,"5,495.20",LD LTS 18-64,SUPPORTED LIVING,2103109502,1000021241
05.06.2020,ADULT SOCIAL CARE,AURORA OPTIONS,"2,855.16",LD LTS 18-64,SUPPORTED LIVING,2103108876,1000066695
05.06.2020,ADULT SOCIAL CARE,AURORA OPTIONS,"2,855.16",LD LTS 18-64,SUPPORTED LIVING,2103109187,1000066695
05.06.2020,ADULT SOCIAL CARE,AURORA OPTIONS,"3,441.16",LD LTS 18-64,SUPPORTED LIVING,2103109119,1000066695
05.06.2020,ADULT SOCIAL CARE,HEALTH PERSONNEL LTD,"3,270.00",LD LTS 18-64,SUPPORTED LIVING,2103108909,1000076377
05.06.2020,ADULT SOCIAL CARE,INSPIRE SUPPORT WORKERS LTD,"1,152.00",LD LTS 18-64,SUPPORTED LIVING,2103108613,1000080725
05.06.2020,ADULT SOCIAL CARE,INSPIRE SUPPORT WORKERS LTD,"3,850.00",LD LTS 18-64,SUPPORTED LIVING,2103108624,1000080725
05.06.2020,ADULT SOCIAL CARE,REDACTED PERSONAL DATA,"2,262.40",LD LTS 18-64,PAYMENTS TO CLIENTS (DIRECT PAYMENTS),REDACTED,REDACTED
05.06.2020,ADULT SOCIAL CARE,REDACTED PERSONAL DATA,"3,923.12",LD LTS 18-64,PAYMENTS TO CLIENTS (DIRECT PAYMENTS),REDACTED,REDACTED
05.06.2020,ADULT SOCIAL CARE,REDACTED PERSONAL DATA,981.52,LD LTS 18-64,PAYMENTS TO CLIENTS (DIRECT PAYMENTS),REDACTED,REDACTED
05.06.2020,ADULT SOCIAL CARE,REDACTED PERSONAL DATA,"6,287.92",LD LTS 18-64,PAYMENTS TO CLIENTS (DIRECT PAYMENTS),REDACTED,REDACTED
05.06.2020,ADULT SOCIAL CARE,REDACTED PERSONAL DATA,"2,452.08",LD LTS 18-64,PAYMENTS TO CLIENTS (DIRECT PAYMENTS),REDACTED,REDACTED
05.06.2020,ADULT SOCIAL CARE,REDACTED PERSONAL DATA,"1,979.60",LD LTS 18-64,PAYMENTS TO CLIENTS (DIRECT PAYMENTS),REDACTED,REDACTED
05.06.2020,ADULT SOCIAL CARE,REDACTED PERSONAL DATA,"8,484.60",LD LTS 18-64,PAYMENTS TO CLIENTS (DIRECT PAYMENTS),REDACTED,REDACTED
05.06.2020,ADULT SOCIAL CARE,REDACTED PERSONAL DATA,288.80,LD LTS 18-64,PAYMENTS TO CLIENTS (DIRECT PAYMENTS),REDACTED,REDACTED
05.06.2020,ADULT SOCIAL CARE,REDACTED PERSONAL DATA,"1,534.00",LD LTS 18-64,PAYMENTS TO CLIENTS (DIRECT PAYMENTS),REDACTED,REDACTED
05.06.2020,ADULT SOCIAL CARE,REDACTED PERSONAL DATA,"2,158.60",LD LTS 18-64,PAYMENTS TO CLIENTS (DIRECT PAYMENTS),REDACTED,REDACTED
05.06.2020,ADULT SOCIAL CARE,REDACTED PERSONAL DATA,"3,864.64",LD LTS 18-64,PAYMENTS TO CLIENTS (DIRECT PAYMENTS),REDACTED,REDACTED
05.06.2020,ADULT SOCIAL CARE,REDACTED PERSONAL DATA,"1,420.12",LD LTS 18-64,PAYMENTS TO CLIENTS (DIRECT PAYMENTS),REDACTED,REDACTED
05.06.2020,ADULT SOCIAL CARE,REDACTED PERSONAL DATA,594.40,LD LTS 18-64,PAYMENTS TO CLIENTS (DIRECT PAYMENTS),REDACTED,REDACTED
05.06.2020,ADULT SOCIAL CARE,REDACTED PERSONAL DATA,414.80,LD LTS 18-64,PAYMENTS TO CLIENTS (DIRECT PAYMENTS),REDACTED,REDACTED
05.06.2020,ADULT SOCIAL CARE,REDACTED PERSONAL DATA,282.80,LD LTS 18-64,PAYMENTS TO CLIENTS (DIRECT PAYMENTS),REDACTED,REDACTED
05.06.2020,ADULT SOCIAL CARE,REDACTED PERSONAL DATA,"1,368.32",LD LTS 18-64,PAYMENTS TO CLIENTS (DIRECT PAYMENTS),REDACTED,REDACTED
05.06.2020,ADULT SOCIAL CARE,REDACTED PERSONAL DATA,"2,317.60",LD LTS 18-64,PAYMENTS TO CLIENTS (DIRECT PAYMENTS),REDACTED,REDACTED
05.06.2020,ADULT SOCIAL CARE,REDACTED PERSONAL DATA,"2,000.00",LD LTS 18-64,PAYMENTS TO CLIENTS (DIRECT PAYMENTS),REDACTED,REDACTED
05.06.2020,ADULT SOCIAL CARE,REDACTED PERSONAL DATA,522.60,LD LTS 18-64,PAYMENTS TO CLIENTS (DIRECT PAYMENTS),REDACTED,REDACTED
05.06.2020,ADULT SOCIAL CARE,REDACTED PERSONAL DATA,"6,644.40",LD LTS 18-64,PAYMENTS TO CLIENTS (DIRECT PAYMENTS),REDACTED,REDACTED
05.06.2020,ADULT SOCIAL CARE,REDACTED PERSONAL DATA,"1,025.20",LD LTS 18-64,PAYMENTS TO CLIENTS (DIRECT PAYMENTS),REDACTED,REDACTED
05.06.2020,ADULT SOCIAL CARE,REDACTED PERSONAL DATA,809.80,LD LTS 18-64,PAYMENTS TO CLIENTS (DIRECT PAYMENTS),REDACTED,REDACTED
05.06.2020,ADULT SOCIAL CARE,REDACTED PERSONAL DATA,300.00,LD LTS 18-64,PAYMENTS TO CLIENTS (DIRECT PAYMENTS),REDACTED,REDACTED
05.06.2020,ADULT SOCIAL CARE,REDACTED PERSONAL DATA,"2,118.00",LD LTS 18-64,PAYMENTS TO CLIENTS (DIRECT PAYMENTS),REDACTED,REDACTED
05.06.2020,ADULT SOCIAL CARE,REDACTED PERSONAL DATA,738.00,LD LTS 18-64,PAYMENTS TO CLIENTS (DIRECT PAYMENTS),REDACTED,REDACTED
05.06.2020,ADULT SOCIAL CARE,REDACTED PERSONAL DATA,282.80,LD LTS 18-64,PAYMENTS TO CLIENTS (DIRECT PAYMENTS),REDACTED,REDACTED
05.06.2020,ADULT SOCIAL CARE,REDACTED PERSONAL DATA,"1,036.24",LD LTS 18-64,PAYMENTS TO CLIENTS (DIRECT PAYMENTS),REDACTED,REDACTED
05.06.2020,ADULT SOCIAL CARE,REDACTED PERSONAL DATA,320.00,LD LTS 18-64,PAYMENTS TO CLIENTS (DIRECT PAYMENTS),REDACTED,REDACTED
05.06.2020,ADULT SOCIAL CARE,REDACTED PERSONAL DATA,"2,116.00",LD LTS 18-64,PAYMENTS TO CLIENTS (DIRECT PAYMENTS),REDACTED,REDACTED
05.06.2020,ADULT SOCIAL CARE,REDACTED PERSONAL DATA,639.20,LD LTS 18-64,PAYMENTS TO CLIENTS (DIRECT PAYMENTS),REDACTED,REDACTED
05.06.2020,ADULT SOCIAL CARE,REDACTED PERSONAL DATA,"1,200.00",LD LTS 18-64,PAYMENTS TO CLIENTS (DIRECT PAYMENTS),REDACTED,REDACTED
05.06.2020,ADULT SOCIAL CARE,REDACTED PERSONAL DATA,718.00,LD LTS 18-64,PAYMENTS TO CLIENTS (DIRECT PAYMENTS),REDACTED,REDACTED
05.06.2020,ADULT SOCIAL CARE,REDACTED PERSONAL DATA,"1,290.16",LD LTS 18-64,PAYMENTS TO CLIENTS (DIRECT PAYMENTS),REDACTED,REDACTED
05.06.2020,ADULT SOCIAL CARE,REDACTED PERSONAL DATA,"1,532.68",LD LTS 18-64,PAYMENTS TO CLIENTS (DIRECT PAYMENTS),REDACTED,REDACTED
05.06.2020,ADULT SOCIAL CARE,REDACTED PERSONAL DATA,"1,532.92",LD LTS 18-64,PAYMENTS TO CLIENTS (DIRECT PAYMENTS),REDACTED,REDACTED
05.06.2020,ADULT SOCIAL CARE,REDACTED PERSONAL DATA,"4,020.80",LD LTS 18-64,PAYMENTS TO CLIENTS (DIRECT PAYMENTS),REDACTED,REDACTED
05.06.2020,ADULT SOCIAL CARE,REDACTED PERSONAL DATA,"6,286.08",LD LTS 18-64,PAYMENTS TO CLIENTS (DIRECT PAYMENTS),REDACTED,REDACTED
05.06.2020,ADULT SOCIAL CARE,REDACTED PERSONAL DATA,"2,347.24",LD LTS 18-64,PAYMENTS TO CLIENTS (DIRECT PAYMENTS),REDACTED,REDACTED
05.06.2020,ADULT SOCIAL CARE,REDACTED PERSONAL DATA,"1,746.16",LD LTS 18-64,PAYMENTS TO CLIENTS (DIRECT PAYMENTS),REDACTED,REDACTED
05.06.2020,ADULT SOCIAL CARE,REDACTED PERSONAL DATA,"2,660.20",LD LTS 18-64,PAYMENTS TO CLIENTS (DIRECT PAYMENTS),REDACTED,REDACTED
05.06.2020,ADULT SOCIAL CARE,REDACTED PERSONAL DATA,676.00,LD LTS 18-64,PAYMENTS TO CLIENTS (DIRECT PAYMENTS),REDACTED,REDACTED
05.06.2020,ADULT SOCIAL CARE,REDACTED PERSONAL DATA,"1,293.44",LD LTS 18-64,PAYMENTS TO CLIENTS (DIRECT PAYMENTS),REDACTED,REDACTED
05.06.2020,ADULT SOCIAL CARE,REDACTED PERSONAL DATA,"1,493.16",LD LTS 18-64,PAYMENTS TO CLIENTS (DIRECT PAYMENTS),REDACTED,REDACTED
05.06.2020,ADULT SOCIAL CARE,REDACTED PERSONAL DATA,"12,580.00",LD LTS 18-64,PAYMENTS TO CLIENTS (DIRECT PAYMENTS),REDACTED,REDACTED
05.06.2020,ADULT SOCIAL CARE,REDACTED PERSONAL DATA,978.00,LD LTS 18-64,PAYMENTS TO CLIENTS (DIRECT PAYMENTS),REDACTED,REDACTED
05.06.2020,ADULT SOCIAL CARE,REDACTED PERSONAL DATA,956.16,LD LTS 18-64,PAYMENTS TO CLIENTS (DIRECT PAYMENTS),REDACTED,REDACTED
05.06.2020,ADULT SOCIAL CARE,REDACTED PERSONAL DATA,"1,400.00",LD LTS 18-64,PAYMENTS TO CLIENTS (DIRECT PAYMENTS),REDACTED,REDACTED
05.06.2020,ADULT SOCIAL CARE,REDACTED PERSONAL DATA,"2,736.00",LD LTS 18-64,PAYMENTS TO CLIENTS (DIRECT PAYMENTS),REDACTED,REDACTED
05.06.2020,ADULT SOCIAL CARE,REDACTED PERSONAL DATA,484.32,LD LTS 18-64,PAYMENTS TO CLIENTS (DIRECT PAYMENTS),REDACTED,REDACTED
05.06.2020,ADULT SOCIAL CARE,REDACTED PERSONAL DATA,359.36,LD LTS 18-64,PAYMENTS TO CLIENTS (DIRECT PAYMENTS),REDACTED,REDACTED
05.06.2020,ADULT SOCIAL CARE,REDACTED PERSONAL DATA,787.76,LD LTS 18-64,PAYMENTS TO CLIENTS (DIRECT PAYMENTS),REDACTED,REDACTED
05.06.2020,ADULT SOCIAL CARE,REDACTED PERSONAL DATA,460.04,LD LTS 18-64,PAYMENTS TO CLIENTS (DIRECT PAYMENTS),REDACTED,REDACTED
05.06.2020,ADULT SOCIAL CARE,REDACTED PERSONAL DATA,430.80,LD LTS 18-64,PAYMENTS TO CLIENTS (DIRECT PAYMENTS),REDACTED,REDACTED
05.06.2020,ADULT SOCIAL CARE,REDACTED PERSONAL DATA,858.88,LD LTS 18-64,PAYMENTS TO CLIENTS (DIRECT PAYMENTS),REDACTED,REDACTED
05.06.2020,ADULT SOCIAL CARE,REDACTED PERSONAL DATA,"1,575.00",LD LTS 18-64,PAYMENTS TO CLIENTS (DIRECT PAYMENTS),REDACTED,REDACTED
05.06.2020,ADULT SOCIAL CARE,REDACTED PERSONAL DATA,"1,032.16",LD LTS 18-64,SUPPORTED LIVING,REDACTED,REDACTED
05.06.2020,ADULT SOCIAL CARE,REDACTED PERSONAL DATA,"3,682.28",LD LTS 18-64,SUPPORTED LIVING,REDACTED,REDACTED
05.06.2020,ADULT SOCIAL CARE,PEOPLEPLUS ILS,482.00,LD LTS 65+,PAYMENTS TO CLIENTS (DIRECT PAYMENTS),2103109254,1000061886
05.06.2020,ADULT SOCIAL CARE,UNITED RESPONSE,"1,599.00",LD LTS 65+,SUPPORTED LIVING,2103109559,1022934
05.06.2020,ADULT SOCIAL CARE,PLUS SERVICES,"6,147.92",LD LTS 65+,SUPPORTED LIVING,2103109021,1000021241
05.06.2020,ADULT SOCIAL CARE,PEOPLEPLUS ILS,480.76,MEM LTS 18-64,PAYMENTS TO CLIENTS (DIRECT PAYMENTS),2103108992,1000061886
05.06.2020,ADULT SOCIAL CARE,PEOPLEPLUS ILS,"1,184.00",MEM LTS 18-64,PAYMENTS TO CLIENTS (DIRECT PAYMENTS),2103109000,1000061886
05.06.2020,ADULT SOCIAL CARE,REDACTED PERSONAL DATA,256.00,MEM LTS 18-64,SUPPORTED LIVING,REDACTED,REDACTED
05.06.2020,ADULT SOCIAL CARE,AGE UK  LEWISHAM & SOUTHWARK,540.00,MEM LTS 65+,DAYCARE,2103109019,1000066751
05.06.2020,ADULT SOCIAL CARE,AGE UK  LEWISHAM & SOUTHWARK,540.00,MEM LTS 65+,DAYCARE,2103109177,1000066751
05.06.2020,ADULT SOCIAL CARE,AGE UK  LEWISHAM & SOUTHWARK,900.00,MEM LTS 65+,DAYCARE,2103109245,1000066751
05.06.2020,ADULT SOCIAL CARE,AGE UK  LEWISHAM & SOUTHWARK,900.00,MEM LTS 65+,DAYCARE,2103109591,1000066751
05.06.2020,ADULT SOCIAL CARE,PEOPLEPLUS ILS,-258.88,MEM LTS 65+,DISCRETIONARY FLEXIBLE FEES & INCOME,2103109049,1000061886
05.06.2020,ADULT SOCIAL CARE,PEOPLEPLUS ILS,599.60,MEM LTS 65+,PAYMENTS TO CLIENTS (DIRECT PAYMENTS),2103109110,1000061886
05.06.2020,ADULT SOCIAL CARE,PEOPLEPLUS ILS,914.00,MEM LTS 65+,PAYMENTS TO CLIENTS (DIRECT PAYMENTS),2103109188,1000061886
05.06.2020,ADULT SOCIAL CARE,PEOPLEPLUS ILS,989.80,MEM LTS 65+,PAYMENTS TO CLIENTS (DIRECT PAYMENTS),2103109050,1000061886
05.06.2020,ADULT SOCIAL CARE,PEOPLEPLUS ILS,"1,221.76",MEM LTS 65+,PAYMENTS TO CLIENTS (DIRECT PAYMENTS),2103108900,1000061886
05.06.2020,ADULT SOCIAL CARE,REDACTED PERSONAL DATA,"-1,189.32",MEM LTS 65+,DISCRETIONARY FLEXIBLE FEES & INCOME,REDACTED,REDACTED
05.06.2020,ADULT SOCIAL CARE,REDACTED PERSONAL DATA,"1,345.44",MEM LTS 65+,PAYMENTS TO CLIENTS (DIRECT PAYMENTS),REDACTED,REDACTED
05.06.2020,ADULT SOCIAL CARE,REDACTED PERSONAL DATA,"1,187.76",MEM LTS 65+,PAYMENTS TO CLIENTS (DIRECT PAYMENTS),REDACTED,REDACTED
05.06.2020,ADULT SOCIAL CARE,REDACTED PERSONAL DATA,"2,282.40",MEM LTS 65+,PAYMENTS TO CLIENTS (DIRECT PAYMENTS),REDACTED,REDACTED
05.06.2020,ADULT SOCIAL CARE,AGE UK  LEWISHAM & SOUTHWARK,360.00,MH LTS 18-64,DAYCARE,2103109171,1000066751
05.06.2020,ADULT SOCIAL CARE,PEOPLEPLUS ILS,"-1,389.99",MH LTS 18-64,PAYMENTS TO CLIENTS (DIRECT PAYMENTS),2103109612,1000061886
05.06.2020,ADULT SOCIAL CARE,PEOPLEPLUS ILS,-605.07,MH LTS 18-64,PAYMENTS TO CLIENTS (DIRECT PAYMENTS),2103109273,1000061886
05.06.2020,ADULT SOCIAL CARE,PEOPLEPLUS ILS,254.08,MH LTS 18-64,PAYMENTS TO CLIENTS (DIRECT PAYMENTS),2103109416,1000061886
05.06.2020,ADULT SOCIAL CARE,PEOPLEPLUS ILS,260.24,MH LTS 18-64,PAYMENTS TO CLIENTS (DIRECT PAYMENTS),2103109065,1000061886
05.06.2020,ADULT SOCIAL CARE,PEOPLEPLUS ILS,260.24,MH LTS 18-64,PAYMENTS TO CLIENTS (DIRECT PAYMENTS),2103109180,1000061886
05.06.2020,ADULT SOCIAL CARE,PEOPLEPLUS ILS,260.24,MH LTS 18-64,PAYMENTS TO CLIENTS (DIRECT PAYMENTS),2103109323,1000061886
05.06.2020,ADULT SOCIAL CARE,PEOPLEPLUS ILS,287.20,MH LTS 18-64,PAYMENTS TO CLIENTS (DIRECT PAYMENTS),2103109037,1000061886
05.06.2020,ADULT SOCIAL CARE,PEOPLEPLUS ILS,287.96,MH LTS 18-64,PAYMENTS TO CLIENTS (DIRECT PAYMENTS),2103109178,1000061886
05.06.2020,ADULT SOCIAL CARE,PEOPLEPLUS ILS,293.44,MH LTS 18-64,PAYMENTS TO CLIENTS (DIRECT PAYMENTS),2103109548,1000061886
05.06.2020,ADULT SOCIAL CARE,PEOPLEPLUS ILS,308.00,MH LTS 18-64,PAYMENTS TO CLIENTS (DIRECT PAYMENTS),2103108836,1000061886
05.06.2020,ADULT SOCIAL CARE,PEOPLEPLUS ILS,316.80,MH LTS 18-64,PAYMENTS TO CLIENTS (DIRECT PAYMENTS),2103108979,1000061886
05.06.2020,ADULT SOCIAL CARE,PEOPLEPLUS ILS,318.00,MH LTS 18-64,PAYMENTS TO CLIENTS (DIRECT PAYMENTS),2103109205,1000061886
05.06.2020,ADULT SOCIAL CARE,PEOPLEPLUS ILS,326.00,MH LTS 18-64,PAYMENTS TO CLIENTS (DIRECT PAYMENTS),2103108846,1000061886
05.06.2020,ADULT SOCIAL CARE,PEOPLEPLUS ILS,327.44,MH LTS 18-64,PAYMENTS TO CLIENTS (DIRECT PAYMENTS),2103109606,1000061886
05.06.2020,ADULT SOCIAL CARE,PEOPLEPLUS ILS,342.71,MH LTS 18-64,PAYMENTS TO CLIENTS (DIRECT PAYMENTS),2103109576,1000061886
05.06.2020,ADULT SOCIAL CARE,PEOPLEPLUS ILS,366.80,MH LTS 18-64,PAYMENTS TO CLIENTS (DIRECT PAYMENTS),2103109104,1000061886
05.06.2020,ADULT SOCIAL CARE,PEOPLEPLUS ILS,373.00,MH LTS 18-64,PAYMENTS TO CLIENTS (DIRECT PAYMENTS),2103109159,1000061886
05.06.2020,ADULT SOCIAL CARE,PEOPLEPLUS ILS,373.36,MH LTS 18-64,PAYMENTS TO CLIENTS (DIRECT PAYMENTS),2103108956,1000061886
05.06.2020,ADULT SOCIAL CARE,PEOPLEPLUS ILS,373.36,MH LTS 18-64,PAYMENTS TO CLIENTS (DIRECT PAYMENTS),2103109141,1000061886
05.06.2020,ADULT SOCIAL CARE,PEOPLEPLUS ILS,373.36,MH LTS 18-64,PAYMENTS TO CLIENTS (DIRECT PAYMENTS),2103109246,1000061886
05.06.2020,ADULT SOCIAL CARE,PEOPLEPLUS ILS,385.76,MH LTS 18-64,PAYMENTS TO CLIENTS (DIRECT PAYMENTS),2103109070,1000061886
05.06.2020,ADULT SOCIAL CARE,PEOPLEPLUS ILS,393.20,MH LTS 18-64,PAYMENTS TO CLIENTS (DIRECT PAYMENTS),2103109285,1000061886
05.06.2020,ADULT SOCIAL CARE,PEOPLEPLUS ILS,413.96,MH LTS 18-64,PAYMENTS TO CLIENTS (DIRECT PAYMENTS),2103108950,1000061886
05.06.2020,ADULT SOCIAL CARE,PEOPLEPLUS ILS,427.92,MH LTS 18-64,PAYMENTS TO CLIENTS (DIRECT PAYMENTS),2103108842,1000061886
05.06.2020,ADULT SOCIAL CARE,PEOPLEPLUS ILS,440.16,MH LTS 18-64,PAYMENTS TO CLIENTS (DIRECT PAYMENTS),2103109421,1000061886
05.06.2020,ADULT SOCIAL CARE,PEOPLEPLUS ILS,454.00,MH LTS 18-64,PAYMENTS TO CLIENTS (DIRECT PAYMENTS),2103109056,1000061886
05.06.2020,ADULT SOCIAL CARE,PEOPLEPLUS ILS,486.48,MH LTS 18-64,PAYMENTS TO CLIENTS (DIRECT PAYMENTS),2103109122,1000061886
05.06.2020,ADULT SOCIAL CARE,PEOPLEPLUS ILS,489.32,MH LTS 18-64,PAYMENTS TO CLIENTS (DIRECT PAYMENTS),2103108873,1000061886
05.06.2020,ADULT SOCIAL CARE,PEOPLEPLUS ILS,504.40,MH LTS 18-64,PAYMENTS TO CLIENTS (DIRECT PAYMENTS),2103109081,1000061886
05.06.2020,ADULT SOCIAL CARE,PEOPLEPLUS ILS,510.84,MH LTS 18-64,PAYMENTS TO CLIENTS (DIRECT PAYMENTS),2103108925,1000061886
05.06.2020,ADULT SOCIAL CARE,PEOPLEPLUS ILS,547.52,MH LTS 18-64,PAYMENTS TO CLIENTS (DIRECT PAYMENTS),2103108976,1000061886
05.06.2020,ADULT SOCIAL CARE,PEOPLEPLUS ILS,559.84,MH LTS 18-64,PAYMENTS TO CLIENTS (DIRECT PAYMENTS),2103109584,1000061886
05.06.2020,ADULT SOCIAL CARE,PEOPLEPLUS ILS,565.60,MH LTS 18-64,PAYMENTS TO CLIENTS (DIRECT PAYMENTS),2103109617,1000061886
05.06.2020,ADULT SOCIAL CARE,PEOPLEPLUS ILS,573.00,MH LTS 18-64,PAYMENTS TO CLIENTS (DIRECT PAYMENTS),2103108907,1000061886
05.06.2020,ADULT SOCIAL CARE,PEOPLEPLUS ILS,659.60,MH LTS 18-64,PAYMENTS TO CLIENTS (DIRECT PAYMENTS),2103109224,1000061886
05.06.2020,ADULT SOCIAL CARE,PEOPLEPLUS ILS,694.16,MH LTS 18-64,PAYMENTS TO CLIENTS (DIRECT PAYMENTS),2103109370,1000061886
05.06.2020,ADULT SOCIAL CARE,PEOPLEPLUS ILS,720.80,MH LTS 18-64,PAYMENTS TO CLIENTS (DIRECT PAYMENTS),2103109150,1000061886
05.06.2020,ADULT SOCIAL CARE,PEOPLEPLUS ILS,"1,054.00",MH LTS 18-64,PAYMENTS TO CLIENTS (DIRECT PAYMENTS),2103109391,1000061886
05.06.2020,ADULT SOCIAL CARE,PEOPLEPLUS ILS,"2,311.60",MH LTS 18-64,PAYMENTS TO CLIENTS (DIRECT PAYMENTS),2103108831,1000061886
05.06.2020,ADULT SOCIAL CARE,PEOPLEPLUS ILS,"2,834.23",MH LTS 18-64,PAYMENTS TO CLIENTS (DIRECT PAYMENTS),2103108927,1000061886
05.06.2020,ADULT SOCIAL CARE,REDACTED PERSONAL DATA,253.60,MH LTS 18-64,HOMECARE - SPOT,REDACTED,REDACTED
05.06.2020,ADULT SOCIAL CARE,REDACTED PERSONAL DATA,928.00,MH LTS 18-64,HOMECARE - SPOT,REDACTED,REDACTED
05.06.2020,ADULT SOCIAL CARE,REDACTED PERSONAL DATA,410.08,MH LTS 18-64,PAYMENTS TO CLIENTS (DIRECT PAYMENTS),REDACTED,REDACTED
05.06.2020,ADULT SOCIAL CARE,REDACTED PERSONAL DATA,328.00,MH LTS 18-64,PAYMENTS TO CLIENTS (DIRECT PAYMENTS),REDACTED,REDACTED
05.06.2020,ADULT SOCIAL CARE,REDACTED PERSONAL DATA,888.00,MH LTS 18-64,PAYMENTS TO CLIENTS (DIRECT PAYMENTS),REDACTED,REDACTED
05.06.2020,ADULT SOCIAL CARE,REDACTED PERSONAL DATA,"1,158.36",MH LTS 18-64,PAYMENTS TO CLIENTS (DIRECT PAYMENTS),REDACTED,REDACTED
05.06.2020,ADULT SOCIAL CARE,REDACTED PERSONAL DATA,396.00,MH LTS 18-64,PAYMENTS TO CLIENTS (DIRECT PAYMENTS),REDACTED,REDACTED
05.06.2020,ADULT SOCIAL CARE,PEOPLEPLUS ILS,321.56,MH LTS 65+,PAYMENTS TO CLIENTS (DIRECT PAYMENTS),2103109530,1000061886
05.06.2020,ADULT SOCIAL CARE,REDACTED PERSONAL DATA,"1,188.60",MH LTS 65+,PAYMENTS TO CLIENTS (DIRECT PAYMENTS),REDACTED,REDACTED
05.06.2020,ADULT SOCIAL CARE,PEOPLEPLUS ILS,"1,470.00",PHB- SOUTHWARK CCG,RECOVERABLE COSTS INCL. HEALTH,2103109136,1000061886
05.06.2020,ADULT SOCIAL CARE,PEOPLEPLUS ILS,"4,127.92",PHB- SOUTHWARK CCG,RECOVERABLE COSTS INCL. HEALTH,2103109041,1000061886
05.06.2020,ADULT SOCIAL CARE,PEOPLEPLUS ILS,"4,803.80",PHB- SOUTHWARK CCG,RECOVERABLE COSTS INCL. HEALTH,2103109433,1000061886
05.06.2020,ADULT SOCIAL CARE,PEOPLEPLUS ILS,"6,673.20",PHB- SOUTHWARK CCG,RECOVERABLE COSTS INCL. HEALTH,2103109355,1000061886
05.06.2020,ADULT SOCIAL CARE,REDACTED PERSONAL DATA,"9,079.20",PHB- SOUTHWARK CCG,RECOVERABLE COSTS INCL. HEALTH,REDACTED,REDACTED
05.06.2020,ADULT SOCIAL CARE,REDACTED PERSONAL DATA,"7,482.40",PHB- SOUTHWARK CCG,RECOVERABLE COSTS INCL. HEALTH,REDACTED,REDACTED
05.06.2020,ADULT SOCIAL CARE,REDACTED PERSONAL DATA,"2,549.52",PHB- SOUTHWARK CCG,RECOVERABLE COSTS INCL. HEALTH,REDACTED,REDACTED
05.06.2020,ADULT SOCIAL CARE,REDACTED PERSONAL DATA,"2,699.76",PHB- SOUTHWARK CCG,RECOVERABLE COSTS INCL. HEALTH,REDACTED,REDACTED
05.06.2020,ADULT SOCIAL CARE,AGE UK  LEWISHAM & SOUTHWARK,360.00,PHY LTS 18-64,DAYCARE,2103109483,1000066751
05.06.2020,ADULT SOCIAL CARE,AGE UK  LEWISHAM & SOUTHWARK,360.00,PHY LTS 18-64,DAYCARE,2103109523,1000066751
05.06.2020,ADULT SOCIAL CARE,AGE UK  LEWISHAM & SOUTHWARK,540.00,PHY LTS 18-64,DAYCARE,2103109383,1000066751
05.06.2020,ADULT SOCIAL CARE,PEOPLEPLUS ILS,"-1,347.62",PHY LTS 18-64,PAYMENTS TO CLIENTS (DIRECT PAYMENTS),2103108899,1000061886
05.06.2020,ADULT SOCIAL CARE,PEOPLEPLUS ILS,-377.36,PHY LTS 18-64,PAYMENTS TO CLIENTS (DIRECT PAYMENTS),2103109558,1000061886
05.06.2020,ADULT SOCIAL CARE,PEOPLEPLUS ILS,265.64,PHY LTS 18-64,PAYMENTS TO CLIENTS (DIRECT PAYMENTS),2103109535,1000061886
05.06.2020,ADULT SOCIAL CARE,PEOPLEPLUS ILS,279.64,PHY LTS 18-64,PAYMENTS TO CLIENTS (DIRECT PAYMENTS),2103109407,1000061886
05.06.2020,ADULT SOCIAL CARE,PEOPLEPLUS ILS,295.04,PHY LTS 18-64,PAYMENTS TO CLIENTS (DIRECT PAYMENTS),2103108829,1000061886
05.06.2020,ADULT SOCIAL CARE,PEOPLEPLUS ILS,365.00,PHY LTS 18-64,PAYMENTS TO CLIENTS (DIRECT PAYMENTS),2103109230,1000061886
05.06.2020,ADULT SOCIAL CARE,PEOPLEPLUS ILS,388.40,PHY LTS 18-64,PAYMENTS TO CLIENTS (DIRECT PAYMENTS),2103109394,1000061886
05.06.2020,ADULT SOCIAL CARE,PEOPLEPLUS ILS,411.80,PHY LTS 18-64,PAYMENTS TO CLIENTS (DIRECT PAYMENTS),2103109291,1000061886
05.06.2020,ADULT SOCIAL CARE,PEOPLEPLUS ILS,429.92,PHY LTS 18-64,PAYMENTS TO CLIENTS (DIRECT PAYMENTS),2103109263,1000061886
05.06.2020,ADULT SOCIAL CARE,PEOPLEPLUS ILS,429.92,PHY LTS 18-64,PAYMENTS TO CLIENTS (DIRECT PAYMENTS),2103109414,1000061886
05.06.2020,ADULT SOCIAL CARE,PEOPLEPLUS ILS,444.08,PHY LTS 18-64,PAYMENTS TO CLIENTS (DIRECT PAYMENTS),2103109560,1000061886
05.06.2020,ADULT SOCIAL CARE,PEOPLEPLUS ILS,447.40,PHY LTS 18-64,PAYMENTS TO CLIENTS (DIRECT PAYMENTS),2103108872,1000061886
05.06.2020,ADULT SOCIAL CARE,PEOPLEPLUS ILS,472.36,PHY LTS 18-64,PAYMENTS TO CLIENTS (DIRECT PAYMENTS),2103109602,1000061886
05.06.2020,ADULT SOCIAL CARE,PEOPLEPLUS ILS,486.48,PHY LTS 18-64,PAYMENTS TO CLIENTS (DIRECT PAYMENTS),2103109146,1000061886
05.06.2020,ADULT SOCIAL CARE,PEOPLEPLUS ILS,504.00,PHY LTS 18-64,PAYMENTS TO CLIENTS (DIRECT PAYMENTS),2103109473,1000061886
05.06.2020,ADULT SOCIAL CARE,PEOPLEPLUS ILS,505.40,PHY LTS 18-64,PAYMENTS TO CLIENTS (DIRECT PAYMENTS),2103109278,1000061886
05.06.2020,ADULT SOCIAL CARE,PEOPLEPLUS ILS,509.12,PHY LTS 18-64,PAYMENTS TO CLIENTS (DIRECT PAYMENTS),2103109615,1000061886
05.06.2020,ADULT SOCIAL CARE,PEOPLEPLUS ILS,579.60,PHY LTS 18-64,PAYMENTS TO CLIENTS (DIRECT PAYMENTS),2103109390,1000061886
05.06.2020,ADULT SOCIAL CARE,PEOPLEPLUS ILS,587.32,PHY LTS 18-64,PAYMENTS TO CLIENTS (DIRECT PAYMENTS),2103109366,1000061886
05.06.2020,ADULT SOCIAL CARE,PEOPLEPLUS ILS,598.40,PHY LTS 18-64,PAYMENTS TO CLIENTS (DIRECT PAYMENTS),2103109372,1000061886
05.06.2020,ADULT SOCIAL CARE,PEOPLEPLUS ILS,608.04,PHY LTS 18-64,PAYMENTS TO CLIENTS (DIRECT PAYMENTS),2103109091,1000061886
05.06.2020,ADULT SOCIAL CARE,PEOPLEPLUS ILS,613.76,PHY LTS 18-64,PAYMENTS TO CLIENTS (DIRECT PAYMENTS),2103108879,1000061886
05.06.2020,ADULT SOCIAL CARE,PEOPLEPLUS ILS,613.76,PHY LTS 18-64,PAYMENTS TO CLIENTS (DIRECT PAYMENTS),2103109226,1000061886
05.06.2020,ADULT SOCIAL CARE,PEOPLEPLUS ILS,613.76,PHY LTS 18-64,PAYMENTS TO CLIENTS (DIRECT PAYMENTS),2103109508,1000061886
05.06.2020,ADULT SOCIAL CARE,PEOPLEPLUS ILS,627.88,PHY LTS 18-64,PAYMENTS TO CLIENTS (DIRECT PAYMENTS),2103109223,1000061886
05.06.2020,ADULT SOCIAL CARE,PEOPLEPLUS ILS,636.32,PHY LTS 18-64,PAYMENTS TO CLIENTS (DIRECT PAYMENTS),2103108974,1000061886
05.06.2020,ADULT SOCIAL CARE,PEOPLEPLUS ILS,642.04,PHY LTS 18-64,PAYMENTS TO CLIENTS (DIRECT PAYMENTS),2103108841,1000061886
05.06.2020,ADULT SOCIAL CARE,PEOPLEPLUS ILS,642.04,PHY LTS 18-64,PAYMENTS TO CLIENTS (DIRECT PAYMENTS),2103109075,1000061886
05.06.2020,ADULT SOCIAL CARE,PEOPLEPLUS ILS,670.32,PHY LTS 18-64,PAYMENTS TO CLIENTS (DIRECT PAYMENTS),2103109063,1000061886
05.06.2020,ADULT SOCIAL CARE,PEOPLEPLUS ILS,678.72,PHY LTS 18-64,PAYMENTS TO CLIENTS (DIRECT PAYMENTS),2103108898,1000061886
05.06.2020,ADULT SOCIAL CARE,PEOPLEPLUS ILS,678.72,PHY LTS 18-64,PAYMENTS TO CLIENTS (DIRECT PAYMENTS),2103108970,1000061886
05.06.2020,ADULT SOCIAL CARE,PEOPLEPLUS ILS,707.00,PHY LTS 18-64,PAYMENTS TO CLIENTS (DIRECT PAYMENTS),2103109465,1000061886
05.06.2020,ADULT SOCIAL CARE,PEOPLEPLUS ILS,724.24,PHY LTS 18-64,PAYMENTS TO CLIENTS (DIRECT PAYMENTS),2103109484,1000061886
05.06.2020,ADULT SOCIAL CARE,PEOPLEPLUS ILS,741.00,PHY LTS 18-64,PAYMENTS TO CLIENTS (DIRECT PAYMENTS),2103109053,1000061886
05.06.2020,ADULT SOCIAL CARE,PEOPLEPLUS ILS,769.28,PHY LTS 18-64,PAYMENTS TO CLIENTS (DIRECT PAYMENTS),2103108906,1000061886
05.06.2020,ADULT SOCIAL CARE,PEOPLEPLUS ILS,769.28,PHY LTS 18-64,PAYMENTS TO CLIENTS (DIRECT PAYMENTS),2103109308,1000061886
05.06.2020,ADULT SOCIAL CARE,PEOPLEPLUS ILS,786.20,PHY LTS 18-64,PAYMENTS TO CLIENTS (DIRECT PAYMENTS),2103109211,1000061886
05.06.2020,ADULT SOCIAL CARE,PEOPLEPLUS ILS,791.84,PHY LTS 18-64,PAYMENTS TO CLIENTS (DIRECT PAYMENTS),2103109193,1000061886
05.06.2020,ADULT SOCIAL CARE,PEOPLEPLUS ILS,796.88,PHY LTS 18-64,PAYMENTS TO CLIENTS (DIRECT PAYMENTS),2103108844,1000061886
05.06.2020,ADULT SOCIAL CARE,PEOPLEPLUS ILS,840.00,PHY LTS 18-64,PAYMENTS TO CLIENTS (DIRECT PAYMENTS),2103109321,1000061886
05.06.2020,ADULT SOCIAL CARE,PEOPLEPLUS ILS,840.00,PHY LTS 18-64,PAYMENTS TO CLIENTS (DIRECT PAYMENTS),2103109495,1000061886
05.06.2020,ADULT SOCIAL CARE,PEOPLEPLUS ILS,840.00,PHY LTS 18-64,PAYMENTS TO CLIENTS (DIRECT PAYMENTS),2103109595,1000061886
05.06.2020,ADULT SOCIAL CARE,PEOPLEPLUS ILS,863.00,PHY LTS 18-64,PAYMENTS TO CLIENTS (DIRECT PAYMENTS),2103109275,1000061886
05.06.2020,ADULT SOCIAL CARE,PEOPLEPLUS ILS,877.80,PHY LTS 18-64,PAYMENTS TO CLIENTS (DIRECT PAYMENTS),2103109362,1000061886
05.06.2020,ADULT SOCIAL CARE,PEOPLEPLUS ILS,894.76,PHY LTS 18-64,PAYMENTS TO CLIENTS (DIRECT PAYMENTS),2103109572,1000061886
05.06.2020,ADULT SOCIAL CARE,PEOPLEPLUS ILS,932.80,PHY LTS 18-64,PAYMENTS TO CLIENTS (DIRECT PAYMENTS),2103109593,1000061886
05.06.2020,ADULT SOCIAL CARE,PEOPLEPLUS ILS,938.96,PHY LTS 18-64,PAYMENTS TO CLIENTS (DIRECT PAYMENTS),2103108893,1000061886
05.06.2020,ADULT SOCIAL CARE,PEOPLEPLUS ILS,947.24,PHY LTS 18-64,PAYMENTS TO CLIENTS (DIRECT PAYMENTS),2103109360,1000061886
05.06.2020,ADULT SOCIAL CARE,PEOPLEPLUS ILS,978.32,PHY LTS 18-64,PAYMENTS TO CLIENTS (DIRECT PAYMENTS),2103109349,1000061886
05.06.2020,ADULT SOCIAL CARE,PEOPLEPLUS ILS,989.80,PHY LTS 18-64,PAYMENTS TO CLIENTS (DIRECT PAYMENTS),2103109307,1000061886
05.06.2020,ADULT SOCIAL CARE,PEOPLEPLUS ILS,995.52,PHY LTS 18-64,PAYMENTS TO CLIENTS (DIRECT PAYMENTS),2103109531,1000061886
05.06.2020,ADULT SOCIAL CARE,PEOPLEPLUS ILS,"1,009.68",PHY LTS 18-64,PAYMENTS TO CLIENTS (DIRECT PAYMENTS),2103109425,1000061886
05.06.2020,ADULT SOCIAL CARE,PEOPLEPLUS ILS,"1,023.80",PHY LTS 18-64,PAYMENTS TO CLIENTS (DIRECT PAYMENTS),2103109135,1000061886
05.06.2020,ADULT SOCIAL CARE,PEOPLEPLUS ILS,"1,023.80",PHY LTS 18-64,PAYMENTS TO CLIENTS (DIRECT PAYMENTS),2103109417,1000061886
05.06.2020,ADULT SOCIAL CARE,PEOPLEPLUS ILS,"1,052.64",PHY LTS 18-64,PAYMENTS TO CLIENTS (DIRECT PAYMENTS),2103108951,1000061886
05.06.2020,ADULT SOCIAL CARE,PEOPLEPLUS ILS,"1,122.80",PHY LTS 18-64,PAYMENTS TO CLIENTS (DIRECT PAYMENTS),2103109507,1000061886
05.06.2020,ADULT SOCIAL CARE,PEOPLEPLUS ILS,"1,146.40",PHY LTS 18-64,PAYMENTS TO CLIENTS (DIRECT PAYMENTS),2103109431,1000061886
05.06.2020,ADULT SOCIAL CARE,PEOPLEPLUS ILS,"1,150.52",PHY LTS 18-64,PAYMENTS TO CLIENTS (DIRECT PAYMENTS),2103109443,1000061886
05.06.2020,ADULT SOCIAL CARE,PEOPLEPLUS ILS,"1,165.20",PHY LTS 18-64,PAYMENTS TO CLIENTS (DIRECT PAYMENTS),2103108833,1000061886
05.06.2020,ADULT SOCIAL CARE,PEOPLEPLUS ILS,"1,187.76",PHY LTS 18-64,PAYMENTS TO CLIENTS (DIRECT PAYMENTS),2103109547,1000061886
05.06.2020,ADULT SOCIAL CARE,PEOPLEPLUS ILS,"1,193.48",PHY LTS 18-64,PAYMENTS TO CLIENTS (DIRECT PAYMENTS),2103109444,1000061886
05.06.2020,ADULT SOCIAL CARE,PEOPLEPLUS ILS,"1,250.04",PHY LTS 18-64,PAYMENTS TO CLIENTS (DIRECT PAYMENTS),2103108830,1000061886
05.06.2020,ADULT SOCIAL CARE,PEOPLEPLUS ILS,"1,278.32",PHY LTS 18-64,PAYMENTS TO CLIENTS (DIRECT PAYMENTS),2103109332,1000061886
05.06.2020,ADULT SOCIAL CARE,PEOPLEPLUS ILS,"1,330.00",PHY LTS 18-64,PAYMENTS TO CLIENTS (DIRECT PAYMENTS),2103109361,1000061886
05.06.2020,ADULT SOCIAL CARE,PEOPLEPLUS ILS,"1,371.44",PHY LTS 18-64,PAYMENTS TO CLIENTS (DIRECT PAYMENTS),2103109597,1000061886
05.06.2020,ADULT SOCIAL CARE,PEOPLEPLUS ILS,"1,426.00",PHY LTS 18-64,PAYMENTS TO CLIENTS (DIRECT PAYMENTS),2103109055,1000061886
05.06.2020,ADULT SOCIAL CARE,PEOPLEPLUS ILS,"1,616.52",PHY LTS 18-64,PAYMENTS TO CLIENTS (DIRECT PAYMENTS),2103109257,1000061886
05.06.2020,ADULT SOCIAL CARE,PEOPLEPLUS ILS,"1,624.00",PHY LTS 18-64,PAYMENTS TO CLIENTS (DIRECT PAYMENTS),2103109528,1000061886
05.06.2020,ADULT SOCIAL CARE,PEOPLEPLUS ILS,"1,733.56",PHY LTS 18-64,PAYMENTS TO CLIENTS (DIRECT PAYMENTS),2103108888,1000061886
05.06.2020,ADULT SOCIAL CARE,PEOPLEPLUS ILS,"1,909.40",PHY LTS 18-64,PAYMENTS TO CLIENTS (DIRECT PAYMENTS),2103109474,1000061886
05.06.2020,ADULT SOCIAL CARE,PEOPLEPLUS ILS,"2,013.60",PHY LTS 18-64,PAYMENTS TO CLIENTS (DIRECT PAYMENTS),2103109256,1000061886
05.06.2020,ADULT SOCIAL CARE,PEOPLEPLUS ILS,"2,036.16",PHY LTS 18-64,PAYMENTS TO CLIENTS (DIRECT PAYMENTS),2103108983,1000061886
05.06.2020,ADULT SOCIAL CARE,PEOPLEPLUS ILS,"2,646.80",PHY LTS 18-64,PAYMENTS TO CLIENTS (DIRECT PAYMENTS),2103109025,1000061886
05.06.2020,ADULT SOCIAL CARE,PEOPLEPLUS ILS,"3,307.52",PHY LTS 18-64,PAYMENTS TO CLIENTS (DIRECT PAYMENTS),2103109089,1000061886
05.06.2020,ADULT SOCIAL CARE,PEOPLEPLUS ILS,"3,576.40",PHY LTS 18-64,PAYMENTS TO CLIENTS (DIRECT PAYMENTS),2103109048,1000061886
05.06.2020,ADULT SOCIAL CARE,PEOPLEPLUS ILS,"4,118.92",PHY LTS 18-64,PAYMENTS TO CLIENTS (DIRECT PAYMENTS),2103108998,1000061886
05.06.2020,ADULT SOCIAL CARE,PEOPLEPLUS ILS,"4,760.65",PHY LTS 18-64,PAYMENTS TO CLIENTS (DIRECT PAYMENTS),2103109218,1000061886
05.06.2020,ADULT SOCIAL CARE,PEOPLEPLUS ILS,"7,698.60",PHY LTS 18-64,PAYMENTS TO CLIENTS (DIRECT PAYMENTS),2103109458,1000061886
05.06.2020,ADULT SOCIAL CARE,FRESH IDEAS & SOLUTIONS SERVICES CIC,712.72,PHY LTS 18-64,PAYMENTS TO CLIENTS (DIRECT PAYMENTS),2103109251,1000070832
05.06.2020,ADULT SOCIAL CARE,FRESH IDEAS & SOLUTIONS SERVICES CIC,870.00,PHY LTS 18-64,PAYMENTS TO CLIENTS (DIRECT PAYMENTS),2103109566,1000070832
05.06.2020,ADULT SOCIAL CARE,FRESH IDEAS & SOLUTIONS SERVICES CIC,"1,108.64",PHY LTS 18-64,PAYMENTS TO CLIENTS (DIRECT PAYMENTS),2103109439,1000070832
05.06.2020,ADULT SOCIAL CARE,REDACTED PERSONAL DATA,"1,583.68",PHY LTS 18-64,PAYMENTS TO CLIENTS (DIRECT PAYMENTS),REDACTED,REDACTED
05.06.2020,ADULT SOCIAL CARE,REDACTED PERSONAL DATA,258.08,PHY LTS 18-64,PAYMENTS TO CLIENTS (DIRECT PAYMENTS),REDACTED,REDACTED
05.06.2020,ADULT SOCIAL CARE,REDACTED PERSONAL DATA,904.96,PHY LTS 18-64,PAYMENTS TO CLIENTS (DIRECT PAYMENTS),REDACTED,REDACTED
05.06.2020,ADULT SOCIAL CARE,REDACTED PERSONAL DATA,"2,395.52",PHY LTS 18-64,PAYMENTS TO CLIENTS (DIRECT PAYMENTS),REDACTED,REDACTED
05.06.2020,ADULT SOCIAL CARE,REDACTED PERSONAL DATA,-997.88,PHY LTS 18-64,PAYMENTS TO CLIENTS (DIRECT PAYMENTS),REDACTED,REDACTED
05.06.2020,ADULT SOCIAL CARE,REDACTED PERSONAL DATA,"2,208.91",PHY LTS 18-64,PAYMENTS TO CLIENTS (DIRECT PAYMENTS),REDACTED,REDACTED
05.06.2020,ADULT SOCIAL CARE,REDACTED PERSONAL DATA,602.48,PHY LTS 18-64,PAYMENTS TO CLIENTS (DIRECT PAYMENTS),REDACTED,REDACTED
05.06.2020,ADULT SOCIAL CARE,REDACTED PERSONAL DATA,806.00,PHY LTS 18-64,PAYMENTS TO CLIENTS (DIRECT PAYMENTS),REDACTED,REDACTED
05.06.2020,ADULT SOCIAL CARE,REDACTED PERSONAL DATA,254.52,PHY LTS 18-64,PAYMENTS TO CLIENTS (DIRECT PAYMENTS),REDACTED,REDACTED
05.06.2020,ADULT SOCIAL CARE,REDACTED PERSONAL DATA,395.92,PHY LTS 18-64,PAYMENTS TO CLIENTS (DIRECT PAYMENTS),REDACTED,REDACTED
05.06.2020,ADULT SOCIAL CARE,REDACTED PERSONAL DATA,"3,973.84",PHY LTS 18-64,PAYMENTS TO CLIENTS (DIRECT PAYMENTS),REDACTED,REDACTED
05.06.2020,ADULT SOCIAL CARE,REDACTED PERSONAL DATA,"1,131.20",PHY LTS 18-64,PAYMENTS TO CLIENTS (DIRECT PAYMENTS),REDACTED,REDACTED
05.06.2020,ADULT SOCIAL CARE,REDACTED PERSONAL DATA,"1,874.72",PHY LTS 18-64,PAYMENTS TO CLIENTS (DIRECT PAYMENTS),REDACTED,REDACTED
05.06.2020,ADULT SOCIAL CARE,REDACTED PERSONAL DATA,760.76,PHY LTS 18-64,PAYMENTS TO CLIENTS (DIRECT PAYMENTS),REDACTED,REDACTED
05.06.2020,ADULT SOCIAL CARE,REDACTED PERSONAL DATA,593.88,PHY LTS 18-64,PAYMENTS TO CLIENTS (DIRECT PAYMENTS),REDACTED,REDACTED
05.06.2020,ADULT SOCIAL CARE,REDACTED PERSONAL DATA,579.76,PHY LTS 18-64,PAYMENTS TO CLIENTS (DIRECT PAYMENTS),REDACTED,REDACTED
05.06.2020,ADULT SOCIAL CARE,REDACTED PERSONAL DATA,"1,371.60",PHY LTS 18-64,PAYMENTS TO CLIENTS (DIRECT PAYMENTS),REDACTED,REDACTED
05.06.2020,ADULT SOCIAL CARE,REDACTED PERSONAL DATA,"1,204.16",PHY LTS 18-64,PAYMENTS TO CLIENTS (DIRECT PAYMENTS),REDACTED,REDACTED
05.06.2020,ADULT SOCIAL CARE,REDACTED PERSONAL DATA,"1,258.48",PHY LTS 18-64,PAYMENTS TO CLIENTS (DIRECT PAYMENTS),REDACTED,REDACTED
05.06.2020,ADULT SOCIAL CARE,REDACTED PERSONAL DATA,"1,481.20",PHY LTS 18-64,PAYMENTS TO CLIENTS (DIRECT PAYMENTS),REDACTED,REDACTED
05.06.2020,ADULT SOCIAL CARE,REDACTED PERSONAL DATA,"3,535.00",PHY LTS 18-64,PAYMENTS TO CLIENTS (DIRECT PAYMENTS),REDACTED,REDACTED
05.06.2020,ADULT SOCIAL CARE,REDACTED PERSONAL DATA,"1,979.60",PHY LTS 18-64,PAYMENTS TO CLIENTS (DIRECT PAYMENTS),REDACTED,REDACTED
05.06.2020,ADULT SOCIAL CARE,REDACTED PERSONAL DATA,585.60,PHY LTS 18-64,PAYMENTS TO CLIENTS (DIRECT PAYMENTS),REDACTED,REDACTED
05.06.2020,ADULT SOCIAL CARE,REDACTED PERSONAL DATA,403.44,PHY LTS 18-64,PAYMENTS TO CLIENTS (DIRECT PAYMENTS),REDACTED,REDACTED
05.06.2020,ADULT SOCIAL CARE,REDACTED PERSONAL DATA,961.52,PHY LTS 18-64,PAYMENTS TO CLIENTS (DIRECT PAYMENTS),REDACTED,REDACTED
05.06.2020,ADULT SOCIAL CARE,REDACTED PERSONAL DATA,"1,024.88",PHY LTS 18-64,PAYMENTS TO CLIENTS (DIRECT PAYMENTS),REDACTED,REDACTED
05.06.2020,ADULT SOCIAL CARE,REDACTED PERSONAL DATA,"1,088.80",PHY LTS 18-64,PAYMENTS TO CLIENTS (DIRECT PAYMENTS),REDACTED,REDACTED
05.06.2020,ADULT SOCIAL CARE,REDACTED PERSONAL DATA,400.00,PHY LTS 18-64,PAYMENTS TO CLIENTS (DIRECT PAYMENTS),REDACTED,REDACTED
05.06.2020,ADULT SOCIAL CARE,REDACTED PERSONAL DATA,"2,739.80",PHY LTS 18-64,PAYMENTS TO CLIENTS (DIRECT PAYMENTS),REDACTED,REDACTED
05.06.2020,ADULT SOCIAL CARE,REDACTED PERSONAL DATA,296.96,PHY LTS 18-64,PAYMENTS TO CLIENTS (DIRECT PAYMENTS),REDACTED,REDACTED
05.06.2020,ADULT SOCIAL CARE,REDACTED PERSONAL DATA,848.40,PHY LTS 18-64,PAYMENTS TO CLIENTS (DIRECT PAYMENTS),REDACTED,REDACTED
05.06.2020,ADULT SOCIAL CARE,REDACTED PERSONAL DATA,777.72,PHY LTS 18-64,PAYMENTS TO CLIENTS (DIRECT PAYMENTS),REDACTED,REDACTED
05.06.2020,ADULT SOCIAL CARE,REDACTED PERSONAL DATA,707.00,PHY LTS 18-64,PAYMENTS TO CLIENTS (DIRECT PAYMENTS),REDACTED,REDACTED
05.06.2020,ADULT SOCIAL CARE,REDACTED PERSONAL DATA,933.24,PHY LTS 18-64,PAYMENTS TO CLIENTS (DIRECT PAYMENTS),REDACTED,REDACTED
05.06.2020,ADULT SOCIAL CARE,REDACTED PERSONAL DATA,"2,163.44",PHY LTS 18-64,PAYMENTS TO CLIENTS (DIRECT PAYMENTS),REDACTED,REDACTED
05.06.2020,ADULT SOCIAL CARE,REDACTED PERSONAL DATA,"1,583.68",PHY LTS 18-64,PAYMENTS TO CLIENTS (DIRECT PAYMENTS),REDACTED,REDACTED
05.06.2020,ADULT SOCIAL CARE,REDACTED PERSONAL DATA,751.96,PHY LTS 18-64,PAYMENTS TO CLIENTS (DIRECT PAYMENTS),REDACTED,REDACTED
05.06.2020,ADULT SOCIAL CARE,REDACTED PERSONAL DATA,"1,009.80",PHY LTS 18-64,PAYMENTS TO CLIENTS (DIRECT PAYMENTS),REDACTED,REDACTED
05.06.2020,ADULT SOCIAL CARE,REDACTED PERSONAL DATA,"1,583.68",PHY LTS 18-64,PAYMENTS TO CLIENTS (DIRECT PAYMENTS),REDACTED,REDACTED
05.06.2020,ADULT SOCIAL CARE,REDACTED PERSONAL DATA,"1,199.76",PHY LTS 18-64,PAYMENTS TO CLIENTS (DIRECT PAYMENTS),REDACTED,REDACTED
05.06.2020,ADULT SOCIAL CARE,REDACTED PERSONAL DATA,706.88,PHY LTS 18-64,PAYMENTS TO CLIENTS (DIRECT PAYMENTS),REDACTED,REDACTED
05.06.2020,ADULT SOCIAL CARE,REDACTED PERSONAL DATA,"2,088.48",PHY LTS 18-64,PAYMENTS TO CLIENTS (DIRECT PAYMENTS),REDACTED,REDACTED
05.06.2020,ADULT SOCIAL CARE,REDACTED PERSONAL DATA,"1,640.24",PHY LTS 18-64,PAYMENTS TO CLIENTS (DIRECT PAYMENTS),REDACTED,REDACTED
05.06.2020,ADULT SOCIAL CARE,REDACTED PERSONAL DATA,565.60,PHY LTS 18-64,PAYMENTS TO CLIENTS (DIRECT PAYMENTS),REDACTED,REDACTED
05.06.2020,ADULT SOCIAL CARE,REDACTED PERSONAL DATA,769.44,PHY LTS 18-64,PAYMENTS TO CLIENTS (DIRECT PAYMENTS),REDACTED,REDACTED
05.06.2020,ADULT SOCIAL CARE,REDACTED PERSONAL DATA,981.52,PHY LTS 18-64,PAYMENTS TO CLIENTS (DIRECT PAYMENTS),REDACTED,REDACTED
05.06.2020,ADULT SOCIAL CARE,REDACTED PERSONAL DATA,430.08,PHY LTS 18-64,PAYMENTS TO CLIENTS (DIRECT PAYMENTS),REDACTED,REDACTED
05.06.2020,ADULT SOCIAL CARE,REDACTED PERSONAL DATA,494.92,PHY LTS 18-64,PAYMENTS TO CLIENTS (DIRECT PAYMENTS),REDACTED,REDACTED
05.06.2020,ADULT SOCIAL CARE,AGE CONCERN LEWISHAM & SOUTHWARK,540.00,PHY LTS 65+,DAYCARE,2103109210,1000057586
05.06.2020,ADULT SOCIAL CARE,AGE UK  LEWISHAM & SOUTHWARK,-308.57,PHY LTS 65+,DAYCARE,2103109140,1000066751
05.06.2020,ADULT SOCIAL CARE,AGE UK  LEWISHAM & SOUTHWARK,360.00,PHY LTS 65+,DAYCARE,2103108915,1000066751
05.06.2020,ADULT SOCIAL CARE,AGE UK  LEWISHAM & SOUTHWARK,360.00,PHY LTS 65+,DAYCARE,2103109083,1000066751
05.06.2020,ADULT SOCIAL CARE,AGE UK  LEWISHAM & SOUTHWARK,360.00,PHY LTS 65+,DAYCARE,2103109090,1000066751
05.06.2020,ADULT SOCIAL CARE,AGE UK  LEWISHAM & SOUTHWARK,360.00,PHY LTS 65+,DAYCARE,2103109144,1000066751
05.06.2020,ADULT SOCIAL CARE,AGE UK  LEWISHAM & SOUTHWARK,360.00,PHY LTS 65+,DAYCARE,2103109219,1000066751
05.06.2020,ADULT SOCIAL CARE,AGE UK  LEWISHAM & SOUTHWARK,360.00,PHY LTS 65+,DAYCARE,2103109243,1000066751
05.06.2020,ADULT SOCIAL CARE,AGE UK  LEWISHAM & SOUTHWARK,360.00,PHY LTS 65+,DAYCARE,2103109299,1000066751
05.06.2020,ADULT SOCIAL CARE,AGE UK  LEWISHAM & SOUTHWARK,360.00,PHY LTS 65+,DAYCARE,2103109363,1000066751
05.06.2020,ADULT SOCIAL CARE,AGE UK  LEWISHAM & SOUTHWARK,360.00,PHY LTS 65+,DAYCARE,2103109488,1000066751
05.06.2020,ADULT SOCIAL CARE,AGE UK  LEWISHAM & SOUTHWARK,360.00,PHY LTS 65+,DAYCARE,2103109586,1000066751
05.06.2020,ADULT SOCIAL CARE,AGE UK  LEWISHAM & SOUTHWARK,540.00,PHY LTS 65+,DAYCARE,2103108834,1000066751
05.06.2020,ADULT SOCIAL CARE,AGE UK  LEWISHAM & SOUTHWARK,540.00,PHY LTS 65+,DAYCARE,2103109046,1000066751
05.06.2020,ADULT SOCIAL CARE,AGE UK  LEWISHAM & SOUTHWARK,540.00,PHY LTS 65+,DAYCARE,2103109489,1000066751
05.06.2020,ADULT SOCIAL CARE,BLACK ELDER GROUP SWK,540.00,PHY LTS 65+,DAYCARE,2103108881,1000067369
05.06.2020,ADULT SOCIAL CARE,SOUTHWARK CYPRIOT DAY CENTRE LTD,288.00,PHY LTS 65+,DAYCARE,2103109578,1000067736
05.06.2020,ADULT SOCIAL CARE,PEOPLEPLUS ILS,"-3,499.50",PHY LTS 65+,DISCRETIONARY FLEXIBLE FEES & INCOME,2103109126,1000061886
05.06.2020,ADULT SOCIAL CARE,PEOPLEPLUS ILS,-290.40,PHY LTS 65+,DISCRETIONARY FLEXIBLE FEES & INCOME,2103109064,1000061886
05.06.2020,ADULT SOCIAL CARE,PEOPLEPLUS ILS,-259.44,PHY LTS 65+,DISCRETIONARY FLEXIBLE FEES & INCOME,2103108850,1000061886
05.06.2020,ADULT SOCIAL CARE,AGE CONCERN LEWISHAM & SOUTHWARK,900.00,PHY LTS 65+,PAYMENTS TO CLIENTS (DIRECT PAYMENTS),2103108874,1000057586
05.06.2020,ADULT SOCIAL CARE,PEOPLEPLUS ILS,"-4,852.55",PHY LTS 65+,PAYMENTS TO CLIENTS (DIRECT PAYMENTS),2103109310,1000061886
05.06.2020,ADULT SOCIAL CARE,PEOPLEPLUS ILS,310.96,PHY LTS 65+,PAYMENTS TO CLIENTS (DIRECT PAYMENTS),2103109280,1000061886
05.06.2020,ADULT SOCIAL CARE,PEOPLEPLUS ILS,311.08,PHY LTS 65+,PAYMENTS TO CLIENTS (DIRECT PAYMENTS),2103109563,1000061886
05.06.2020,ADULT SOCIAL CARE,PEOPLEPLUS ILS,316.80,PHY LTS 65+,PAYMENTS TO CLIENTS (DIRECT PAYMENTS),2103109339,1000061886
05.06.2020,ADULT SOCIAL CARE,PEOPLEPLUS ILS,365.00,PHY LTS 65+,PAYMENTS TO CLIENTS (DIRECT PAYMENTS),2103109014,1000061886
05.06.2020,ADULT SOCIAL CARE,PEOPLEPLUS ILS,365.76,PHY LTS 65+,PAYMENTS TO CLIENTS (DIRECT PAYMENTS),2103109175,1000061886
05.06.2020,ADULT SOCIAL CARE,PEOPLEPLUS ILS,421.56,PHY LTS 65+,PAYMENTS TO CLIENTS (DIRECT PAYMENTS),2103109006,1000061886
05.06.2020,ADULT SOCIAL CARE,PEOPLEPLUS ILS,423.52,PHY LTS 65+,PAYMENTS TO CLIENTS (DIRECT PAYMENTS),2103109518,1000061886
05.06.2020,ADULT SOCIAL CARE,PEOPLEPLUS ILS,444.08,PHY LTS 65+,PAYMENTS TO CLIENTS (DIRECT PAYMENTS),2103109017,1000061886
05.06.2020,ADULT SOCIAL CARE,PEOPLEPLUS ILS,456.32,PHY LTS 65+,PAYMENTS TO CLIENTS (DIRECT PAYMENTS),2103108966,1000061886
05.06.2020,ADULT SOCIAL CARE,PEOPLEPLUS ILS,509.04,PHY LTS 65+,PAYMENTS TO CLIENTS (DIRECT PAYMENTS),2103109134,1000061886
05.06.2020,ADULT SOCIAL CARE,PEOPLEPLUS ILS,552.20,PHY LTS 65+,PAYMENTS TO CLIENTS (DIRECT PAYMENTS),2103109568,1000061886
05.06.2020,ADULT SOCIAL CARE,PEOPLEPLUS ILS,573.20,PHY LTS 65+,PAYMENTS TO CLIENTS (DIRECT PAYMENTS),2103108981,1000061886
05.06.2020,ADULT SOCIAL CARE,PEOPLEPLUS ILS,587.32,PHY LTS 65+,PAYMENTS TO CLIENTS (DIRECT PAYMENTS),2103109499,1000061886
05.06.2020,ADULT SOCIAL CARE,PEOPLEPLUS ILS,599.60,PHY LTS 65+,PAYMENTS TO CLIENTS (DIRECT PAYMENTS),2103109348,1000061886
05.06.2020,ADULT SOCIAL CARE,PEOPLEPLUS ILS,622.16,PHY LTS 65+,PAYMENTS TO CLIENTS (DIRECT PAYMENTS),2103109524,1000061886
05.06.2020,ADULT SOCIAL CARE,PEOPLEPLUS ILS,692.60,PHY LTS 65+,PAYMENTS TO CLIENTS (DIRECT PAYMENTS),2103109492,1000061886
05.06.2020,ADULT SOCIAL CARE,PEOPLEPLUS ILS,707.00,PHY LTS 65+,PAYMENTS TO CLIENTS (DIRECT PAYMENTS),2103109542,1000061886
05.06.2020,ADULT SOCIAL CARE,PEOPLEPLUS ILS,726.88,PHY LTS 65+,PAYMENTS TO CLIENTS (DIRECT PAYMENTS),2103108985,1000061886
05.06.2020,ADULT SOCIAL CARE,PEOPLEPLUS ILS,726.88,PHY LTS 65+,PAYMENTS TO CLIENTS (DIRECT PAYMENTS),2103109127,1000061886
05.06.2020,ADULT SOCIAL CARE,PEOPLEPLUS ILS,739.40,PHY LTS 65+,PAYMENTS TO CLIENTS (DIRECT PAYMENTS),2103109342,1000061886
05.06.2020,ADULT SOCIAL CARE,PEOPLEPLUS ILS,741.00,PHY LTS 65+,PAYMENTS TO CLIENTS (DIRECT PAYMENTS),2103109012,1000061886
05.06.2020,ADULT SOCIAL CARE,PEOPLEPLUS ILS,763.56,PHY LTS 65+,PAYMENTS TO CLIENTS (DIRECT PAYMENTS),2103109238,1000061886
05.06.2020,ADULT SOCIAL CARE,PEOPLEPLUS ILS,769.28,PHY LTS 65+,PAYMENTS TO CLIENTS (DIRECT PAYMENTS),2103109013,1000061886
05.06.2020,ADULT SOCIAL CARE,PEOPLEPLUS ILS,774.52,PHY LTS 65+,PAYMENTS TO CLIENTS (DIRECT PAYMENTS),2103109207,1000061886
05.06.2020,ADULT SOCIAL CARE,PEOPLEPLUS ILS,777.72,PHY LTS 65+,PAYMENTS TO CLIENTS (DIRECT PAYMENTS),2103109183,1000061886
05.06.2020,ADULT SOCIAL CARE,PEOPLEPLUS ILS,782.92,PHY LTS 65+,PAYMENTS TO CLIENTS (DIRECT PAYMENTS),2103108851,1000061886
05.06.2020,ADULT SOCIAL CARE,PEOPLEPLUS ILS,783.44,PHY LTS 65+,PAYMENTS TO CLIENTS (DIRECT PAYMENTS),2103109231,1000061886
05.06.2020,ADULT SOCIAL CARE,PEOPLEPLUS ILS,791.84,PHY LTS 65+,PAYMENTS TO CLIENTS (DIRECT PAYMENTS),2103109292,1000061886
05.06.2020,ADULT SOCIAL CARE,PEOPLEPLUS ILS,797.56,PHY LTS 65+,PAYMENTS TO CLIENTS (DIRECT PAYMENTS),2103109381,1000061886
05.06.2020,ADULT SOCIAL CARE,PEOPLEPLUS ILS,811.72,PHY LTS 65+,PAYMENTS TO CLIENTS (DIRECT PAYMENTS),2103109385,1000061886
05.06.2020,ADULT SOCIAL CARE,PEOPLEPLUS ILS,811.72,PHY LTS 65+,PAYMENTS TO CLIENTS (DIRECT PAYMENTS),2103109570,1000061886
05.06.2020,ADULT SOCIAL CARE,PEOPLEPLUS ILS,825.84,PHY LTS 65+,PAYMENTS TO CLIENTS (DIRECT PAYMENTS),2103109594,1000061886
05.06.2020,ADULT SOCIAL CARE,PEOPLEPLUS ILS,868.28,PHY LTS 65+,PAYMENTS TO CLIENTS (DIRECT PAYMENTS),2103109289,1000061886
05.06.2020,ADULT SOCIAL CARE,PEOPLEPLUS ILS,914.00,PHY LTS 65+,PAYMENTS TO CLIENTS (DIRECT PAYMENTS),2103109123,1000061886
05.06.2020,ADULT SOCIAL CARE,PEOPLEPLUS ILS,933.24,PHY LTS 65+,PAYMENTS TO CLIENTS (DIRECT PAYMENTS),2103109546,1000061886
05.06.2020,ADULT SOCIAL CARE,PEOPLEPLUS ILS,938.96,PHY LTS 65+,PAYMENTS TO CLIENTS (DIRECT PAYMENTS),2103109022,1000061886
05.06.2020,ADULT SOCIAL CARE,PEOPLEPLUS ILS,"1,037.96",PHY LTS 65+,PAYMENTS TO CLIENTS (DIRECT PAYMENTS),2103108847,1000061886
05.06.2020,ADULT SOCIAL CARE,PEOPLEPLUS ILS,"1,074.52",PHY LTS 65+,PAYMENTS TO CLIENTS (DIRECT PAYMENTS),2103109294,1000061886
05.06.2020,ADULT SOCIAL CARE,PEOPLEPLUS ILS,"1,136.96",PHY LTS 65+,PAYMENTS TO CLIENTS (DIRECT PAYMENTS),2103108990,1000061886
05.06.2020,ADULT SOCIAL CARE,PEOPLEPLUS ILS,"1,159.36",PHY LTS 65+,PAYMENTS TO CLIENTS (DIRECT PAYMENTS),2103109115,1000061886
05.06.2020,ADULT SOCIAL CARE,PEOPLEPLUS ILS,"1,165.20",PHY LTS 65+,PAYMENTS TO CLIENTS (DIRECT PAYMENTS),2103109106,1000061886
05.06.2020,ADULT SOCIAL CARE,PEOPLEPLUS ILS,"1,193.48",PHY LTS 65+,PAYMENTS TO CLIENTS (DIRECT PAYMENTS),2103108937,1000061886
05.06.2020,ADULT SOCIAL CARE,PEOPLEPLUS ILS,"1,207.64",PHY LTS 65+,PAYMENTS TO CLIENTS (DIRECT PAYMENTS),2103109413,1000061886
05.06.2020,ADULT SOCIAL CARE,PEOPLEPLUS ILS,"1,258.48",PHY LTS 65+,PAYMENTS TO CLIENTS (DIRECT PAYMENTS),2103109121,1000061886
05.06.2020,ADULT SOCIAL CARE,PEOPLEPLUS ILS,"1,288.00",PHY LTS 65+,PAYMENTS TO CLIENTS (DIRECT PAYMENTS),2103109143,1000061886
05.06.2020,ADULT SOCIAL CARE,PEOPLEPLUS ILS,"1,343.32",PHY LTS 65+,PAYMENTS TO CLIENTS (DIRECT PAYMENTS),2103109179,1000061886
05.06.2020,ADULT SOCIAL CARE,PEOPLEPLUS ILS,"1,524.72",PHY LTS 65+,PAYMENTS TO CLIENTS (DIRECT PAYMENTS),2103109244,1000061886
05.06.2020,ADULT SOCIAL CARE,PEOPLEPLUS ILS,"1,532.84",PHY LTS 65+,PAYMENTS TO CLIENTS (DIRECT PAYMENTS),2103109113,1000061886
05.06.2020,ADULT SOCIAL CARE,PEOPLEPLUS ILS,"1,668.52",PHY LTS 65+,PAYMENTS TO CLIENTS (DIRECT PAYMENTS),2103109504,1000061886
05.06.2020,ADULT SOCIAL CARE,PEOPLEPLUS ILS,"1,733.92",PHY LTS 65+,PAYMENTS TO CLIENTS (DIRECT PAYMENTS),2103109209,1000061886
05.06.2020,ADULT SOCIAL CARE,PEOPLEPLUS ILS,"1,886.00",PHY LTS 65+,PAYMENTS TO CLIENTS (DIRECT PAYMENTS),2103109098,1000061886
05.06.2020,ADULT SOCIAL CARE,PEOPLEPLUS ILS,"1,900.48",PHY LTS 65+,PAYMENTS TO CLIENTS (DIRECT PAYMENTS),2103109011,1000061886
05.06.2020,ADULT SOCIAL CARE,PEOPLEPLUS ILS,"2,014.48",PHY LTS 65+,PAYMENTS TO CLIENTS (DIRECT PAYMENTS),2103109229,1000061886
05.06.2020,ADULT SOCIAL CARE,PEOPLEPLUS ILS,"2,140.88",PHY LTS 65+,PAYMENTS TO CLIENTS (DIRECT PAYMENTS),2103108940,1000061886
05.06.2020,ADULT SOCIAL CARE,PEOPLEPLUS ILS,"2,201.00",PHY LTS 65+,PAYMENTS TO CLIENTS (DIRECT PAYMENTS),2103109609,1000061886
05.06.2020,ADULT SOCIAL CARE,PEOPLEPLUS ILS,"2,494.40",PHY LTS 65+,PAYMENTS TO CLIENTS (DIRECT PAYMENTS),2103109020,1000061886
05.06.2020,ADULT SOCIAL CARE,PEOPLEPLUS ILS,"3,383.60",PHY LTS 65+,PAYMENTS TO CLIENTS (DIRECT PAYMENTS),2103109493,1000061886
05.06.2020,ADULT SOCIAL CARE,PEOPLEPLUS ILS,"4,188.19",PHY LTS 65+,PAYMENTS TO CLIENTS (DIRECT PAYMENTS),2103109434,1000061886
05.06.2020,ADULT SOCIAL CARE,FRESH IDEAS & SOLUTIONS SERVICES CIC,890.84,PHY LTS 65+,PAYMENTS TO CLIENTS (DIRECT PAYMENTS),2103109147,1000070832
05.06.2020,ADULT SOCIAL CARE,REDACTED PERSONAL DATA,707.00,PHY LTS 65+,PAYMENTS TO CLIENTS (DIRECT PAYMENTS),REDACTED,REDACTED
05.06.2020,ADULT SOCIAL CARE,REDACTED PERSONAL DATA,494.92,PHY LTS 65+,PAYMENTS TO CLIENTS (DIRECT PAYMENTS),REDACTED,REDACTED
05.06.2020,ADULT SOCIAL CARE,REDACTED PERSONAL DATA,"1,555.40",PHY LTS 65+,PAYMENTS TO CLIENTS (DIRECT PAYMENTS),REDACTED,REDACTED
05.06.2020,ADULT SOCIAL CARE,REDACTED PERSONAL DATA,494.92,PHY LTS 65+,PAYMENTS TO CLIENTS (DIRECT PAYMENTS),REDACTED,REDACTED
05.06.2020,ADULT SOCIAL CARE,REDACTED PERSONAL DATA,791.84,PHY LTS 65+,PAYMENTS TO CLIENTS (DIRECT PAYMENTS),REDACTED,REDACTED
05.06.2020,ADULT SOCIAL CARE,REDACTED PERSONAL DATA,"1,201.92",PHY LTS 65+,PAYMENTS TO CLIENTS (DIRECT PAYMENTS),REDACTED,REDACTED
05.06.2020,ADULT SOCIAL CARE,REDACTED PERSONAL DATA,888.40,PHY LTS 65+,PAYMENTS TO CLIENTS (DIRECT PAYMENTS),REDACTED,REDACTED
05.06.2020,ADULT SOCIAL CARE,REDACTED PERSONAL DATA,"1,498.84",PHY LTS 65+,PAYMENTS TO CLIENTS (DIRECT PAYMENTS),REDACTED,REDACTED
05.06.2020,ADULT SOCIAL CARE,REDACTED PERSONAL DATA,608.04,PHY LTS 65+,PAYMENTS TO CLIENTS (DIRECT PAYMENTS),REDACTED,REDACTED
05.06.2020,ADULT SOCIAL CARE,REDACTED PERSONAL DATA,"2,132.72",PHY LTS 65+,PAYMENTS TO CLIENTS (DIRECT PAYMENTS),REDACTED,REDACTED
05.06.2020,ADULT SOCIAL CARE,REDACTED PERSONAL DATA,"1,357.44",PHY LTS 65+,PAYMENTS TO CLIENTS (DIRECT PAYMENTS),REDACTED,REDACTED
05.06.2020,ADULT SOCIAL CARE,REDACTED PERSONAL DATA,"1,717.00",PHY LTS 65+,PAYMENTS TO CLIENTS (DIRECT PAYMENTS),REDACTED,REDACTED
05.06.2020,ADULT SOCIAL CARE,REDACTED PERSONAL DATA,994.00,PHY LTS 65+,PAYMENTS TO CLIENTS (DIRECT PAYMENTS),REDACTED,REDACTED
05.06.2020,ADULT SOCIAL CARE,REDACTED PERSONAL DATA,868.40,PHY LTS 65+,PAYMENTS TO CLIENTS (DIRECT PAYMENTS),REDACTED,REDACTED
05.06.2020,ADULT SOCIAL CARE,REDACTED PERSONAL DATA,395.92,PHY LTS 65+,PAYMENTS TO CLIENTS (DIRECT PAYMENTS),REDACTED,REDACTED
05.06.2020,ADULT SOCIAL CARE,REDACTED PERSONAL DATA,883.48,PHY LTS 65+,PAYMENTS TO CLIENTS (DIRECT PAYMENTS),REDACTED,REDACTED
05.06.2020,ADULT SOCIAL CARE,REDACTED PERSONAL DATA,"1,315.04",PHY LTS 65+,PAYMENTS TO CLIENTS (DIRECT PAYMENTS),REDACTED,REDACTED
05.06.2020,ADULT SOCIAL CARE,REDACTED PERSONAL DATA,"1,708.52",PHY LTS 65+,PAYMENTS TO CLIENTS (DIRECT PAYMENTS),REDACTED,REDACTED
05.06.2020,ADULT SOCIAL CARE,REDACTED PERSONAL DATA,551.48,PHY LTS 65+,PAYMENTS TO CLIENTS (DIRECT PAYMENTS),REDACTED,REDACTED
05.06.2020,ADULT SOCIAL CARE,REDACTED PERSONAL DATA,"1,264.32",PHY LTS 65+,PAYMENTS TO CLIENTS (DIRECT PAYMENTS),REDACTED,REDACTED
05.06.2020,ADULT SOCIAL CARE,REDACTED PERSONAL DATA,"1,781.64",PHY LTS 65+,PAYMENTS TO CLIENTS (DIRECT PAYMENTS),REDACTED,REDACTED
05.06.2020,ADULT SOCIAL CARE,REDACTED PERSONAL DATA,"2,282.40",PHY LTS 65+,PAYMENTS TO CLIENTS (DIRECT PAYMENTS),REDACTED,REDACTED
05.06.2020,ADULT SOCIAL CARE,LEWISHAM INDO CHINESE COMMUNITY,280.00,SEN LTS 65+,DAYCARE,2103108828,1000076593
05.06.2020,ADULT SOCIAL CARE,AGE UK  LEWISHAM & SOUTHWARK,360.00,SOCIAL ISOLATION,DAYCARE,2103109253,1000066751
05.06.2020,ADULT SOCIAL CARE,AGE UK  LEWISHAM & SOUTHWARK,540.00,SOCIAL ISOLATION,DAYCARE,2103108973,1000066751
05.06.2020,ADULT SOCIAL CARE,AGE UK  LEWISHAM & SOUTHWARK,540.00,SOCIAL ISOLATION,DAYCARE,2103109194,1000066751
05.06.2020,ADULT SOCIAL CARE,AGE UK  LEWISHAM & SOUTHWARK,540.00,SOCIAL ISOLATION,DAYCARE,2103109293,1000066751
05.06.2020,ADULT SOCIAL CARE,PEOPLEPLUS ILS,367.64,SOCIAL ISOLATION,PAYMENTS TO CLIENTS (DIRECT PAYMENTS),2103109163,1000061886
05.06.2020,ADULT SOCIAL CARE,PEOPLEPLUS ILS,475.12,SOCIAL ISOLATION,PAYMENTS TO CLIENTS (DIRECT PAYMENTS),2103108965,1000061886
05.06.2020,ADULT SOCIAL CARE,PEOPLEPLUS ILS,622.16,SOCIAL ISOLATION,PAYMENTS TO CLIENTS (DIRECT PAYMENTS),2103108980,1000061886
05.06.2020,ADULT SOCIAL CARE,PEOPLEPLUS ILS,642.04,SOCIAL ISOLATION,PAYMENTS TO CLIENTS (DIRECT PAYMENTS),2103109079,1000061886
05.06.2020,ADULT SOCIAL CARE,PEOPLEPLUS ILS,992.72,SOCIAL ISOLATION,PAYMENTS TO CLIENTS (DIRECT PAYMENTS),2103109500,1000061886
05.06.2020,ADULT SOCIAL CARE,PEOPLEPLUS ILS,"1,787.36",SOCIAL ISOLATION,PAYMENTS TO CLIENTS (DIRECT PAYMENTS),2103109112,1000061886
05.06.2020,ADULT SOCIAL CARE,PEOPLEPLUS ILS,"2,027.12",SOCIAL ISOLATION,PAYMENTS TO CLIENTS (DIRECT PAYMENTS),2103108994,1000061886
05.06.2020,ADULT SOCIAL CARE,FRESH IDEAS & SOLUTIONS SERVICES CIC,260.24,SOCIAL ISOLATION,PAYMENTS TO CLIENTS (DIRECT PAYMENTS),2103108869,1000070832
05.06.2020,ADULT SOCIAL CARE,REDACTED PERSONAL DATA,614.40,SOCIAL ISOLATION,PAYMENTS TO CLIENTS (DIRECT PAYMENTS),REDACTED,REDACTED
05.06.2020,ADULT SOCIAL CARE,PEOPLEPLUS ILS,260.24,SPEC NEEDS CHILDREN,PAYMENTS TO CLIENTS (DIRECT PAYMENTS),2103108728,1000061886
05.06.2020,ADULT SOCIAL CARE,PEOPLEPLUS ILS,273.68,SPEC NEEDS CHILDREN,PAYMENTS TO CLIENTS (DIRECT PAYMENTS),2103108744,1000061886
05.06.2020,ADULT SOCIAL CARE,PEOPLEPLUS ILS,273.68,SPEC NEEDS CHILDREN,PAYMENTS TO CLIENTS (DIRECT PAYMENTS),2103108804,1000061886
05.06.2020,ADULT SOCIAL CARE,PEOPLEPLUS ILS,"1,849.00",SPEC NEEDS CHILDREN,PAYMENTS TO CLIENTS (DIRECT PAYMENTS),2103108750,1000061886
05.06.2020,ADULT SOCIAL CARE,REDACTED PERSONAL DATA,"4,722.92",SPEC NEEDS CHILDREN,PAYMENTS TO CLIENTS (DIRECT PAYMENTS),REDACTED,REDACTED
05.06.2020,ADULT SOCIAL CARE,REDACTED PERSONAL DATA,"3,662.20",SPEC NEEDS CHILDREN,PAYMENTS TO CLIENTS (DIRECT PAYMENTS),REDACTED,REDACTED
05.06.2020,ADULT SOCIAL CARE,REDACTED PERSONAL DATA,"3,251.00",SPEC NEEDS CHILDREN,PAYMENTS TO CLIENTS (DIRECT PAYMENTS),REDACTED,REDACTED
